Workbook

Sheet Notes
B1: date
B10: 2021-04-03 | D10: Added (auto) Notes Sheet to this (Loan-Amortized) spreadsheet

Sheet Notes-Old
B2: To Do
B4: protect compounded payments from begin entered in as greater than total annual payments
B5: common scenarios: extra payment each year, vs regular extra, etc. (are their more?)
B7: break-even on points or interest rate changes
B8: break-even on points or interest rate changes
B9: refinancing
B10: extra points on or off?
B13: for super large, unrealistic loan lengths, the payment periods calculation is breaking, low by one

Sheet Amort Chart Single
M3: Calculated | O3: Other/Alt
C4: Mortgage/Amortized Loan Analysis Worksheet | K4: Loan Parameters | M4: Adjustments | O4: Calculations | Q4: Description
G7: Principal | K7: 400000 | M7: =IF(OR(K$7="", K$7<K$8), "", K$7-K$8) -> 400000
G8: Down Payment | AB8: 350
G10: Nominal Rate Per Period (R) | I10: APR | K10: 3.5 | M10: =K$10/100 -> 0.035 | O10: =CalcEffectiveInterestRatePerPeriod(M$10,K$16) -> 0.03556695208 | Q10: CalcEffectiveInterestRatePerPeriod | AB10: 273
G12: Number of Payments | I12: years | K12: 30 | M12: =IF(K$12="","",K$12*K$15) -> 360 | O12: =IF(OR(M$7="", M$10=""), "", CalcNumberOfPeriods(M$7,M$21, M$10,K$15)) -> 360.0000305 | Q12: CalcNumberOfPeriods
I13: months | K13: 360 | AB13: =AB8-AB10 -> 77 | AD13: =AB13*12 -> 924
I15: payments per period | K15: 12 | O15: =IF(OR(M$10="", K$16=""), "", CalcPeriodicInterestRate(M$10, K$16)) -> 0.002916666679 | Q15: CalcPeriodicInterestRate | AB15: =62.5+AB13 -> 139.5 | AD15: =AB15*12 -> 1674
I16: compounding per period | K16: 12 | O16: =IF(OR(M$10="", K$15="", K$16=""), "", CalcPeriodicEquivalentInterestRate(M$10, K$16, K$15)) -> 0.002916666679 | Q16: CalcPeriodicEquivalentInterestRate
G18: Periodic Interest Rate | I18: P | K18: =M$18 -> 0.002916666679 | M18: =IF(OR(M$10="", K$15="", K$16=""), "", CalcPeriodicEquivalentInterestRate(M$10, K$16, K$15)) -> 0.002916666679 | O18: =IF(OR(M$10="", M$12="", K$12=""), "", IF(K$12=0,"",M$10/(M$12/K$12))) -> 0.002916666667
K21: Regular Payment Amount | M21: =IF(OR(M$7="",M$12=""),"",CalcLoanPayment(M$7,M$10,M$12,K$15,K$16)) -> 1796.178711 | O21: =IF(OR(M$7="",M$10="",M$12=""),"", IF(M$10=0,(M$7/M$12),((M$10/K$15)*M$7)/(1-((1+ (M$10/K$15))^(-M$12))))) -> 1796.178751
K22: Extra Regular Payment Amount | O22: =IF(OR(K$13="", O$24=""),"",TEXT((K$13-O$24)/12, "#0.0") & " yrs saved") -> 0.0 yrs saved
K24: Total Regular Payment Amount, (adjusted number of payments) | M24: =IF(M$21="","", SUM(M$21:M$22)) -> 1796.178711 | O24: =IF(OR(M$7="",M$10="",M$24="",K$15=""),"", CalcNumberOfPeriods(M$7, M$24, M$10, K$15)) -> 360.0000305
K26: Effective Interest Rate | M26: =EFFECT(K$10/100,K$16) -> 0.03556695295 | O26: =IF(OR(M$10="", K$16=""), "", CalcEffectiveInterestRateTPeriods(M$10, K$16)) -> 0.03556695208 | Q26: CalcEffectiveInterestRateTPeriods
K27: Effective Interest Rate, Life | O27: =IF(OR(M$10="", K$16=""), "", CalcEffectiveInterestRateTPeriods(M$10, K$16,K$12)) -> 1.85328722 | Q27: CalcEffectiveInterestRateTPeriods
K28: Total Repaid | M28: 646624.3359 | O28: =IF(M$21="","", M$21*M$12) -> 646624.3359
K29: Total Interest Paid | M29: 246624.3637 | O29: =IF(O$28="","", O$28-M$7) -> 246624.3359 | Q29: =M$29/K$12 -> 8220.812122 | R29: per year | Z29: 246624.36
K30: Interest as % of Principal | M30: =IF(M$28="","", M$29/M$7) -> 0.6165609091 | O30: =IF(O$28="","", O$29/M$7) -> 0.6165608398 | Q30: =Q$29/12 -> 685.0676768 | R30: per month
I33: Principal | K33: Interest | M33: Irregular Payments
E34: Principal | G34: Interest | I34: Paid | K34: Paid | M34: in excess of | O34: Principal
C35: Period | E35: (this payment) | G35: (this payment) | I35: (cumulative) | K35: (cumulative) | M35: Principal | O35: Balance
O37: =M7 -> 400000
C38: 1 | E38: 629.5120393 | G38: 1166.666672 | I38: 629.5120393 | K38: 1166.666672 | O38: 399370.488
C39: 2 | E39: 631.3481161 | G39: 1164.830595 | I39: 1260.860155 | K39: 2331.497266 | O39: 398739.1398
C40: 3 | E40: 633.1895481 | G40: 1162.989163 | I40: 1894.049704 | K40: 3494.486429 | O40: 398105.9503
C41: 4 | E41: 635.036351 | G41: 1161.14236 | I41: 2529.086054 | K41: 4655.628789 | O41: 397470.9139
C42: 5 | E42: 636.8885403 | G42: 1159.290171 | I42: 3165.974595 | K42: 5814.91896 | O42: 396834.0254
C43: 6 | E43: 638.7461319 | G43: 1157.432579 | I43: 3804.720727 | K43: 6972.351539 | O43: 396195.2793
C44: 7 | E44: 640.6091415 | G44: 1155.569569 | I44: 4445.329868 | K44: 8127.921108 | O44: 395554.6701
C45: 8 | E45: 642.4775848 | G45: 1153.701126 | I45: 5087.807453 | K45: 9281.622235 | O45: 394912.1925
C46: 9 | E46: 644.3514778 | G46: 1151.827233 | I46: 5732.158931 | K46: 10433.44947 | O46: 394267.8411
C47: 10 | E47: 646.2308363 | G47: 1149.947875 | I47: 6378.389767 | K47: 11583.39734 | O47: 393621.6102
C48: 11 | E48: 648.1156762 | G48: 1148.063035 | I48: 7026.505443 | K48: 12731.46038 | O48: 392973.4946
C49: 12 | E49: 650.0060136 | G49: 1146.172697 | I49: 7676.511457 | K49: 13877.63307 | O49: 392323.4885
C50: 13 | E50: 651.9018645 | G50: 1144.276846 | I50: 8328.413321 | K50: 15021.90992 | O50: 391671.5867
C51: 14 | E51: 653.8032449 | G51: 1142.375466 | I51: 8982.216566 | K51: 16164.28539 | O51: 391017.7834
C52: 15 | E52: 655.7101711 | G52: 1140.46854 | I52: 9637.926737 | K52: 17304.75393 | O52: 390362.0733
C53: 16 | E53: 657.6226591 | G53: 1138.556052 | I53: 10295.5494 | K53: 18443.30998 | O53: 389704.4506
C54: 17 | E54: 659.5407252 | G54: 1136.637986 | I54: 10955.09012 | K54: 19579.94796 | O54: 389044.9099
C55: 18 | E55: 661.4643856 | G55: 1134.714325 | I55: 11616.55451 | K55: 20714.66229 | O55: 388383.4455
C56: 19 | E56: 663.3936568 | G56: 1132.785054 | I56: 12279.94816 | K56: 21847.44734 | O56: 387720.0518
C57: 20 | E57: 665.3285549 | G57: 1130.850156 | I57: 12945.27672 | K57: 22978.2975 | O57: 387054.7233
C58: 21 | E58: 667.2690966 | G58: 1128.909614 | I58: 13612.54582 | K58: 24107.20711 | O58: 386387.4542
C59: 22 | E59: 669.2152981 | G59: 1126.963413 | I59: 14281.76111 | K59: 25234.17053 | O59: 385718.2389
C60: 23 | E60: 671.1671761 | G60: 1125.011535 | I60: 14952.92829 | K60: 26359.18206 | O60: 385047.0717
C61: 24 | E61: 673.124747 | G61: 1123.053964 | I61: 15626.05304 | K61: 27482.23603 | O61: 384373.947
C62: 25 | E62: 675.0880275 | G62: 1121.090683 | I62: 16301.14106 | K62: 28603.32671 | O62: 383698.8589
C63: 26 | E63: 677.0570343 | G63: 1119.121677 | I63: 16978.1981 | K63: 29722.44839 | O63: 383021.8019
C64: 27 | E64: 679.031784 | G64: 1117.146927 | I64: 17657.22988 | K64: 30839.59531 | O64: 382342.7701
C65: 28 | E65: 681.0122933 | G65: 1115.166418 | I65: 18338.24218 | K65: 31954.76173 | O65: 381661.7578
C66: 29 | E66: 682.9985792 | G66: 1113.180132 | I66: 19021.24075 | K66: 33067.94186 | O66: 380978.7592
C67: 30 | E67: 684.9906584 | G67: 1111.188053 | I67: 19706.23141 | K67: 34179.12991 | O67: 380293.7686
C68: 31 | E68: 686.9885478 | G68: 1109.190163 | I68: 20393.21996 | K68: 35288.32008 | O68: 379606.78
A69: x | C69: 32 | E69: 688.9922644 | G69: 1107.186446 | I69: 21082.21223 | K69: 36395.50652 | O69: 378917.7878
C70: 33 | E70: 691.0018252 | G70: 1105.176886 | I70: 21773.21405 | K70: 37500.68341 | O70: 378226.7859
C71: 34 | E71: 693.0172472 | G71: 1103.161464 | I71: 22466.2313 | K71: 38603.84487 | O71: 377533.7687
C72: 35 | E72: 695.0385475 | G72: 1101.140163 | I72: 23161.26985 | K72: 39704.98504 | O72: 376838.7302
C73: 36 | E73: 697.0657433 | G73: 1099.112968 | I73: 23858.33559 | K73: 40804.098 | O73: 376141.6644
C74: 37 | E74: 699.0988517 | G74: 1097.079859 | I74: 24557.43444 | K74: 41901.17786 | O74: 375442.5656
C75: 38 | E75: 701.1378901 | G75: 1095.040821 | I75: 25258.57233 | K75: 42996.21868 | O75: 374741.4277
C76: 39 | E76: 703.1828756 | G76: 1092.995835 | I76: 25961.75521 | K76: 44089.21452 | O76: 374038.2448
C77: 40 | E77: 705.2338256 | G77: 1090.944885 | I77: 26666.98903 | K77: 45180.15941 | O77: 373333.011
C78: 41 | E78: 707.2907576 | G78: 1088.887953 | I78: 27374.27979 | K78: 46269.04736 | O78: 372625.7202
C79: 42 | E79: 709.353689 | G79: 1086.825022 | I79: 28083.63348 | K79: 47355.87238 | O79: 371916.3665
C80: 43 | E80: 711.4226373 | G80: 1084.756074 | I80: 28795.05612 | K80: 48440.62845 | O80: 371204.9439
C81: 44 | E81: 713.49762 | G81: 1082.681091 | I81: 29508.55374 | K81: 49523.30955 | O81: 370491.4463
C82: 45 | E82: 715.5786547 | G82: 1080.600056 | I82: 30224.13239 | K82: 50603.9096 | O82: 369775.8676
C83: 46 | E83: 717.6657592 | G83: 1078.512952 | I83: 30941.79815 | K83: 51682.42255 | O83: 369058.2019
C84: 47 | E84: 719.758951 | G84: 1076.41976 | I84: 31661.5571 | K84: 52758.84231 | O84: 368338.4429
C85: 48 | E85: 721.8582479 | G85: 1074.320463 | I85: 32383.41535 | K85: 53833.16278 | O85: 367616.5847
C86: 49 | E86: 723.9636678 | G86: 1072.215043 | I86: 33107.37902 | K86: 54905.37782 | O86: 366892.621
C87: 50 | E87: 726.0752285 | G87: 1070.103482 | I87: 33833.45424 | K87: 55975.4813 | O87: 366166.5458
C88: 51 | E88: 728.1929479 | G88: 1067.985763 | I88: 34561.64719 | K88: 57043.46706 | O88: 365438.3528
C89: 52 | E89: 730.316844 | G89: 1065.861867 | I89: 35291.96404 | K89: 58109.32893 | O89: 364708.036
C90: 53 | E90: 732.4469348 | G90: 1063.731776 | I90: 36024.41097 | K90: 59173.06071 | O90: 363975.589
C91: 54 | E91: 734.5832384 | G91: 1061.595473 | I91: 36758.99421 | K91: 60234.65618 | O91: 363241.0058
C92: 55 | E92: 736.7257729 | G92: 1059.452938 | I92: 37495.71998 | K92: 61294.10912 | O92: 362504.28
C93: 56 | E93: 738.8745564 | G93: 1057.304155 | I93: 38234.59454 | K93: 62351.41327 | O93: 361765.4055
C94: 57 | E94: 741.0296072 | G94: 1055.149104 | I94: 38975.62415 | K94: 63406.56238 | O94: 361024.3759
C95: 58 | E95: 743.1909435 | G95: 1052.987767 | I95: 39718.81509 | K95: 64459.55014 | O95: 360281.1849
C96: 59 | E96: 745.3585838 | G96: 1050.820127 | I96: 40464.17367 | K96: 65510.37027 | O96: 359535.8263
C97: 60 | E97: 747.5325464 | G97: 1048.646165 | I97: 41211.70622 | K97: 66559.01644 | O97: 358788.2938
C98: 61 | E98: 749.7128496 | G98: 1046.465861 | I98: 41961.41907 | K98: 67605.4823 | O98: 358038.5809
C99: 62 | E99: 751.8995121 | G99: 1044.279199 | I99: 42713.31858 | K99: 68649.7615 | O99: 357286.6814
C100: 63 | E100: 754.0925524 | G100: 1042.086159 | I100: 43467.41113 | K100: 69691.84765 | O100: 356532.5889
C101: 64 | E101: 756.291989 | G101: 1039.886722 | I101: 44223.70312 | K101: 70731.73438 | O101: 355776.2969
C102: 65 | E102: 758.4978406 | G102: 1037.68087 | I102: 44982.20096 | K102: 71769.41525 | O102: 355017.799
C103: 66 | E103: 760.710126 | G103: 1035.468585 | I103: 45742.91109 | K103: 72804.88383 | O103: 354257.0889
C104: 67 | E104: 762.9288639 | G104: 1033.249847 | I104: 46505.83995 | K104: 73838.13368 | O104: 353494.16
C105: 68 | E105: 765.1540731 | G105: 1031.024638 | I105: 47270.99403 | K105: 74869.15832 | O105: 352729.006
C106: 69 | E106: 767.3857725 | G106: 1028.792938 | I106: 48038.3798 | K106: 75897.95126 | O106: 351961.6202
C107: 70 | E107: 769.623981 | G107: 1026.55473 | I107: 48808.00378 | K107: 76924.50599 | O107: 351191.9962
C108: 71 | E108: 771.8687176 | G108: 1024.309993 | I108: 49579.8725 | K108: 77948.81598 | O108: 350420.1275
C109: 72 | E109: 774.1200014 | G109: 1022.05871 | I109: 50353.9925 | K109: 78970.87469 | O109: 349646.0075
C110: 73 | E110: 776.3778514 | G110: 1019.80086 | I110: 51130.37035 | K110: 79990.67555 | O110: 348869.6296
C111: 74 | E111: 778.6422868 | G111: 1017.536424 | I111: 51909.01264 | K111: 81008.21197 | O111: 348090.9874
C112: 75 | E112: 780.9133268 | G112: 1015.265384 | I112: 52689.92596 | K112: 82023.47736 | O112: 347310.074
C113: 76 | E113: 783.1909907 | G113: 1012.98772 | I113: 53473.11696 | K113: 83036.46508 | O113: 346526.883
C114: 77 | E114: 785.4752978 | G114: 1010.703413 | I114: 54258.59225 | K114: 84047.16849 | O114: 345741.4077
C115: 78 | E115: 787.7662674 | G115: 1008.412444 | I115: 55046.35852 | K115: 85055.58093 | O115: 344953.6415
C116: 79 | E116: 790.063919 | G116: 1006.114792 | I116: 55836.42244 | K116: 86061.69572 | O116: 344163.5776
C117: 80 | E117: 792.3682721 | G117: 1003.810439 | I117: 56628.79071 | K117: 87065.50616 | O117: 343371.2093
C118: 81 | E118: 794.6793462 | G118: 1001.499365 | I118: 57423.47006 | K118: 88067.00553 | O118: 342576.5299
C119: 82 | E119: 796.997161 | G119: 999.1815499 | I119: 58220.46722 | K119: 89066.18708 | O119: 341779.5328
C120: 83 | E120: 799.3217361 | G120: 996.8569749 | I120: 59019.78895 | K120: 90063.04405 | O120: 340980.211
C121: 84 | E121: 801.6530912 | G121: 994.5256198 | I121: 59821.44205 | K121: 91057.56967 | O121: 340178.558
C122: 85 | E122: 803.991246 | G122: 992.1874649 | I122: 60625.43329 | K122: 92049.75714 | O122: 339374.5667
C123: 86 | E123: 806.3362205 | G123: 989.8424904 | I123: 61431.76951 | K123: 93039.59963 | O123: 338568.2305
C124: 87 | E124: 808.6880345 | G124: 987.4906765 | I124: 62240.45755 | K124: 94027.0903 | O124: 337759.5425
C125: 88 | E125: 811.0467079 | G125: 985.132003 | I125: 63051.50425 | K125: 95012.22231 | O125: 336948.4957
C126: 89 | E126: 813.4122608 | G126: 982.7664501 | I126: 63864.91652 | K126: 95994.98876 | O126: 336135.0835
C127: 90 | E127: 815.7847133 | G127: 980.3939977 | I127: 64680.70123 | K127: 96975.38276 | O127: 335319.2988
C128: 91 | E128: 818.1640854 | G128: 978.0146256 | I128: 65498.86531 | K128: 97953.39738 | O128: 334501.1347
C129: 92 | E129: 820.5503973 | G129: 975.6283137 | I129: 66319.41571 | K129: 98929.02569 | O129: 333680.5843
C130: 93 | E130: 822.9436693 | G130: 973.2350417 | I130: 67142.35938 | K130: 99902.26074 | O130: 332857.6406
C131: 94 | E131: 825.3439217 | G131: 970.8347893 | I131: 67967.7033 | K131: 100873.0955 | O131: 332032.2967
C132: 95 | E132: 827.7511748 | G132: 968.4275362 | I132: 68795.45448 | K132: 101841.5231 | O132: 331204.5455
C133: 96 | E133: 830.1654491 | G133: 966.0132619 | I133: 69625.61993 | K133: 102807.5363 | O133: 330374.3801
C134: 97 | E134: 832.586765 | G134: 963.591946 | I134: 70458.20669 | K134: 103771.1283 | O134: 329541.7933
C135: 98 | E135: 835.015143 | G135: 961.1635679 | I135: 71293.22183 | K135: 104732.2918 | O135: 328706.7782
C136: 99 | E136: 837.4506039 | G136: 958.7281071 | I136: 72130.67244 | K136: 105691.0199 | O136: 327869.3276
C137: 100 | E137: 839.8931681 | G137: 956.2855428 | I137: 72970.56561 | K137: 106647.3055 | O137: 327029.4344
C138: 101 | E138: 842.3428566 | G138: 953.8358544 | I138: 73812.90846 | K138: 107601.1413 | O138: 326187.0915
C139: 102 | E139: 844.7996899 | G139: 951.379021 | I139: 74657.70815 | K139: 108552.5204 | O139: 325342.2918
C140: 103 | E140: 847.263689 | G140: 948.9150219 | I140: 75504.97184 | K140: 109501.4354 | O140: 324495.0282
C141: 104 | E141: 849.7348748 | G141: 946.4438362 | I141: 76354.70672 | K141: 110447.8792 | O141: 323645.2933
C142: 105 | E142: 852.2132682 | G142: 943.9654428 | I142: 77206.91998 | K142: 111391.8447 | O142: 322793.08
C143: 106 | E143: 854.6988902 | G143: 941.4798207 | I143: 78061.61887 | K143: 112333.3245 | O143: 321938.3811
C144: 107 | E144: 857.191762 | G144: 938.9869489 | I144: 78918.81064 | K144: 113272.3114 | O144: 321081.1894
C145: 108 | E145: 859.6919046 | G145: 936.4868063 | I145: 79778.50254 | K145: 114208.7982 | O145: 320221.4975
C146: 109 | E146: 862.1993394 | G146: 933.9793716 | I146: 80640.70188 | K146: 115142.7776 | O146: 319359.2981
C147: 110 | E147: 864.7140875 | G147: 931.4646235 | I147: 81505.41597 | K147: 116074.2422 | O147: 318494.584
C148: 111 | E148: 867.2361702 | G148: 928.9425407 | I148: 82372.65214 | K148: 117003.1848 | O148: 317627.3479
C149: 112 | E149: 869.7656091 | G149: 926.4131019 | I149: 83242.41775 | K149: 117929.5979 | O149: 316757.5823
C150: 113 | E150: 872.3024254 | G150: 923.8762855 | I150: 84114.72017 | K150: 118853.4742 | O150: 315885.2798
C151: 114 | E151: 874.8466409 | G151: 921.3320701 | I151: 84989.56681 | K151: 119774.8062 | O151: 315010.4332
C152: 115 | E152: 877.3982769 | G152: 918.780434 | I152: 85866.96509 | K152: 120693.5867 | O152: 314133.0349
C153: 116 | E153: 879.9573552 | G153: 916.2213557 | I153: 86746.92245 | K153: 121609.808 | O153: 313253.0776
C154: 117 | E154: 882.5238975 | G154: 913.6548134 | I154: 87629.44634 | K154: 122523.4628 | O154: 312370.5537
C155: 118 | E155: 885.0979256 | G155: 911.0807854 | I155: 88514.54427 | K155: 123434.5436 | O155: 311485.4557
C156: 119 | E156: 887.6794612 | G156: 908.4992497 | I156: 89402.22373 | K156: 124343.0429 | O156: 310597.7763
C157: 120 | E157: 890.2685263 | G157: 905.9101846 | I157: 90292.49226 | K157: 125248.9531 | O157: 309707.5077
C158: 121 | E158: 892.8651428 | G158: 903.3135681 | I158: 91185.3574 | K158: 126152.2666 | O158: 308814.6426
C159: 122 | E159: 895.4693329 | G159: 900.7093781 | I159: 92080.82673 | K159: 127052.976 | O159: 307919.1733
C160: 123 | E160: 898.0811184 | G160: 898.0975925 | I160: 92978.90785 | K160: 127951.0736 | O160: 307021.0921
C161: 124 | E161: 900.7005217 | G161: 895.4781892 | I161: 93879.60837 | K161: 128846.5518 | O161: 306120.3916
C162: 125 | E162: 903.3275649 | G162: 892.851146 | I162: 94782.93594 | K162: 129739.4029 | O162: 305217.0641
C163: 126 | E163: 905.9622703 | G163: 890.2164406 | I163: 95688.89821 | K163: 130629.6194 | O163: 304311.1018
C164: 127 | E164: 908.6046603 | G164: 887.5740507 | I164: 96597.50287 | K164: 131517.1934 | O164: 303402.4971
C165: 128 | E165: 911.2547572 | G165: 884.9239537 | I165: 97508.75763 | K165: 132402.1174 | O165: 302491.2424
C166: 129 | E166: 913.9125836 | G166: 882.2661273 | I166: 98422.67021 | K166: 133284.3835 | O166: 301577.3298
C167: 130 | E167: 916.578162 | G167: 879.600549 | I167: 99339.24837 | K167: 134163.9841 | O167: 300660.7516
C168: 131 | E168: 919.251515 | G168: 876.927196 | I168: 100258.4999 | K168: 135040.9112 | O168: 299741.5001
C169: 132 | E169: 921.9326652 | G169: 874.2460457 | I169: 101180.4326 | K169: 135915.1573 | O169: 298819.5674
C170: 133 | E170: 924.6216355 | G170: 871.5570754 | I170: 102105.0542 | K170: 136786.7144 | O170: 297894.9458
C171: 134 | E171: 927.3184486 | G171: 868.8602623 | I171: 103032.3726 | K171: 137655.5746 | O171: 296967.6274
C172: 135 | E172: 930.0231274 | G172: 866.1555835 | I172: 103962.3958 | K172: 138521.7302 | O172: 296037.6042
C173: 136 | E173: 932.7356949 | G173: 863.443016 | I173: 104895.1315 | K173: 139385.1732 | O173: 295104.8685
C174: 137 | E174: 935.456174 | G174: 860.7225369 | I174: 105830.5876 | K174: 140245.8958 | O174: 294169.4124
C175: 138 | E175: 938.1845879 | G175: 857.9941231 | I175: 106768.7722 | K175: 141103.8899 | O175: 293231.2278
C176: 139 | E176: 940.9209596 | G176: 855.2577513 | I176: 107709.6932 | K176: 141959.1476 | O176: 292290.3068
C177: 140 | E177: 943.6653124 | G177: 852.5133985 | I177: 108653.3585 | K177: 142811.661 | O177: 291346.6415
C178: 141 | E178: 946.4176696 | G178: 849.7610414 | I178: 109599.7762 | K178: 143661.4221 | O178: 290400.2238
C179: 142 | E179: 949.1780545 | G179: 847.0006565 | I179: 110548.9542 | K179: 144508.4227 | O179: 289451.0458
C180: 143 | E180: 951.9464905 | G180: 844.2322205 | I180: 111500.9007 | K180: 145352.655 | O180: 288499.0993
C181: 144 | E181: 954.7230011 | G181: 841.4557099 | I181: 112455.6237 | K181: 146194.1107 | O181: 287544.3763
C182: 145 | E182: 957.5076098 | G182: 838.6711011 | I182: 113413.1313 | K182: 147032.7818 | O182: 286586.8687
C183: 146 | E183: 960.3003404 | G183: 835.8783706 | I183: 114373.4317 | K183: 147868.6601 | O183: 285626.5683
C184: 147 | E184: 963.1012164 | G184: 833.0774945 | I184: 115336.5329 | K184: 148701.7376 | O184: 284663.4671
C185: 148 | E185: 965.9102616 | G185: 830.2684493 | I185: 116302.4431 | K185: 149532.0061 | O185: 283697.5569
C186: 149 | E186: 968.7274999 | G186: 827.451211 | I186: 117271.1706 | K186: 150359.4573 | O186: 282728.8294
C187: 150 | E187: 971.5529551 | G187: 824.6257558 | I187: 118242.7236 | K187: 151184.0831 | O187: 281757.2764
C188: 151 | E188: 974.3866512 | G188: 821.7920597 | I188: 119217.1102 | K188: 152005.8751 | O188: 280782.8898
C189: 152 | E189: 977.2286123 | G189: 818.9500986 | I189: 120194.3389 | K189: 152824.8252 | O189: 279805.6611
C190: 153 | E190: 980.0788625 | G190: 816.0998485 | I190: 121174.4177 | K190: 153640.9251 | O190: 278825.5823
C191: 154 | E191: 982.9374258 | G191: 813.2412851 | I191: 122157.3551 | K191: 154454.1663 | O191: 277842.6449
C192: 155 | E192: 985.8043267 | G192: 810.3743843 | I192: 123143.1595 | K192: 155264.5407 | O192: 276856.8405
C193: 156 | E193: 988.6795893 | G193: 807.4991217 | I193: 124131.8391 | K193: 156072.0398 | O193: 275868.1609
C194: 157 | E194: 991.5632381 | G194: 804.6154728 | I194: 125123.4023 | K194: 156876.6553 | O194: 274876.5977
C195: 158 | E195: 994.4552976 | G195: 801.7234134 | I195: 126117.8576 | K195: 157678.3787 | O195: 273882.1424
C196: 159 | E196: 997.3557922 | G196: 798.8229188 | I196: 127115.2134 | K196: 158477.2017 | O196: 272884.7866
C197: 160 | E197: 1000.264747 | G197: 795.9139643 | I197: 128115.4781 | K197: 159273.1156 | O197: 271884.5219
C198: 161 | E198: 1003.182185 | G198: 792.9965255 | I198: 129118.6603 | K198: 160066.1121 | O198: 270881.3397
C199: 162 | E199: 1006.108134 | G199: 790.0705774 | I199: 130124.7685 | K199: 160856.1827 | O199: 269875.2315
C200: 163 | E200: 1009.042616 | G200: 787.1360954 | I200: 131133.8111 | K200: 161643.3188 | O200: 268866.1889
C201: 164 | E201: 1011.985657 | G201: 784.1930544 | I201: 132145.7967 | K201: 162427.5119 | O201: 267854.2033
C202: 165 | E202: 1014.937281 | G202: 781.2414295 | I202: 133160.734 | K202: 163208.7533 | O202: 266839.266
C203: 166 | E203: 1017.897515 | G203: 778.2811958 | I203: 134178.6315 | K203: 163987.0345 | O203: 265821.3685
C204: 167 | E204: 1020.866383 | G204: 775.312328 | I204: 135199.4979 | K204: 164762.3468 | O204: 264800.5021
C205: 168 | E205: 1023.84391 | G205: 772.3348011 | I205: 136223.3418 | K205: 165534.6816 | O205: 263776.6582
C206: 169 | E206: 1026.830121 | G206: 769.3485897 | I206: 137250.1719 | K206: 166304.0302 | O206: 262749.8281
C207: 170 | E207: 1029.825042 | G207: 766.3536685 | I207: 138279.997 | K207: 167070.3839 | O207: 261720.003
C208: 171 | E208: 1032.828699 | G208: 763.3500121 | I208: 139312.8257 | K208: 167833.7339 | O208: 260687.1743
C209: 172 | E209: 1035.841116 | G209: 760.337595 | I209: 140348.6668 | K209: 168594.0715 | O209: 259651.3332
C210: 173 | E210: 1038.862319 | G210: 757.3163917 | I210: 141387.5291 | K210: 169351.3879 | O210: 258612.4709
C211: 174 | E211: 1041.892334 | G211: 754.2863766 | I211: 142429.4214 | K211: 170105.6743 | O211: 257570.5786
C212: 175 | E212: 1044.931187 | G212: 751.247524 | I212: 143474.3526 | K212: 170856.9218 | O212: 256525.6474
C213: 176 | E213: 1047.978903 | G213: 748.199808 | I213: 144522.3315 | K213: 171605.1216 | O213: 255477.6685
C214: 177 | E214: 1051.035508 | G214: 745.1432029 | I214: 145573.367 | K214: 172350.2648 | O214: 254426.633
C215: 178 | E215: 1054.101028 | G215: 742.0776826 | I215: 146627.4681 | K215: 173092.3425 | O215: 253372.5319
... 182 more rows

Sheet Amort Chart
M3: Calculated | O3: Other/Alt | AG3: Calculated | AI3: Other/Alt
C4: Mortgage/Amortized Loan Analysis Worksheet | K4: Loan Parameters | M4: Adjustments | O4: Calculations | Q4: Description | W4: Mortgage/Amortized Loan Analysis Worksheet | AE4: Loan Parameters | AG4: Adjustments | AI4: Calculations | AK4: Description | BB4: preapproval based credit (confusing with a 791 score) gave a rate of | BI4: 5.44
G7: Principal | K7: 51000 | M7: =IF(OR(K$7="", K$7<K$8), "", K$7-K$8) -> 45000 | AA7: Principal | AE7: 51000 | AG7: =IF(OR(AE$7="", AE$7<AE$8), "", AE$7-AE$8) -> 36000
G8: Down Payment | K8: 6000 | AA8: Down Payment | AE8: 15000 | AS8: 82000 | AT8: base
G10: Nominal Rate Per Period (R) | I10: APR | K10: 5.44 | M10: =K$10/100 -> 0.0544 | O10: =CalcEffectiveInterestRatePerPeriod(M$10,K$16) -> 0.05577708036 | Q10: CalcEffectiveInterestRatePerPeriod | AA10: Nominal Rate Per Period (R) | AC10: APR | AE10: 5.44 | AG10: =AE$10/100 -> 0.0544 | AI10: =CalcEffectiveInterestRatePerPeriod(AG$10,AE$16) -> 0.05577708036 | AK10: CalcEffectiveInterestRatePerPeriod | AS10: 2000 | AT10: over msrp
G12: Number of Payments | I12: years | K12: 6 | M12: =IF(K$12="","",K$12*K$15) -> 72 | O12: =IF(OR(M$7="", M$10=""), "", CalcNumberOfPeriods(M$7,M$21, M$10,K$15)) -> 72 | Q12: CalcNumberOfPeriods | AA12: Number of Payments | AC12: years | AE12: 6 | AG12: =IF(AE$12="","",AE$12*AE$15) -> 144 | AI12: =IF(OR(AG$7="", AG$10=""), "", CalcNumberOfPeriods(AG$7,AG$21, AG$10,AE$15)) -> 144.0298462 | AK12: CalcNumberOfPeriods | AS12: 33000 | AT12: trade
I13: months | K13: 72 | AC13: months | AE13: 72
I15: payments per period | K15: 12 | O15: =IF(OR(M$10="", K$16=""), "", CalcPeriodicInterestRate(M$10, K$16)) -> 0.004533333238 | Q15: CalcPeriodicInterestRate | AC15: payments per period | AE15: 24 | AI15: =IF(OR(AG$10="", AE$16=""), "", CalcPeriodicInterestRate(AG$10, AE$16)) -> 0.004533333238 | AK15: CalcPeriodicInterestRate | AS15: =AS8+AS10-AS12 -> 51000 | AT15: remaining
I16: compounding per period | K16: 12 | O16: =IF(OR(M$10="", K$15="", K$16=""), "", CalcPeriodicEquivalentInterestRate(M$10, K$16, K$15)) -> 0.004533333238 | Q16: CalcPeriodicEquivalentInterestRate | AC16: compounding per period | AE16: 12 | AI16: =IF(OR(AG$10="", AE$15="", AE$16=""), "", CalcPeriodicEquivalentInterestRate(AG$10, AE$16, AE$15)) -> 0.002264103619 | AK16: CalcPeriodicEquivalentInterestRate
AS17: 6000 | AT17: down
G18: Periodic Interest Rate | I18: P | K18: =M$18 -> 0.004533333238 | M18: =IF(OR(M$10="", K$15="", K$16=""), "", CalcPeriodicEquivalentInterestRate(M$10, K$16, K$15)) -> 0.004533333238 | O18: =IF(OR(M$10="", M$12="", K$12=""), "", IF(K$12=0,"",M$10/(M$12/K$12))) -> 0.004533333333 | AA18: Periodic Interest Rate | AC18: P | AE18: =AG$18 -> 0.002264103619 | AG18: =IF(OR(AG$10="", AE$15="", AE$16=""), "", CalcPeriodicEquivalentInterestRate(AG$10, AE$16, AE$15)) -> 0.002264103619 | AI18: =IF(OR(AG$10="", AG$12="", AE$12=""), "", IF(AE$12=0,"",AG$10/(AG$12/AE$12))) -> 0.002266666667
K21: Regular Payment Amount | M21: =IF(OR(M$7="",M$12=""),"",CalcLoanPayment(M$7,M$10,M$12,K$15,K$16)) -> 733.9420776 | O21: =IF(OR(M$7="",M$10="",M$12=""),"", IF(M$10=0,(M$7/M$12),((M$10/K$15)*M$7)/(1-((1+ (M$10/K$15))^(-M$12))))) -> 733.9420981 | AE21: Regular Payment Amount | AG21: =IF(OR(AG$7="",AG$12=""),"",CalcLoanPayment(AG$7,AG$10,AG$12,AE$15,AE$16)) -> 293.244873 | AI21: =IF(OR(AG$7="",AG$10="",AG$12=""),"", IF(AG$10=0,(AG$7/AG$12),((AG$10/AE$15)*AG$7)/(1-((1+ (AG$10/AE$15))^(-AG$12))))) -> 293.296317 | AS21: =AS15-AS17 -> 45000 | AT21: financed | AW21: =157*2 -> 314 | AX21: from maintenance fund
K22: Extra Regular Payment Amount | M22: 66.06 | O22: =IF(OR(K$13="", O$24=""),"",TEXT((K$13-O$24)/12, "#0.0") & " yrs saved") -> 0.6 yrs saved | AE22: Extra Regular Payment Amount | AG22: 63.76 | AI22: =IF(OR(AE$13="", AI$24=""),"",TEXT((AE$13-AI$24)/12, "#0.0") & " yrs saved") -> -3.6 yrs saved
K24: Total Regular Payment Amount, (adjusted number of payments) | M24: =IF(M$21="","", SUM(M$21:M$22)) -> 800.0020776 | O24: =IF(OR(M$7="",M$10="",M$24="",K$15=""),"", CalcNumberOfPeriods(M$7, M$24, M$10, K$15)) -> 65.08167267 | AE24: Total Regular Payment Amount, (adjusted number of payments) | AG24: =IF(AG$21="","", SUM(AG$21:AG$22)) -> 357.004873 | AI24: =IF(OR(AG$7="",AG$10="",AG$24="",AE$15=""),"", CalcNumberOfPeriods(AG$7, AG$24, AG$10, AE$15)) -> 114.6181412
K26: Effective Interest Rate | M26: =EFFECT(K10/100,K16) -> 0.05577708023 | O26: =IF(OR(M$10="", K$16=""), "", CalcEffectiveInterestRateTPeriods(M$10, K$16)) -> 0.05577708036 | Q26: CalcEffectiveInterestRateTPeriods | AE26: Effective Interest Rate | AG26: =EFFECT(AE10/100,AE16) -> 0.05577708023 | AI26: =IF(OR(AG$10="", AE$16=""), "", CalcEffectiveInterestRateTPeriods(AG$10, AE$16)) -> 0.05577708036 | AK26: CalcEffectiveInterestRateTPeriods
K27: Effective Interest Rate, Life | O27: =IF(OR(M$10="", K$16=""), "", CalcEffectiveInterestRateTPeriods(M$10, K$16,K$12)) -> 0.3849477172 | Q27: CalcEffectiveInterestRateTPeriods | AE27: Effective Interest Rate, Life | AI27: =IF(OR(AG$10="", AE$16=""), "", CalcEffectiveInterestRateTPeriods(AG$10, AE$16,AE$12)) -> 0.3849477172 | AK27: CalcEffectiveInterestRateTPeriods | AV27: =M21 -> 733.9420776 | AW27: calculated payment
K28: Total Repaid | M28: 52065.6075 | O28: =IF(M$21="","", M$21*M$12) -> 52843.82959 | AE28: Total Repaid | AG28: 40912.72624 | AI28: =IF(AG$21="","", AG$21*AG$12) -> 42227.26172
K29: Total Interest Paid | M29: 7065.607502 | O29: =IF(O$28="","", O$28-M$7) -> 7843.82959 | Q29: =M$29/K$12 -> 1177.60125 | R29: per year | AE29: Total Interest Paid | AG29: 4912.726236 | AI29: =IF(AI$28="","", AI$28-AG$7) -> 6227.261719 | AK29: =AG$29/AE$12 -> 818.7877059 | AL29: per year | AV29: =AV27-AW21 -> 419.9420776 | AW29: FELT payment
K30: Interest as % of Principal | M30: =IF(M$28="","", M$29/M$7) -> 0.1570135 | O30: =IF(O$28="","", O$29/M$7) -> 0.1743073242 | Q30: =Q$29/12 -> 98.13343753 | R30: per month | AE30: Interest as % of Principal | AG30: =IF(AG$28="","", AG$29/AG$7) -> 0.1364646177 | AI30: =IF(AI$28="","", AI$29/AG$7) -> 0.1729794922 | AK30: =AK$29/12 -> 68.23230883 | AL30: per month
AV31: =AV29/2 -> 209.9710388 | AW31: per pay period
I33: Principal | K33: Interest | M33: Irregular Payments | AC33: Principal | AE33: Interest | AG33: Irregular Payments
E34: Principal | G34: Interest | I34: Paid | K34: Paid | M34: in excess of | O34: Principal | Y34: Principal | AA34: Interest | AC34: Paid | AE34: Paid | AG34: in excess of | AI34: Principal
C35: Period | E35: (this payment) | G35: (this payment) | I35: (cumulative) | K35: (cumulative) | M35: Principal | O35: Balance | W35: Period | Y35: (this payment) | AA35: (this payment) | AC35: (cumulative) | AE35: (cumulative) | AG35: Principal | AI35: Balance
O37: =M7 -> 45000 | AI37: =AG7 -> 36000
C38: 1 | E38: 596.0020795 | G38: 203.9999957 | I38: 596.0020795 | K38: 203.9999957 | O38: 44403.99792 | W38: 1 | Y38: 275.497183 | AA38: 81.5077303 | AC38: 275.497183 | AE38: 81.5077303 | AI38: 35724.50282
C39: 2 | E39: 598.7039555 | G39: 201.2981197 | I39: 1194.706035 | K39: 405.2981154 | O39: 43805.29397 | W39: 2 | Y39: 276.1209372 | AA39: 80.88397613 | AC39: 551.6181202 | AE39: 162.3917064 | AI39: 35448.38188
C40: 3 | E40: 601.4180801 | G40: 198.5839951 | I40: 1796.124115 | K40: 603.8821105 | O40: 43203.87588 | W40: 3 | Y40: 276.7461036 | AA40: 80.25880972 | AC40: 828.3642238 | AE40: 242.6505161 | AI40: 35171.63578
C41: 4 | E41: 604.1445086 | G41: 195.8575666 | I41: 2400.268624 | K41: 799.7396771 | O41: 42599.73138 | W41: 4 | Y41: 277.3726855 | AA41: 79.63222786 | AC41: 1105.736909 | AE41: 322.282744 | AI41: 34894.26309
C42: 5 | E42: 606.883297 | G42: 193.1187782 | I42: 3007.151921 | K42: 992.8584553 | O42: 41992.84808 | W42: 5 | Y42: 278.000686 | AA42: 79.00422736 | AC42: 1383.737595 | AE42: 401.2869714 | AI42: 34616.2624
C43: 6 | E43: 609.6345012 | G43: 190.367574 | I43: 3616.786422 | K43: 1183.226029 | O43: 41383.21358 | W43: 6 | Y43: 278.6301083 | AA43: 78.374805 | AC43: 1662.367704 | AE43: 479.6617764 | AI43: 34337.6323
C44: 7 | E44: 612.3981776 | G44: 187.6038976 | I44: 4229.184599 | K44: 1370.829927 | O44: 40770.8154 | W44: 7 | Y44: 279.2609558 | AA44: 77.74395756 | AC44: 1941.628659 | AE44: 557.4057339 | AI44: 34058.37134
C45: 8 | E45: 615.1743826 | G45: 184.8276926 | I45: 4844.358982 | K45: 1555.657619 | O45: 40155.64102 | W45: 8 | Y45: 279.8932315 | AA45: 77.11168182 | AC45: 2221.521891 | AE45: 634.5174157 | AI45: 33778.47811
C46: 9 | E46: 617.9631731 | G46: 182.0389021 | I46: 5462.322155 | K46: 1737.696522 | O46: 39537.67784 | W46: 9 | Y46: 280.5269388 | AA46: 76.47797454 | AC46: 2502.04883 | AE46: 710.9953903 | AI46: 33497.95117
C47: 10 | E47: 620.7646061 | G47: 179.2374691 | I47: 6083.086761 | K47: 1916.933991 | O47: 38916.91324 | W47: 10 | Y47: 281.1620808 | AA47: 75.84283249 | AC47: 2783.210911 | AE47: 786.8382228 | AI47: 33216.78909
C48: 11 | E48: 623.5787389 | G48: 176.4233363 | I48: 6706.6655 | K48: 2093.357327 | O48: 38293.3345 | W48: 11 | Y48: 281.7986609 | AA48: 75.2062524 | AC48: 3065.009571 | AE48: 862.0444752 | AI48: 32934.99043
C49: 12 | E49: 626.4056291 | G49: 173.5964461 | I49: 7333.071129 | K49: 2266.953773 | O49: 37666.92887 | W49: 12 | Y49: 282.4366823 | AA49: 74.56823103 | AC49: 3347.446254 | AE49: 936.6127062 | AI49: 32652.55375
C50: 13 | E50: 629.2453346 | G50: 170.7567406 | I50: 7962.316464 | K50: 2437.710514 | O50: 37037.68354 | W50: 13 | Y50: 283.0761482 | AA50: 73.92876512 | AC50: 3630.522402 | AE50: 1010.541471 | AI50: 32369.4776
C51: 14 | E51: 632.0979134 | G51: 167.9041618 | I51: 8594.414377 | K51: 2605.614676 | O51: 36405.58562 | W51: 14 | Y51: 283.7170619 | AA51: 73.28785139 | AC51: 3914.239464 | AE51: 1083.829323 | AI51: 32085.76054
C52: 15 | E52: 634.9634238 | G52: 165.0386514 | I52: 9229.377801 | K52: 2770.653327 | O52: 35770.6222 | W52: 15 | Y52: 284.3594268 | AA52: 72.64548656 | AC52: 4198.598891 | AE52: 1156.474809 | AI52: 31801.40111
C53: 16 | E53: 637.8419246 | G53: 162.1601506 | I53: 9867.219726 | K53: 2932.813478 | O53: 35132.78027 | W53: 16 | Y53: 285.003246 | AA53: 72.00166735 | AC53: 4483.602137 | AE53: 1228.476477 | AI53: 31516.39786
C54: 17 | E54: 640.7334746 | G54: 159.2686006 | I54: 10507.9532 | K54: 3092.082078 | O54: 34492.0468 | W54: 17 | Y54: 285.6485229 | AA54: 71.35639047 | AC54: 4769.25066 | AE54: 1299.832867 | AI54: 31230.74934
C55: 18 | E55: 643.638133 | G55: 156.3639422 | I55: 11151.59133 | K55: 3248.44602 | O55: 33848.40867 | W55: 18 | Y55: 286.2952607 | AA55: 70.70965262 | AC55: 5055.54592 | AE55: 1370.54252 | AI55: 30944.45408
C56: 19 | E56: 646.5559591 | G56: 153.4461161 | I56: 11798.14729 | K56: 3401.892136 | O56: 33201.85271 | W56: 19 | Y56: 286.9434628 | AA56: 70.06145048 | AC56: 5342.489383 | AE56: 1440.60397 | AI56: 30657.51062
C57: 20 | E57: 649.4870127 | G57: 150.5150625 | I57: 12447.63431 | K57: 3552.407199 | O57: 32552.36569 | W57: 20 | Y57: 287.5931326 | AA57: 69.41178075 | AC57: 5630.082516 | AE57: 1510.015751 | AI57: 30369.91748
C58: 21 | E58: 652.4313538 | G58: 147.5707214 | I58: 13100.06566 | K58: 3699.97792 | O58: 31899.93434 | W58: 21 | Y58: 288.2442732 | AA58: 68.7606401 | AC58: 5918.326789 | AE58: 1578.776391 | AI58: 30081.67321
C59: 22 | E59: 655.3890425 | G59: 144.6130326 | I59: 13755.4547 | K59: 3844.590953 | O59: 31244.5453 | W59: 22 | Y59: 288.8968881 | AA59: 68.10802519 | AC59: 6207.223677 | AE59: 1646.884416 | AI59: 29792.77632
C60: 23 | E60: 658.3601395 | G60: 141.6419357 | I60: 14413.81484 | K60: 3986.232889 | O60: 30586.18516 | W60: 23 | Y60: 289.5509806 | AA60: 67.4539327 | AC60: 6496.774658 | AE60: 1714.338349 | AI60: 29503.22534
A61: ! | C61: 24 | E61: 661.3447054 | G61: 138.6573698 | I61: 15075.15955 | K61: 4124.890258 | O61: 29924.84045 | W61: 24 | Y61: 290.206554 | AA61: 66.79835928 | AC61: 6786.981212 | AE61: 1781.136708 | AI61: 29213.01879
C62: 25 | E62: 664.3428013 | G62: 135.6592739 | I62: 15739.50235 | K62: 4260.549532 | O62: 29260.49765 | W62: 25 | Y62: 290.8636118 | AA62: 66.14130157 | AC62: 7077.844823 | AE62: 1847.27801 | AI62: 28922.15518
C63: 26 | E63: 667.3544886 | G63: 132.6475866 | I63: 16406.85684 | K63: 4393.197119 | O63: 28593.14316 | W63: 26 | Y63: 291.5221571 | AA63: 65.48275622 | AC63: 7369.366981 | AE63: 1912.760766 | AI63: 28630.63302
C64: 27 | E64: 670.3798289 | G64: 129.6222463 | I64: 17077.23667 | K64: 4522.819365 | O64: 27922.76333 | W64: 27 | Y64: 292.1821935 | AA64: 64.82271984 | AC64: 7661.549174 | AE64: 1977.583486 | AI64: 28338.45083
C65: 28 | E65: 673.4188841 | G65: 126.5831911 | I65: 17750.65555 | K65: 4649.402556 | O65: 27249.34445 | W65: 28 | Y65: 292.8437242 | AA65: 64.16118908 | AC65: 7954.392898 | AE65: 2041.744675 | AI65: 28045.6071
C66: 29 | E66: 676.4717163 | G66: 123.5303589 | I66: 18427.12727 | K66: 4772.932915 | O66: 26572.87273 | W66: 29 | Y66: 293.5067528 | AA66: 63.49816055 | AC66: 8247.899651 | AE66: 2105.242835 | AI66: 27752.10035
C67: 30 | E67: 679.538388 | G67: 120.4636872 | I67: 19106.66565 | K67: 4893.396602 | O67: 25893.33435 | W67: 30 | Y67: 294.1712825 | AA67: 62.83363085 | AC67: 8542.070934 | AE67: 2168.076466 | AI67: 27457.92907
C68: 31 | E68: 682.618962 | G68: 117.3831132 | I68: 19789.28462 | K68: 5010.779716 | O68: 25210.71538 | W68: 31 | Y68: 294.8373168 | AA68: 62.16759658 | AC68: 8836.90825 | AE68: 2230.244063 | AI68: 27163.09175
C69: 32 | E69: 685.7135012 | G69: 114.288574 | I69: 20474.99812 | K69: 5125.06829 | O69: 24525.00188 | W69: 32 | Y69: 295.504859 | AA69: 61.50005434 | AC69: 9132.413109 | AE69: 2291.744117 | AI69: 26867.58689
C70: 33 | E70: 688.822069 | G70: 111.1800062 | I70: 21163.82019 | K70: 5236.248296 | O70: 23836.17981 | W70: 33 | Y70: 296.1739126 | AA70: 60.83100072 | AC70: 9428.587022 | AE70: 2352.575118 | AI70: 26571.41298
C71: 34 | E71: 691.944729 | G71: 108.0573462 | I71: 21855.76491 | K71: 5344.305642 | O71: 23144.23509 | W71: 34 | Y71: 296.844481 | AA71: 60.1604323 | AC71: 9725.431503 | AE71: 2412.73555 | AI71: 26274.5685
C72: 35 | E72: 695.081545 | G72: 104.9205302 | I72: 22550.84646 | K72: 5449.226172 | O72: 22449.15354 | W72: 35 | Y72: 297.5165677 | AA72: 59.48834563 | AC72: 10022.94807 | AE72: 2472.223896 | AI72: 25977.05193
C73: 36 | E73: 698.2325813 | G73: 101.7694939 | I73: 23249.07904 | K73: 5550.995666 | O73: 21750.92096 | W73: 36 | Y73: 298.190176 | AA73: 58.81473729 | AC73: 10321.13825 | AE73: 2531.038633 | AI73: 25678.86175
C74: 37 | E74: 701.3979022 | G74: 98.60417295 | I74: 23950.47694 | K74: 5649.599839 | O74: 21049.52306 | W74: 37 | Y74: 298.8653095 | AA74: 58.13960384 | AC74: 10620.00356 | AE74: 2589.178237 | AI74: 25379.99644
C75: 38 | E75: 704.5775727 | G75: 95.42450252 | I75: 24655.05452 | K75: 5745.024342 | O75: 20344.94548 | W75: 38 | Y75: 299.5419715 | AA75: 57.46294181 | AC75: 10919.54553 | AE75: 2646.641179 | AI75: 25080.45447
C76: 39 | E76: 707.7716576 | G76: 92.23041759 | I76: 25362.82617 | K76: 5837.254759 | O76: 19637.17383 | W76: 39 | Y76: 300.2201656 | AA76: 56.78474775 | AC76: 11219.76569 | AE76: 2703.425927 | AI76: 24780.23431
C77: 40 | E77: 710.9802224 | G77: 89.02185281 | I77: 26073.8064 | K77: 5926.276612 | O77: 18926.1936 | W77: 40 | Y77: 300.8998951 | AA77: 56.10501818 | AC77: 11520.66559 | AE77: 2759.530945 | AI77: 24479.33441
C78: 41 | E78: 714.2033327 | G78: 85.79874254 | I78: 26788.00973 | K78: 6012.075355 | O78: 18211.99027 | W78: 41 | Y78: 301.5811637 | AA78: 55.42374964 | AC78: 11822.24675 | AE78: 2814.954694 | AI78: 24177.75325
C79: 42 | E79: 717.4410544 | G79: 82.56102083 | I79: 27505.45078 | K79: 6094.636375 | O79: 17494.54922 | W79: 42 | Y79: 302.2639747 | AA79: 54.74093864 | AC79: 12124.51073 | AE79: 2869.695633 | AI79: 23875.48927
C80: 43 | E80: 720.6934537 | G80: 79.30862145 | I80: 28226.14424 | K80: 6173.944997 | O80: 16773.85576 | W80: 43 | Y80: 302.9483317 | AA80: 54.05658168 | AC80: 12427.45906 | AE80: 2923.752215 | AI80: 23572.54094
C81: 44 | E81: 723.9605973 | G81: 76.04147787 | I81: 28950.10483 | K81: 6249.986475 | O81: 16049.89517 | W81: 44 | Y81: 303.6342381 | AA81: 53.37067526 | AC81: 12731.0933 | AE81: 2977.12289 | AI81: 23268.9067
C82: 45 | E82: 727.242552 | G82: 72.75952323 | I82: 29677.34739 | K82: 6322.745998 | O82: 15322.65261 | W82: 45 | Y82: 304.3216974 | AA82: 52.68321589 | AC82: 13035.41499 | AE82: 3029.806106 | AI82: 22964.58501
C83: 46 | E83: 730.5393848 | G83: 69.46269039 | I83: 30407.88677 | K83: 6392.208688 | O83: 14592.11323 | W83: 46 | Y83: 305.0107133 | AA83: 51.99420003 | AC83: 13340.42571 | AE83: 3081.800306 | AI83: 22659.57429
C84: 47 | E84: 733.8511633 | G84: 66.15091192 | I84: 31141.73793 | K84: 6458.3596 | O84: 13858.26207 | W84: 47 | Y84: 305.7012892 | AA84: 51.30362417 | AC84: 13646.127 | AE84: 3133.10393 | AI84: 22353.873
C85: 48 | E85: 737.1779551 | G85: 62.82412005 | I85: 31878.91589 | K85: 6521.18372 | O85: 13121.08411 | W85: 48 | Y85: 306.3934286 | AA85: 50.61148477 | AC85: 13952.52042 | AE85: 3183.715415 | AI85: 22047.47958
C86: 49 | E86: 740.5198285 | G86: 59.48224672 | I86: 32619.43572 | K86: 6580.665967 | O86: 12380.56428 | W86: 49 | Y86: 307.087135 | AA86: 49.9177783 | AC86: 14259.60756 | AE86: 3233.633193 | AI86: 21740.39244
C87: 50 | E87: 743.8768516 | G87: 56.12522357 | I87: 33363.31257 | K87: 6636.791191 | O87: 11636.68743 | W87: 50 | Y87: 307.7824121 | AA87: 49.22250121 | AC87: 14567.38997 | AE87: 3282.855694 | AI87: 21432.61003
C88: 51 | E88: 747.2490933 | G88: 52.75298191 | I88: 34110.56166 | K88: 6689.544173 | O88: 10889.43834 | W88: 51 | Y88: 308.4792634 | AA88: 48.52564994 | AC88: 14875.86924 | AE88: 3331.381344 | AI88: 21124.13076
C89: 52 | E89: 750.6366224 | G89: 49.36545276 | I89: 34861.19828 | K89: 6738.909625 | O89: 10138.80172 | W89: 52 | Y89: 309.1776924 | AA89: 47.82722092 | AC89: 15185.04693 | AE89: 3379.208565 | AI89: 20814.95307
C90: 53 | E90: 754.0395084 | G90: 45.96256681 | I90: 35615.23779 | K90: 6784.872192 | O90: 9384.762207 | W90: 53 | Y90: 309.8777027 | AA90: 47.12721059 | AC90: 15494.92463 | AE90: 3426.335776 | AI90: 20505.07537
C91: 54 | E91: 757.4578208 | G91: 42.54425444 | I91: 36372.69561 | K91: 6827.416447 | O91: 8627.304386 | W91: 54 | Y91: 310.579298 | AA91: 46.42561536 | AC91: 15805.50393 | AE91: 3472.761391 | AI91: 20194.49607
C92: 55 | E92: 760.8916295 | G92: 39.11044573 | I92: 37133.58724 | K92: 6866.526892 | O92: 7866.412757 | W92: 55 | Y92: 311.2824817 | AA92: 45.72243165 | AC92: 16116.78641 | AE92: 3518.483823 | AI92: 19883.21359
C93: 56 | E93: 764.3410048 | G93: 35.66107041 | I93: 37897.92825 | K93: 6902.187963 | O93: 7102.071752 | W93: 56 | Y93: 311.9872575 | AA93: 45.01765585 | AC93: 16428.77367 | AE93: 3563.501479 | AI93: 19571.22633
C94: 57 | E94: 767.8060173 | G94: 32.19605793 | I94: 38665.73427 | K94: 6934.384021 | O94: 6334.265735 | W94: 57 | Y94: 312.693629 | AA94: 44.31128437 | AC94: 16741.4673 | AE94: 3607.812763 | AI94: 19258.5327
C95: 58 | E95: 771.2867378 | G95: 28.71533739 | I95: 39437.021 | K95: 6963.099358 | O95: 5562.978997 | W95: 58 | Y95: 313.4015997 | AA95: 43.6033136 | AC95: 17054.8689 | AE95: 3651.416077 | AI95: 18945.1311
C96: 59 | E96: 774.7832376 | G96: 25.21883759 | I96: 40211.80424 | K96: 6988.318196 | O96: 4788.195759 | W96: 59 | Y96: 314.1111734 | AA96: 42.8937399 | AC96: 17368.98007 | AE96: 3694.309817 | AI96: 18631.01993
C97: 60 | E97: 778.2955882 | G97: 21.70648699 | I97: 40990.09983 | K97: 7010.024683 | O97: 4009.900171 | W97: 60 | Y97: 314.8223537 | AA97: 42.18255966 | AC97: 17683.80242 | AE97: 3736.492376 | AI97: 18316.19758
C98: 61 | E98: 781.8238615 | G98: 18.17821373 | I98: 41771.92369 | K98: 7028.202896 | O98: 3228.076309 | W98: 61 | Y98: 315.5351441 | AA98: 41.46976923 | AC98: 17999.33757 | AE98: 3777.962145 | AI98: 18000.66243
C99: 62 | E99: 785.3681296 | G99: 14.63394563 | I99: 42557.29182 | K99: 7042.836842 | O99: 2442.70818 | W99: 62 | Y99: 316.2495484 | AA99: 40.75536496 | AC99: 18315.58712 | AE99: 3818.71751 | AI99: 17684.41288
C100: 63 | E100: 788.928465 | G100: 11.07361018 | I100: 43346.22029 | K100: 7053.910452 | O100: 1653.779715 | W100: 63 | Y100: 316.9655701 | AA100: 40.03934322 | AC100: 18632.55269 | AE100: 3858.756854 | AI100: 17367.44731
C101: 64 | E101: 792.5049406 | G101: 7.49713455 | I101: 44138.72523 | K101: 7061.407587 | O101: 861.2747742 | W101: 64 | Y101: 317.683213 | AA101: 39.32170032 | AC101: 18950.2359 | AE101: 3898.078554 | AI101: 17049.7641
C102: 65 | E102: 796.0976296 | G102: 3.904445561 | I102: 44934.82286 | K102: 7065.312032 | O102: 65.17714457 | W102: 65 | Y102: 318.4024807 | AA102: 38.60243261 | AC102: 19268.63838 | AE102: 3936.680987 | AI102: 16731.36162
C103: 66 | E103: 65.17714457 | G103: 0.2954697158 | I103: 45000 | K103: 7065.607502 | O103: 0 | W103: 66 | Y103: 319.1233769 | AA103: 37.8815364 | AC103: 19587.76176 | AE103: 3974.562523 | AI103: 16412.23824
C104: 67 | E104: 0 | G104: 0 | I104: 45000 | K104: 7065.607502 | O104: 0 | W104: 67 | Y104: 319.8459053 | AA104: 37.15900801 | AC104: 19907.60766 | AE104: 4011.721531 | AI104: 16092.39234
C105: 68 | E105: 0 | G105: 0 | I105: 45000 | K105: 7065.607502 | O105: 0 | W105: 68 | Y105: 320.5700696 | AA105: 36.43484374 | AC105: 20228.17773 | AE105: 4048.156375 | AI105: 15771.82227
C106: 69 | E106: 0 | G106: 0 | I106: 45000 | K106: 7065.607502 | O106: 0 | W106: 69 | Y106: 321.2958734 | AA106: 35.70903988 | AC106: 20549.47361 | AE106: 4083.865415 | AI106: 15450.52639
C107: 70 | E107: 0 | G107: 0 | I107: 45000 | K107: 7065.607502 | O107: 0 | W107: 70 | Y107: 322.0233206 | AA107: 34.98159273 | AC107: 20871.49693 | AE107: 4118.847007 | AI107: 15128.50307
C108: 71 | E108: 0 | G108: 0 | I108: 45000 | K108: 7065.607502 | O108: 0 | W108: 71 | Y108: 322.7524148 | AA108: 34.25249857 | AC108: 21194.24934 | AE108: 4153.099506 | AI108: 14805.75066
C109: 72 | E109: 0 | G109: 0 | I109: 45000 | K109: 7065.607502 | O109: 0 | W109: 72 | Y109: 323.4831597 | AA109: 33.52175366 | AC109: 21517.7325 | AE109: 4186.62126 | AI109: 14482.2675
W110: 73 | Y110: 324.2155591 | AA110: 32.78935426 | AC110: 21841.94806 | AE110: 4219.410614 | AI110: 14158.05194
W111: 74 | Y111: 324.9496167 | AA111: 32.05529664 | AC111: 22166.89768 | AE111: 4251.46591 | AI111: 13833.10232
W112: 75 | Y112: 325.6853363 | AA112: 31.31957704 | AC112: 22492.58301 | AE112: 4282.785487 | AI112: 13507.41699
W113: 76 | Y113: 326.4227216 | AA113: 30.58219169 | AC113: 22819.00573 | AE113: 4313.367679 | AI113: 13180.99427
W114: 77 | Y114: 327.1617765 | AA114: 29.84313682 | AC114: 23146.16751 | AE114: 4343.210816 | AI114: 12853.83249
W115: 78 | Y115: 327.9025047 | AA115: 29.10240866 | AC115: 23474.07002 | AE115: 4372.313225 | AI115: 12525.92998
W116: 79 | Y116: 328.6449099 | AA116: 28.36000341 | AC116: 23802.71493 | AE116: 4400.673228 | AI116: 12197.28507
W117: 80 | Y117: 329.388996 | AA117: 27.61591728 | AC117: 24132.10392 | AE117: 4428.289145 | AI117: 11867.89608
W118: 81 | Y118: 330.1347669 | AA118: 26.87014647 | AC118: 24462.23869 | AE118: 4455.159292 | AI118: 11537.76131
W119: 82 | Y119: 330.8822262 | AA119: 26.12268715 | AC119: 24793.12091 | AE119: 4481.281979 | AI119: 11206.87909
W120: 83 | Y120: 331.6313778 | AA120: 25.3735355 | AC120: 25124.75229 | AE120: 4506.655514 | AI120: 10875.24771
W121: 84 | Y121: 332.3822256 | AA121: 24.6226877 | AC121: 25457.13452 | AE121: 4531.278202 | AI121: 10542.86548
W122: 85 | Y122: 333.1347734 | AA122: 23.8701399 | AC122: 25790.26929 | AE122: 4555.148342 | AI122: 10209.73071
W123: 86 | Y123: 333.8890251 | AA123: 23.11588825 | AC123: 26124.15832 | AE123: 4578.26423 | AI123: 9875.841684
W124: 87 | Y124: 334.6449844 | AA124: 22.3599289 | AC124: 26458.8033 | AE124: 4600.624159 | AI124: 9541.196699
W125: 88 | Y125: 335.4026553 | AA125: 21.60225798 | AC125: 26794.20596 | AE125: 4622.226417 | AI125: 9205.794044
W126: 89 | Y126: 336.1620417 | AA126: 20.84287161 | AC126: 27130.368 | AE126: 4643.069289 | AI126: 8869.632002
W127: 90 | Y127: 336.9231474 | AA127: 20.08176592 | AC127: 27467.29114 | AE127: 4663.151055 | AI127: 8532.708855
W128: 91 | Y128: 337.6859763 | AA128: 19.318937 | AC128: 27804.97712 | AE128: 4682.469992 | AI128: 8195.022879
W129: 92 | Y129: 338.4505324 | AA129: 18.55438096 | AC129: 28143.42765 | AE129: 4701.024373 | AI129: 7856.572346
W130: 93 | Y130: 339.2168194 | AA130: 17.78809389 | AC130: 28482.64447 | AE130: 4718.812467 | AI130: 7517.355527
W131: 94 | Y131: 339.9848415 | AA131: 17.02007186 | AC131: 28822.62931 | AE131: 4735.832538 | AI131: 7177.370685
W132: 95 | Y132: 340.7546024 | AA132: 16.25031095 | AC132: 29163.38392 | AE132: 4752.082849 | AI132: 6836.616083
W133: 96 | Y133: 341.5261061 | AA133: 15.47880722 | AC133: 29504.91002 | AE133: 4767.561657 | AI133: 6495.089977
W134: 97 | Y134: 342.2993566 | AA134: 14.70555672 | AC134: 29847.20938 | AE134: 4782.267213 | AI134: 6152.79062
W135: 98 | Y135: 343.0743578 | AA135: 13.93055551 | AC135: 30190.28374 | AE135: 4796.197769 | AI135: 5809.716262
W136: 99 | Y136: 343.8511137 | AA136: 13.15379962 | AC136: 30534.13485 | AE136: 4809.351568 | AI136: 5465.865149
W137: 100 | Y137: 344.6296283 | AA137: 12.37528507 | AC137: 30878.76448 | AE137: 4821.726854 | AI137: 5121.235521
W138: 101 | Y138: 345.4099055 | AA138: 11.59500788 | AC138: 31224.17438 | AE138: 4833.321861 | AI138: 4775.825615
W139: 102 | Y139: 346.1919493 | AA139: 10.81296406 | AC139: 31570.36633 | AE139: 4844.134825 | AI139: 4429.633666
W140: 103 | Y140: 346.9757637 | AA140: 10.02914962 | AC140: 31917.3421 | AE140: 4854.163975 | AI140: 4082.657902
W141: 104 | Y141: 347.7613528 | AA141: 9.243560533 | AC141: 32265.10345 | AE141: 4863.407536 | AI141: 3734.896549
W142: 105 | Y142: 348.5487205 | AA142: 8.456192795 | AC142: 32613.65217 | AE142: 4871.863728 | AI142: 3386.347829
W143: 106 | Y143: 349.337871 | AA143: 7.667042376 | AC143: 32962.99004 | AE143: 4879.530771 | AI143: 3037.009958
W144: 107 | Y144: 350.1288081 | AA144: 6.876105238 | AC144: 33313.11885 | AE144: 4886.406876 | AI144: 2686.88115
W145: 108 | Y145: 350.921536 | AA145: 6.083377336 | AC145: 33664.04039 | AE145: 4892.490253 | AI145: 2335.959614
W146: 109 | Y146: 351.7160587 | AA146: 5.288854616 | AC146: 34015.75645 | AE146: 4897.779108 | AI146: 1984.243555
W147: 110 | Y147: 352.5123803 | AA147: 4.492533015 | AC147: 34368.26883 | AE147: 4902.271641 | AI147: 1631.731175
W148: 111 | Y148: 353.3105049 | AA148: 3.694408458 | AC148: 34721.57933 | AE148: 4905.966049 | AI148: 1278.42067
W149: 112 | Y149: 354.1104365 | AA149: 2.894476866 | AC149: 35075.68977 | AE149: 4908.860526 | AI149: 924.3102333
W150: 113 | Y150: 354.9121792 | AA150: 2.092734145 | AC150: 35430.60195 | AE150: 4910.95326 | AI150: 569.3980541
W151: 114 | Y151: 355.7157371 | AA151: 1.289176195 | AC151: 35786.31768 | AE151: 4912.242437 | AI151: 213.682317
W152: 115 | Y152: 213.682317 | AA152: 0.4837989074 | AC152: 36000 | AE152: 4912.726236 | AI152: 0
W153: 116 | Y153: 0 | AA153: 0 | AC153: 36000 | AE153: 4912.726236 | AI153: 0
W154: 117 | Y154: 0 | AA154: 0 | AC154: 36000 | AE154: 4912.726236 | AI154: 0
W155: 118 | Y155: 0 | AA155: 0 | AC155: 36000 | AE155: 4912.726236 | AI155: 0
W156: 119 | Y156: 0 | AA156: 0 | AC156: 36000 | AE156: 4912.726236 | AI156: 0
W157: 120 | Y157: 0 | AA157: 0 | AC157: 36000 | AE157: 4912.726236 | AI157: 0
W158: 121 | Y158: 0 | AA158: 0 | AC158: 36000 | AE158: 4912.726236 | AI158: 0
W159: 122 | Y159: 0 | AA159: 0 | AC159: 36000 | AE159: 4912.726236 | AI159: 0
W160: 123 | Y160: 0 | AA160: 0 | AC160: 36000 | AE160: 4912.726236 | AI160: 0
W161: 124 | Y161: 0 | AA161: 0 | AC161: 36000 | AE161: 4912.726236 | AI161: 0
W162: 125 | Y162: 0 | AA162: 0 | AC162: 36000 | AE162: 4912.726236 | AI162: 0
W163: 126 | Y163: 0 | AA163: 0 | AC163: 36000 | AE163: 4912.726236 | AI163: 0
W164: 127 | Y164: 0 | AA164: 0 | AC164: 36000 | AE164: 4912.726236 | AI164: 0
W165: 128 | Y165: 0 | AA165: 0 | AC165: 36000 | AE165: 4912.726236 | AI165: 0
W166: 129 | Y166: 0 | AA166: 0 | AC166: 36000 | AE166: 4912.726236 | AI166: 0
W167: 130 | Y167: 0 | AA167: 0 | AC167: 36000 | AE167: 4912.726236 | AI167: 0
W168: 131 | Y168: 0 | AA168: 0 | AC168: 36000 | AE168: 4912.726236 | AI168: 0
W169: 132 | Y169: 0 | AA169: 0 | AC169: 36000 | AE169: 4912.726236 | AI169: 0
W170: 133 | Y170: 0 | AA170: 0 | AC170: 36000 | AE170: 4912.726236 | AI170: 0
W171: 134 | Y171: 0 | AA171: 0 | AC171: 36000 | AE171: 4912.726236 | AI171: 0
W172: 135 | Y172: 0 | AA172: 0 | AC172: 36000 | AE172: 4912.726236 | AI172: 0
W173: 136 | Y173: 0 | AA173: 0 | AC173: 36000 | AE173: 4912.726236 | AI173: 0
W174: 137 | Y174: 0 | AA174: 0 | AC174: 36000 | AE174: 4912.726236 | AI174: 0
W175: 138 | Y175: 0 | AA175: 0 | AC175: 36000 | AE175: 4912.726236 | AI175: 0
W176: 139 | Y176: 0 | AA176: 0 | AC176: 36000 | AE176: 4912.726236 | AI176: 0
W177: 140 | Y177: 0 | AA177: 0 | AC177: 36000 | AE177: 4912.726236 | AI177: 0
W178: 141 | Y178: 0 | AA178: 0 | AC178: 36000 | AE178: 4912.726236 | AI178: 0
W179: 142 | Y179: 0 | AA179: 0 | AC179: 36000 | AE179: 4912.726236 | AI179: 0
W180: 143 | Y180: 0 | AA180: 0 | AC180: 36000 | AE180: 4912.726236 | AI180: 0
W181: 144 | Y181: 0 | AA181: 0 | AC181: 36000 | AE181: 4912.726236 | AI181: 0

Sheet AMEX-Loan
M3: Calculated | O3: Other/Alt | AG3: Calculated | AI3: Other/Alt
C4: Mortgage/Amortized Loan Analysis Worksheet | K4: Loan Parameters | M4: Adjustments | O4: Calculations | Q4: Description | W4: Mortgage/Amortized Loan Analysis Worksheet | AE4: Loan Parameters | AG4: Adjustments | AI4: Calculations | AK4: Description
G7: Principal | K7: 3000 | M7: =IF(OR(K$7="", K$7<K$8), "", K$7-K$8) -> 2500 | AA7: Principal | AE7: 3000 | AG7: =IF(OR(AE$7="", AE$7<AE$8), "", AE$7-AE$8) -> 3000
G8: Down Payment | K8: 500 | AA8: Down Payment
G10: Nominal Rate Per Period (R) | I10: APR | K10: 16.44 | M10: =K$10/100 -> 0.1644 | O10: =CalcEffectiveInterestRatePerPeriod(M$10,K$16) -> 0.1773710549 | Q10: CalcEffectiveInterestRatePerPeriod | AA10: Nominal Rate Per Period (R) | AC10: APR | AE10: 16.44 | AG10: =AE$10/100 -> 0.1644 | AI10: =CalcEffectiveInterestRatePerPeriod(AG$10,AE$16) -> 0.1773710549 | AK10: CalcEffectiveInterestRatePerPeriod
G12: Number of Payments | I12: years | K12: 3 | M12: =IF(K$12="","",K$12*K$15) -> 36 | O12: =IF(OR(M$7="", M$10=""), "", CalcNumberOfPeriods(M$7,M$21, M$10,K$15)) -> 36.00001144 | Q12: CalcNumberOfPeriods | AA12: Number of Payments | AC12: years | AE12: 3 | AG12: =IF(AE$12="","",AE$12*AE$15) -> 36 | AI12: =IF(OR(AG$7="", AG$10=""), "", CalcNumberOfPeriods(AG$7,AG$21, AG$10,AE$15)) -> 36.00001907 | AK12: CalcNumberOfPeriods
I13: months | K13: 36 | AC13: months | AE13: 36
I15: payments per period | K15: 12 | O15: =IF(OR(M$10="", K$16=""), "", CalcPeriodicInterestRate(M$10, K$16)) -> 0.01370000001 | Q15: CalcPeriodicInterestRate | AC15: payments per period | AE15: 12 | AI15: =IF(OR(AG$10="", AE$16=""), "", CalcPeriodicInterestRate(AG$10, AE$16)) -> 0.01370000001 | AK15: CalcPeriodicInterestRate
I16: compounding per period | K16: 12 | O16: =IF(OR(M$10="", K$15="", K$16=""), "", CalcPeriodicEquivalentInterestRate(M$10, K$16, K$15)) -> 0.01370000001 | Q16: CalcPeriodicEquivalentInterestRate | AC16: compounding per period | AE16: 12 | AI16: =IF(OR(AG$10="", AE$15="", AE$16=""), "", CalcPeriodicEquivalentInterestRate(AG$10, AE$16, AE$15)) -> 0.01370000001 | AK16: CalcPeriodicEquivalentInterestRate
G18: Periodic Interest Rate | I18: P | K18: =M$18 -> 0.01370000001 | M18: =IF(OR(M$10="", K$15="", K$16=""), "", CalcPeriodicEquivalentInterestRate(M$10, K$16, K$15)) -> 0.01370000001 | O18: =IF(OR(M$10="", M$12="", K$12=""), "", IF(K$12=0,"",M$10/(M$12/K$12))) -> 0.0137 | AA18: Periodic Interest Rate | AC18: P | AE18: =AG$18 -> 0.01370000001 | AG18: =IF(OR(AG$10="", AE$15="", AE$16=""), "", CalcPeriodicEquivalentInterestRate(AG$10, AE$16, AE$15)) -> 0.01370000001 | AI18: =IF(OR(AG$10="", AG$12="", AE$12=""), "", IF(AE$12=0,"",AG$10/(AG$12/AE$12))) -> 0.0137
K21: Regular Payment Amount | M21: =IF(OR(M$7="",M$12=""),"",CalcLoanPayment(M$7,M$10,M$12,K$15,K$16)) -> 88.43662262 | O21: =IF(OR(M$7="",M$10="",M$12=""),"", IF(M$10=0,(M$7/M$12),((M$10/K$15)*M$7)/(1-((1+ (M$10/K$15))^(-M$12))))) -> 88.43662002 | AE21: Regular Payment Amount | AG21: =IF(OR(AG$7="",AG$12=""),"",CalcLoanPayment(AG$7,AG$10,AG$12,AE$15,AE$16)) -> 106.1239471 | AI21: =IF(OR(AG$7="",AG$10="",AG$12=""),"", IF(AG$10=0,(AG$7/AG$12),((AG$10/AE$15)*AG$7)/(1-((1+ (AG$10/AE$15))^(-AG$12))))) -> 106.123944
K22: Extra Regular Payment Amount | M22: 180 | O22: =IF(OR(K$13="", O$24=""),"",TEXT((K$13-O$24)/12, "#0.0") & " yrs saved") -> 2.2 yrs saved | AE22: Extra Regular Payment Amount | AI22: =IF(OR(AE$13="", AI$24=""),"",TEXT((AE$13-AI$24)/12, "#0.0") & " yrs saved") -> 0.0 yrs saved
K24: Total Regular Payment Amount, (adjusted number of payments) | M24: =IF(M$21="","", SUM(M$21:M$22)) -> 268.4366226 | O24: =IF(OR(M$7="",M$10="",M$24="",K$15=""),"", CalcNumberOfPeriods(M$7, M$24, M$10, K$15)) -> 10.03134251 | AE24: Total Regular Payment Amount, (adjusted number of payments) | AG24: =IF(AG$21="","", SUM(AG$21:AG$22)) -> 106.1239471 | AI24: =IF(OR(AG$7="",AG$10="",AG$24="",AE$15=""),"", CalcNumberOfPeriods(AG$7, AG$24, AG$10, AE$15)) -> 36.00001907
K26: Effective Interest Rate | M26: =EFFECT(K10/100,K16) -> 0.1773710637 | O26: =IF(OR(M$10="", K$16=""), "", CalcEffectiveInterestRateTPeriods(M$10, K$16)) -> 0.1773710549 | Q26: CalcEffectiveInterestRateTPeriods | AE26: Effective Interest Rate | AG26: =EFFECT(AE10/100,AE16) -> 0.1773710637 | AI26: =IF(OR(AG$10="", AE$16=""), "", CalcEffectiveInterestRateTPeriods(AG$10, AE$16)) -> 0.1773710549 | AK26: CalcEffectiveInterestRateTPeriods
K27: Effective Interest Rate, Life | O27: =IF(OR(M$10="", K$16=""), "", CalcEffectiveInterestRateTPeriods(M$10, K$16,K$12)) -> 0.6320748329 | Q27: CalcEffectiveInterestRateTPeriods | AE27: Effective Interest Rate, Life | AI27: =IF(OR(AG$10="", AE$16=""), "", CalcEffectiveInterestRateTPeriods(AG$10, AE$16,AE$12)) -> 0.6320748329 | AK27: CalcEffectiveInterestRateTPeriods
K28: Total Repaid | M28: 2692.835313 | O28: =IF(M$21="","", M$21*M$12) -> 3183.718414 | AE28: Total Repaid | AG28: 3820.460449 | AI28: =IF(AG$21="","", AG$21*AG$12) -> 3820.462097
K29: Total Interest Paid | M29: 192.8353132 | O29: =IF(O$28="","", O$28-M$7) -> 683.7184143 | Q29: =M$29/K$12 -> 64.27843775 | R29: per year | AE29: Total Interest Paid | AG29: 820.4624181 | AI29: =IF(AI$28="","", AI$28-AG$7) -> 820.4620972 | AK29: =AG$29/AE$12 -> 273.4874727 | AL29: per year
K30: Interest as % of Principal | M30: =IF(M$28="","", M$29/M$7) -> 0.0771341253 | O30: =IF(O$28="","", O$29/M$7) -> 0.2734873657 | Q30: =Q$29/12 -> 5.356536479 | R30: per month | AE30: Interest as % of Principal | AG30: =IF(AG$28="","", AG$29/AG$7) -> 0.2734874727 | AI30: =IF(AI$28="","", AI$29/AG$7) -> 0.2734873657 | AK30: =AK$29/12 -> 22.79062272 | AL30: per month
I33: Principal | K33: Interest | M33: Irregular Payments | AC33: Principal | AE33: Interest | AG33: Irregular Payments
E34: Principal | G34: Interest | I34: Paid | K34: Paid | M34: in excess of | O34: Principal | Y34: Principal | AA34: Interest | AC34: Paid | AE34: Paid | AG34: in excess of | AI34: Principal
C35: Period | E35: (this payment) | G35: (this payment) | I35: (cumulative) | K35: (cumulative) | M35: Principal | O35: Balance | W35: Period | Y35: (this payment) | AA35: (this payment) | AC35: (cumulative) | AE35: (cumulative) | AG35: Principal | AI35: Balance
O37: =M7 -> 2500 | AI37: =AG7 -> 3000
C38: 1 | E38: 234.186615 | G38: 34.25000003 | I38: 234.186615 | K38: 34.25000003 | O38: 2265.813385 | W38: 1 | Y38: 65.02390134 | AA38: 41.10000003 | AC38: 65.02390134 | AE38: 41.10000003 | AI38: 2934.976099 | AK38: august
C39: 2 | E39: 237.3949716 | G39: 31.0416434 | I39: 471.5815866 | K39: 65.29164342 | O39: 2028.418413 | W39: 2 | Y39: 65.91472878 | AA39: 40.20917258 | AC39: 130.9386301 | AE39: 81.30917261 | AI39: 2869.06137 | AK39: september
C40: 3 | E40: 240.6472827 | G40: 27.78933229 | I40: 712.2288693 | K40: 93.08097571 | O40: 1787.771131 | W40: 3 | Y40: 66.81776057 | AA40: 39.3061408 | AC40: 197.7563907 | AE40: 120.6153134 | AI40: 2802.243609 | AK40: october
C41: 4 | E41: 243.9441505 | G41: 24.49246451 | I41: 956.1730197 | K41: 117.5734402 | O41: 1543.82698 | W41: 4 | Y41: 67.73316389 | AA41: 38.39073748 | AC41: 265.4895546 | AE41: 159.0060509 | AI41: 2734.510445 | AK41: november
C42: 5 | E42: 247.2861853 | G42: 21.15042965 | I42: 1203.459205 | K42: 138.7238699 | O42: 1296.540795 | W42: 5 | Y42: 68.66110824 | AA42: 37.46279313 | AC42: 334.1506628 | AE42: 196.468844 | AI42: 2665.849337 | AK42: december
C43: 6 | E43: 250.6740061 | G43: 17.7626089 | I43: 1454.133211 | K43: 156.4864788 | O43: 1045.866789 | W43: 6 | Y43: 69.60176542 | AA43: 36.52213595 | AC43: 403.7524282 | AE43: 232.99098 | AI43: 2596.247572 | AK43: january
C44: 7 | E44: 254.10824 | G44: 14.32837502 | I44: 1708.241451 | K44: 170.8148538 | O44: 791.7585489 | W44: 7 | Y44: 70.55530961 | AA44: 35.56859176 | AC44: 474.3077378 | AE44: 268.5595717 | AI44: 2525.692262 | AK44: february
C45: 8 | E45: 257.5895229 | G45: 10.84709213 | I45: 1965.830974 | K45: 181.6619459 | O45: 534.169026 | W45: 8 | Y45: 71.52191735 | AA45: 34.60198402 | AC45: 545.8296552 | AE45: 303.1615557 | AI45: 2454.170345 | AK45: march
C46: 9 | E46: 261.1184993 | G46: 7.318115662 | I46: 2226.949473 | K46: 188.9800616 | O46: 273.0505267 | W46: 9 | Y46: 72.50176762 | AA46: 33.62213375 | AC46: 618.3314228 | AE46: 336.7836895 | AI46: 2381.668577 | AK46: april
C47: 10 | E47: 264.6958228 | G47: 3.740792218 | I47: 2491.645296 | K47: 192.7208538 | O47: 8.354703892 | W47: 10 | Y47: 73.49504183 | AA47: 32.62885953 | AC47: 691.8264646 | AE47: 369.412549 | AI47: 2308.173535 | AK47: may
C48: 11 | E48: 8.354703892 | G48: 0.1144594434 | I48: 2500 | K48: 192.8353132 | O48: 0 | W48: 11 | Y48: 74.50192391 | AA48: 31.62197746 | AC48: 766.3283886 | AE48: 401.0345265 | AI48: 2233.671611 | AK48: june
C49: 12 | E49: 0 | G49: 0 | I49: 2500 | K49: 192.8353132 | O49: 0 | W49: 12 | Y49: 75.52260027 | AA49: 30.6013011 | AC49: 841.8509888 | AE49: 431.6358276 | AI49: 2158.149011 | AK49: july
C50: 13 | E50: 0 | G50: 0 | I50: 2500 | K50: 192.8353132 | O50: 0 | W50: 13 | Y50: 76.55725989 | AA50: 29.56664148 | AC50: 918.4082487 | AE50: 461.2024691 | AI50: 2081.591751
C51: 14 | E51: 0 | G51: 0 | I51: 2500 | K51: 192.8353132 | O51: 0 | W51: 14 | Y51: 77.60609435 | AA51: 28.51780701 | AC51: 996.0143431 | AE51: 489.7202761 | AI51: 2003.985657
C52: 15 | E52: 0 | G52: 0 | I52: 2500 | K52: 192.8353132 | O52: 0 | W52: 15 | Y52: 78.66929785 | AA52: 27.45460352 | AC52: 1074.683641 | AE52: 517.1748796 | AI52: 1925.316359
C53: 16 | E53: 0 | G53: 0 | I53: 2500 | K53: 192.8353132 | O53: 0 | W53: 16 | Y53: 79.74706723 | AA53: 26.37683414 | AC53: 1154.430708 | AE53: 543.5517137 | AI53: 1845.569292
C54: 17 | E54: 0 | G54: 0 | I54: 2500 | K54: 192.8353132 | O54: 0 | W54: 17 | Y54: 80.83960205 | AA54: 25.28429932 | AC54: 1235.27031 | AE54: 568.8360131 | AI54: 1764.72969
C55: 18 | E55: 0 | G55: 0 | I55: 2500 | K55: 192.8353132 | O55: 0 | W55: 18 | Y55: 81.9471046 | AA55: 24.17679677 | AC55: 1317.217415 | AE55: 593.0128098 | AI55: 1682.782585
C56: 19 | E56: 0 | G56: 0 | I56: 2500 | K56: 192.8353132 | O56: 0 | W56: 19 | Y56: 83.06977993 | AA56: 23.05412143 | AC56: 1400.287195 | AE56: 616.0669313 | AI56: 1599.712805
C57: 20 | E57: 0 | G57: 0 | I57: 2500 | K57: 192.8353132 | O57: 0 | W57: 20 | Y57: 84.20783592 | AA57: 21.91606545 | AC57: 1484.495031 | AE57: 637.9829967 | AI57: 1515.504969
C58: 21 | E58: 0 | G58: 0 | I58: 2500 | K58: 192.8353132 | O58: 0 | W58: 21 | Y58: 85.36148327 | AA58: 20.7624181 | AC58: 1569.856514 | AE58: 658.7454148 | AI58: 1430.143486
C59: 22 | E59: 0 | G59: 0 | I59: 2500 | K59: 192.8353132 | O59: 0 | W59: 22 | Y59: 86.53093559 | AA59: 19.59296577 | AC59: 1656.38745 | AE59: 678.3383806 | AI59: 1343.61255
C60: 23 | E60: 0 | G60: 0 | I60: 2500 | K60: 192.8353132 | O60: 0 | W60: 23 | Y60: 87.71640941 | AA60: 18.40749196 | AC60: 1744.103859 | AE60: 696.7458725 | AI60: 1255.896141
C61: 24 | E61: 0 | G61: 0 | I61: 2500 | K61: 192.8353132 | O61: 0 | W61: 24 | Y61: 88.91812422 | AA61: 17.20577715 | AC61: 1833.021983 | AE61: 713.9516497 | AI61: 1166.978017
C62: 25 | E62: 0 | G62: 0 | I62: 2500 | K62: 192.8353132 | O62: 0 | W62: 25 | Y62: 90.13630252 | AA62: 15.98759884 | AC62: 1923.158286 | AE62: 729.9392485 | AI62: 1076.841714
C63: 26 | E63: 0 | G63: 0 | I63: 2500 | K63: 192.8353132 | O63: 0 | W63: 26 | Y63: 91.37116987 | AA63: 14.7527315 | AC63: 2014.529456 | AE63: 744.69198 | AI63: 985.4705445
C64: 27 | E64: 0 | G64: 0 | I64: 2500 | K64: 192.8353132 | O64: 0 | W64: 27 | Y64: 92.6229549 | AA64: 13.50094647 | AC64: 2107.15241 | AE64: 758.1929265 | AI64: 892.8475896
C65: 28 | E65: 0 | G65: 0 | I65: 2500 | K65: 192.8353132 | O65: 0 | W65: 28 | Y65: 93.89188938 | AA65: 12.23201199 | AC65: 2201.0443 | AE65: 770.4249385 | AI65: 798.9557002
C66: 29 | E66: 0 | G66: 0 | I66: 2500 | K66: 192.8353132 | O66: 0 | W66: 29 | Y66: 95.17820827 | AA66: 10.9456931 | AC66: 2296.222508 | AE66: 781.3706316 | AI66: 703.7774919
C67: 30 | E67: 0 | G67: 0 | I67: 2500 | K67: 192.8353132 | O67: 0 | W67: 30 | Y67: 96.48214972 | AA67: 9.641751647 | AC67: 2392.704658 | AE67: 791.0123832 | AI67: 607.2953422
C68: 31 | E68: 0 | G68: 0 | I68: 2500 | K68: 192.8353132 | O68: 0 | W68: 31 | Y68: 97.80395517 | AA68: 8.319946195 | AC68: 2490.508613 | AE68: 799.3323294 | AI68: 509.491387
A69: x | C69: 32 | E69: 0 | G69: 0 | I69: 2500 | K69: 192.8353132 | O69: 0 | W69: 32 | Y69: 99.14386936 | AA69: 6.980032008 | AC69: 2589.652482 | AE69: 806.3123614 | AI69: 410.3475177
C70: 33 | E70: 0 | G70: 0 | I70: 2500 | K70: 192.8353132 | O70: 0 | W70: 33 | Y70: 100.5021404 | AA70: 5.621760996 | AC70: 2690.154623 | AE70: 811.9341224 | AI70: 309.8453773
C71: 34 | E71: 0 | G71: 0 | I71: 2500 | K71: 192.8353132 | O71: 0 | W71: 34 | Y71: 101.8790197 | AA71: 4.244881672 | AC71: 2792.033642 | AE71: 816.1790041 | AI71: 207.9663576
C72: 35 | E72: 0 | G72: 0 | I72: 2500 | K72: 192.8353132 | O72: 0 | W72: 35 | Y72: 103.2747623 | AA72: 2.849139101 | AC72: 2895.308405 | AE72: 819.0281432 | AI72: 104.6915953
C73: 36 | E73: 0 | G73: 0 | I73: 2500 | K73: 192.8353132 | O73: 0 | W73: 36 | Y73: 104.6896265 | AA73: 1.434274857 | AC73: 2999.998031 | AE73: 820.4624181 | AI73: 0.001968832655

Sheet Alyssa - Should I
AJ2: Officer Basic Pay Rates, 2023 | AM2: What will my Income and Real monthly Cash Flow look like? | AQ2: Military Pay Calculator for 2023 | AU2: ▪ | AV2: as of 2020, $3080.16 (not quite enough but better than nothing!) | BI2: O-2, > 2yrs | BK2: Officer Basic Pay Rates, 2023
C3: Firstie Loan / Career Starter Loan | M3: Calculated | O3: Other/Alt | AJ3: 43644 | AU3: ▪ | AV3: 2017 National Defense Authorization Act included a provision to overhaul the BAH | BK3: 57276
D4: Should I take the Loan? | K4: Loan Parameters | M4: Adjustments | O4: Calculations | V4: What if I Reinvested the Loan? | AJ4: Tax Form Calculator | AN4: Earnings & Income | AV4: system to only cover actual rent expenses, rather than a flat amount, similar to the | BK4: Tax Form Calculator
AH5: 0.11 | AJ5: Tax deferred retirement: | AV5: way that Overseas Housing Allowance currently works. | BI5: 0.11 | BK5: Tax deferred retirement:
AB6: Rate of Return from Reinvestment | AD6: 0.07 | AJ6: =AJ3*AH5 -> 4800.84 | AQ6: Monthly After-Tax based on Previous Calculations | AS6: =AJ19/12 -> 2679.0925 | AV6: These changes could occur as early as 2018. | BK6: =BK3*BI5 -> 6300.36 | BM6: Monthly Gross based on O-2, > 2 years | BO6: =BK19/12 -> 3466.905
G7: Principal | K7: 36000 | M7: =IF(OR(K$7="", K$7<K$8), "", K$7-K$8) -> 36000 | AB7: Rate of Inflation | AD7: 0.02 | AI7: percentage of Net Earnings: | AJ7: =AJ6/AJ18 -> 0.1299281866 | AQ7: Bi-Monthly Pay (15th & EOM) | AS7: =AS6/2 -> 1339.54625 | AU7: ▪ | AV7: If there is an excess of base housing, a housing allowance may not be approved, | BJ7: percentage of Net Earnings: | BK7: =BK6/BK18 -> 0.1315226826 | BM7: Bi-Monthly Pay (15th & EOM) | BO7: =BO6/2 -> 1733.4525
G8: Down Payment | K8: 0 | AB8: approximate Tax Rate | AD8: =AJ15 -> 0.1533784713 | AJ8: Total Federal Tax Due: | AV8: especially for new and young officers. Something to keep in mind. | BK8: Total Federal Tax Due:
AJ9: 3355.28 | AQ9: BAS (basic allowance for sustenance) | AS9: 311.68 | AU9: ▪ | AV9: Since BAH offsets an actual, non discretionary expense, whether or not the overhaul | BK9: 4991.12 | BM9: BAS (basic allowance for sustenance) | BO9: =AS9 -> 311.68
G10: Nominal Rate Per Period (R) | I10: APR | K10: 0.75 | M10: =K$10/100 -> 0.0075 | O10: =CalcEffectiveInterestRatePerPeriod(M$10,K$16) -> 0.007525834721 | AJ10: Total SS Tax Due: | AQ10: BAH (basic allowance for housing), Cape May, NJ (08204) | AS10: 1707 | AV10: occurs/occurred, we'll just leave this as zero and keep it out of the calculations | BK10: Total SS Tax Due: | BM10: =AQ10 -> BAH (basic allowance for housing), Cape May, NJ (08204) | BO10: =AS10 -> 1707
AB11: Raw Return from Reinvestment | AD11: =FV(AD6/12,M12,0,-M7) -> 51034.50935 | AJ11: 2705.93 | AQ11: OHA Utilities | AS11: 0 | BK11: 3551.11 | BM11: OHA Utilities | BO11: 0
G12: Number of Payments | I12: years | K12: 5 | M12: =IF(K$12="","",K$12*K$15) -> 60 | O12: =IF(OR(M$7="", M$10=""), "", CalcNumberOfPeriods(M$7,M$21, M$10,K$15)) -> 59.99999619 | AB12: Gross Profit from Reinvestment | AD12: =AD11-M7 -> 15034.50935 | AJ12: Total Medicare Tax Due: | BK12: Total Medicare Tax Due:
I13: months | K13: 60 | AB13: Estimated Tax Liability against Profits | AD13: =AD12*AD8 -> 2305.97006 | AJ13: 632.84 | BK13: 830.55
AB14: (Nominal) Net Profit from Reinvestment | AD14: =AD12-AD13 -> 12728.53929 | AQ14: Net Bi-Monthly Pay | AS14: =SUM(AS6, AS9:AS11)/2 -> 2348.88625
I15: payments per period | K15: 12 | O15: =IF(OR(M$10="", K$16=""), "", CalcPeriodicInterestRate(M$10, K$16)) -> 0.000624999986 | AD15: tax liability | AF15: no tax liability | AI15: Effective Tax Rate: | AJ15: =AJ17/AJ3 -> 0.1533784713 | BJ15: Effective Tax Rate: | BK15: =BK17/BK3 -> 0.1636423633
I16: compounding per period | K16: 12 | O16: =IF(OR(M$10="", K$15="", K$16=""), "", CalcPeriodicEquivalentInterestRate(M$10, K$16, K$15)) -> 0.000624999986 | AB16: (Nominal) Net Profit from Reinvestment against Loan | AD16: =AD14-M27 -> 12038.07319 | AF16: =AD12-M27 -> 14344.04325
AB17: (Inflation Adjusted) Real Profit from Reinvestment | AD17: =FV(-AD7,K12,0,-AD16) -> 10881.46471 | AI17: Total Tax Liability: | AJ17: =SUM(AJ13,AJ11,AJ9) -> 6694.05 | AN17: Recommended Savings & Fiscal Responsibilities | BJ17: Total Tax Liability: | BK17: =SUM(BK13,BK11,BK9) -> 9372.78
G18: Periodic Interest Rate | I18: P | K18: =M$18 -> 0.000624999986 | M18: =IF(OR(M$10="", K$15="", K$16=""), "", CalcPeriodicEquivalentInterestRate(M$10, K$16, K$15)) -> 0.000624999986 | O18: =IF(OR(M$10="", M$12="", K$12=""), "", IF(K$12=0,"",M$10/(M$12/K$12))) -> 0.000625 | AI18: Net Earnings: | AJ18: =AJ3-AJ17 -> 36949.95 | BJ18: Net Earnings: | BK18: =BK3-BK17 -> 47903.22
AI19: Take Home Pay: | AJ19: =AJ18-AJ6 -> 32149.11 | AN19: ♦ | AO19: Long-Term non-Discretionary Retirement/Wealth Savings Targets | BJ19: Take Home Pay: | BK19: =BK18-BK6 -> 41602.86 | BM19: Net Bi-Monthly Pay | BO19: =SUM(BO6, BO9:BO11)/2 -> 2742.7925
AS20: per pay period
K21: Regular Payment Amount | M21: =IF(OR(M$7="",M$12=""),"",CalcLoanPayment(M$7,M$10,M$12,K$15,K$16)) -> 611.5077515 | O21: =IF(OR(M$7="",M$10="",M$12=""),"", IF(M$10=0,(M$7/M$12),((M$10/K$15)*M$7)/(1-((1+ (M$10/K$15))^(-M$12))))) -> 611.5077694 | AQ21: Individual Investment Savings | AS21: 100 | AV21: =AS21*2*12 -> 2400 | AX21: per Year | BE21: currently USAA/Schwab Brokerage Account
K22: Extra Regular Payment Amount | O22: =IF(OR(K$13="", O$24=""),"",TEXT((K$13-O$24)/12, "#0.0") & " yrs saved") -> 0.0 yrs saved | AQ22: Individual Investment/Future Wealth Savings | AS22: 50 | AV22: =AS22*2*12 -> 1200 | AX22: per Year | BE22: whole life banking/insurance policy
V23: What if I used it to buy a car?
K24: Total Regular Payment Amount, (adjusted number of payments) | M24: =IF(M$21="","", SUM(M$21:M$22)) -> 611.5077515 | O24: =IF(OR(M$7="",M$10="",M$24="",K$15=""),"", CalcNumberOfPeriods(M$7, M$24, M$10, K$15)) -> 59.99999619
AB25: Current Regular Auto Loan Rates | AS25: =SUM(AS21:AS22) -> 150 | AU25: ♦ | AV25: Total Long-Term non-Discretionary Retirement/Wealth Savings per Pay Period
K26: Total Repaid | M26: 36690.4661 | O26: =IF(M$21="","", M$21*M$12) -> 36690.46509 | AB26: Navy Federal | AD26: 0.05 | AF26: 37-60 month term | AS26: =AS25/AS14 -> 0.06386005282 | AV26: Percent of Net Pay
K27: Total Interest Paid | M27: 690.4660978 | O27: =IF(O$26="","", O$26-M$7) -> 690.4650879 | Q27: =M$27/K$12 -> 138.0932196 | R27: per year | AS27: =AJ7+AS26 -> 0.1937882395 | AV27: Total Long-Term non-Discretionary Retirement/Wealth Savings Percentage of Net Earnings
K28: Interest as % of Principal | M28: =IF(M$26="","", M$27/M$7) -> 0.01917961383 | O28: =IF(O$26="","", O$27/M$7) -> 0.01917958577 | Q28: =Q$27/12 -> 11.5077683 | R28: per month | AB28: Amount Financed | AD28: 36000 | AF28: Based on $46k build price, 2020 Toyota Tacoma Pro | AV28: 0.25 | AX28: How Much Of Your Income Should You Save?
AD29: 60 | AF29: Term, Length of Loan in Months
AD30: =IF(OR(AD$26="",AD$28=""),"",CalcLoanPayment(AD$28,AD$26,AD$29,12,12)) -> 679.3644409 | AF30: Calculated Monthly Payment
I31: Principal | K31: Interest | M31: Irregular Payments | AD31: =(AD30*AD29)-AD28 -> 4761.866455 | AF31: Total Interest Paid | AN31: ♦ | AO31: Additional Discretionary Flex-Savings
E32: Principal | G32: Interest | I32: Paid | K32: Paid | M32: in excess of | O32: Principal | AQ32: Flex-Savings, General | AS32: 100 | AV32: =AS32*2*12 -> 2400 | AX32: per Year | BE32: currently Discover
C33: Period | E33: (this payment) | G33: (this payment) | I33: (cumulative) | K33: (cumulative) | M33: Principal | O33: Balance | AQ33: Short-term Loans & Liabilities | AV33: =AS33*2*12 -> 0 | AX33: per Year
AB34: Monthly Cash Flow Savings over Regular Auto Loan | AD34: =AD30-M21 -> 67.85668945 | AF34: =AD34/2 -> 33.92834473 | AH34: Savings per Pay Period
O35: =M7 -> 36000 | AB35: Interest Savings over Regular Auto Loan | AD35: =AD31-M27 -> 4071.400357
C36: 1 | E36: 589.007813 | G36: 22.4999995 | I36: 589.007813 | K36: 22.4999995 | O36: 35410.99219
C37: 2 | E37: 589.3759429 | G37: 22.13186962 | I37: 1178.383756 | K37: 44.63186912 | O37: 34821.61624 | AS37: =SUM(AS32:AS33) -> 100 | AU37: ♦ | AV37: Total Additional Discretionary Flex-Savings
C38: 3 | E38: 589.7443028 | G38: 21.76350967 | I38: 1768.128059 | K38: 66.39537879 | O38: 34231.87194
C39: 4 | E39: 590.112893 | G39: 21.39491949 | I39: 2358.240952 | K39: 87.79029827 | O39: 33641.75905
C40: 5 | E40: 590.4817136 | G40: 21.02609894 | I40: 2948.722665 | K40: 108.8163972 | O40: 33051.27733 | AN40: ♦ | AO40: Short-Term, Non-Discretionary Cost of Living Expenses
C41: 6 | E41: 590.8507646 | G41: 20.65704787 | I41: 3539.57343 | K41: 129.4734451 | O41: 32460.42657 | V41: What if I did BOTH, Took the Loan to Reinvest and Took out a Regular Auto Loan to buy a car? | AQ41: Long-term Savings / Initial Seed for 1st 3-Month Emergency Fund | AS41: 100 | AV41: =(AS14*2)*3 -> 14093.3175 | AX41: per Year | AZ41: =AV41*BB41 -> 14093.3175 | BA41: every | BB41: 1 | BC41: years | BE41: currently AMEX
C42: 7 | E42: 591.2200463 | G42: 20.28776615 | I42: 4130.793476 | K42: 149.7612112 | O42: 31869.20652 | AB42: tax liability | AQ42: Automobile Maintenance Fund | AS42: 100 | AV42: 6000 | AX42: Savings Goal
C43: 8 | E43: 591.5895589 | G43: 19.91825363 | I43: 4722.383035 | K43: 169.6794649 | O43: 31277.61696 | AB43: Reduction of Net Profit by Remaining Car Loan Interest | AD43: =AD16-AD35 -> 7966.672831 | AF43: =FV(-$AD$7,$K$12,0,-AD43) -> 7201.241253 | AH43: (Inflation Adjusted) Real Profit | AV43: 5 | AX43: Time frame in years (best time is during full warranty of new automobile)
C44: 9 | E44: 591.9593023 | G44: 19.54851017 | I44: 5314.342337 | K44: 189.227975 | O44: 30685.65766 | AB44: no tax liability | AV44: How Much Is the Average Car Repair Bill?
C45: 10 | E45: 592.3292769 | G45: 19.17853561 | I45: 5906.671614 | K45: 208.4065106 | O45: 30093.32839 | AB45: Reduction of Net Profit by Remaining Car Loan Interest | AD45: =AF16-AD35 -> 10272.64289 | AF45: =FV(-$AD$7,$K$12,0,-AD45) -> 9285.655547 | AH45: (Inflation Adjusted) Real Profit | AO45: Prepaids Fund
C46: 11 | E46: 592.6994827 | G46: 18.80832982 | I46: 6499.371097 | K46: 227.2148405 | O46: 29500.6289 | AQ46: Auto Insurance | AS46: =IF(AV46="","",AV46*2/24) -> 33.33333333 | AV46: 400 | AX46: Est. based on 1992 Jeep, 24 Yrs Old
C47: 12 | E47: 593.0699198 | G47: 18.43789265 | I47: 7092.441017 | K47: 245.6527331 | O47: 28907.55898 | AQ47: Auto Registration | AS47: =IF(AV47 ="","",AV47/24) -> 3.333333333 | AV47: 80 | AX47: Estimate based on experience
C48: 13 | E48: 593.4405885 | G48: 18.06722396 | I48: 7685.881605 | K48: 263.7199571 | O48: 28314.11839 | AB48: Required Payments for both Career and Auto Loan | AD48: =AD30+M21 -> 1290.872192 | AF48: =(AS95*2)-AD48 -> 109.7639743 | AH48: Remaining Discretionary Cash/Month | AS48: =IF(AV48 ="","",AV48/24) -> 
C49: 14 | E49: 593.8114889 | G49: 17.6963236 | I49: 8279.693094 | K49: 281.4162807 | O49: 27720.30691 | AF49: differnece | AQ49: Renter's Insurance | AS49: =IF(AV49 ="","",AV49/24) -> 0 | AV49: 0
C50: 15 | E50: 594.1826211 | G50: 17.32519143 | I50: 8873.875715 | K50: 298.7414721 | O50: 27126.12428 | AF50: =AF48/2 -> 54.88198714 | AH50: per Pay Period | AQ50: Uniform Fund | AS50: 25 | AV50: 600 | AX50: Estimate based on asking a young Army LT
C51: 16 | E51: 594.5539852 | G51: 16.9538273 | I51: 9468.429701 | K51: 315.6952994 | O51: 26531.5703 | AA51: O-2, < 2yrs | AB51: 50292 | AQ51: Gift/Holiday Fund | AS51: 16.66666667 | AV51: 400 | AX51: These don't always have to provide an exact amount, just help ease the pain!
C52: 17 | E52: 594.9255814 | G52: 16.58223107 | I52: 10063.35528 | K52: 332.2775305 | O52: 25936.64472 | AA52: O-2, 2 yrs | AB52: 57276 | AF52: =((BO19-AS88)*2)-AD48 -> 4194.712808
C53: 18 | E53: 595.2974099 | G53: 16.21040259 | I53: 10658.65269 | K53: 348.4879331 | O53: 25341.34731 | AA53: O-2, 3 yrs | AB53: 65964
C54: 19 | E54: 595.6694708 | G54: 15.83834171 | I54: 11254.32216 | K54: 364.3262748 | O54: 24745.67784 | AQ54: House or Rent Payment | AS54: =IF(AV54="","",AV54/2/2) -> 450 | AV54: 1800 | AX54: Est. $1800 Avg. Payment Montly, Split per Paycheck, Divided by 2
C55: 20 | E55: 596.0417642 | G55: 15.4660483 | I55: 11850.36393 | K55: 379.7923231 | O55: 24149.63607 | AB55: What if you skip the loan but invest $611/month? | AO55: House Escrow
C56: 21 | E56: 596.4142903 | G56: 15.09352221 | I56: 12446.77822 | K56: 394.8858453 | O56: 23553.22178 | AB56: Total account value after 5 yrs (60 mos) | AD56: =FV(AD6/12,M12,-611,0) -> 43743.26291 | AF56: =FV(-$AD$7,$K$12,0,-AD56) -> 39540.44506 | AH56: (Inflation Adjusted) Real Value | AQ56: HO Insurance | AS56: =IF(AV56="","",AV56/24/2) -> 31.25 | AV56: 1500 | AX56: Again, Split per Paycheck, Divided by 2
C57: 22 | E57: 596.7870492 | G57: 14.72076329 | I57: 13043.56527 | K57: 409.6066086 | O57: 22956.43473 | AB57: Nominal Profit | AD57: =AD56-M7 -> 7743.262907 | AF57: =FV(-$AD$7,$K$12,0,-AD57) -> 6999.296377 | AH57: (Inflation Adjusted) Real Profit | AQ57: Taxes | AS57: =IF(AV57 ="","",AV57/24/2) -> 114.5833333 | AV57: 5500
C58: 23 | E58: 597.1600411 | G58: 14.34777139 | I58: 13640.72531 | K58: 423.95438 | O58: 22359.27469 | AS58: =IF(AV58 ="","",AV58/24/2) -> 
C59: 24 | E59: 597.5332661 | G59: 13.97454637 | I59: 14238.25857 | K59: 437.9289263 | O59: 21761.74143 | AQ59: PMI | AS59: 0 | AV59: 0
C60: 25 | E60: 597.9067244 | G60: 13.60108809 | I60: 14836.1653 | K60: 451.5300144 | O60: 21163.8347 | AQ60: Flood Ins. | AS60: 0 | AV60: 0
C61: 26 | E61: 598.2804161 | G61: 13.22739639 | I61: 15434.44571 | K61: 464.7574108 | O61: 20565.55429 | AQ61: Windstorm Ins. | AS61: 0 | AV61: 0
C62: 27 | E62: 598.6543414 | G62: 12.85347114 | I62: 16033.10006 | K62: 477.6108819 | O62: 19966.89994
C63: 28 | E63: 599.0285003 | G63: 12.47931219 | I63: 16632.12856 | K63: 490.0901941 | O63: 19367.87144
C64: 29 | E64: 599.4028931 | G64: 12.10491938 | I64: 17231.53145 | K64: 502.1951135 | O64: 18768.46855
C65: 30 | E65: 599.7775199 | G65: 11.73029258 | I65: 17831.30897 | K65: 513.9254061 | O65: 18168.69103 | AS65: =SUM(AS41:AS42,AS46:AS51,AS54,AS56:AS61) -> 874.1666667 | AU65: ♦ | AV65: Total Short-Term, Non-Discretionary Cost of Living Expenses per Pay Period
C66: 31 | E66: 600.1523809 | G66: 11.35543164 | I66: 18431.46135 | K66: 525.2808377 | O66: 17568.53865
C67: 32 | E67: 600.5274761 | G67: 10.98033641 | I67: 19031.98883 | K67: 536.2611741 | O67: 16968.01117
C68: 33 | E68: 600.9028058 | G68: 10.60500675 | I68: 19632.89163 | K68: 546.8661809 | O68: 16367.10837 | AN68: ♦ | AO68: Estimated Semi-Mandatory & Discretionary Living Expenses | AV68: 0.05 | AX68: Estimated Error Rate
C69: 34 | E69: 601.27837 | G69: 10.2294425 | I69: 20234.17 | K69: 557.0956234 | O69: 15765.83 | AQ69: Credit Monitoring | AS69: =IF(AV69="","",((AV69)*(1+$AV$68))/2) -> 9.639 | AV69: 18.36 | AX69: AMEX Credit Secure Credit Monitoring Service
C70: 35 | E70: 601.654169 | G70: 9.853643529 | I70: 20835.82417 | K70: 566.9492669 | O70: 15164.17583 | AQ70: Music Streaming | AS70: =IF(AV70="","",((AV70)*(1+$AV$68))/2) -> 5.5125 | AV70: 10.5 | AX70: Spotify Premium
C71: 36 | E71: 602.0302028 | G71: 9.477609682 | I71: 21437.85437 | K71: 576.4268766 | O71: 14562.14563 | AQ71: Groceries/Food | AS71: =IF(AV71="","",((AV71)*(1+$AV$68))/2) -> 157.5 | AV71: 300 | AX71: Est. Grocery Food budget
C72: 37 | E72: 602.4064717 | G72: 9.101340813 | I72: 22040.26085 | K72: 585.5282174 | O72: 13959.73915 | AQ72: Dining Out/Food | AS72: =IF(AV72="","",((AV72)*(1+$AV$68))/2) -> 52.5 | AV72: 100 | AX72: Est. Dining Out Food budget
C73: 38 | E73: 602.7829757 | G73: 8.724836777 | I73: 22643.04382 | K73: 594.2530542 | O73: 13356.95618 | AQ73: Automobile Fuel/Gas | AS73: =IF(AV73="","",((AV73)*(1+$AV$68))/2) -> 65.625 | AV73: 125 | AX73: Est. Auto Fuel
C74: 39 | E74: 603.1597151 | G74: 8.348097425 | I74: 23246.20354 | K74: 602.6011516 | O74: 12753.79646 | AQ74: Utilities(Electricity)/Household | AS74: =IF(AV74="","",((AV74)*(1+$AV$68))/2) -> 131.25 | AV74: 250 | AX74: OHA Utilities Adjustments
C75: 40 | E75: 603.5366899 | G75: 7.971122612 | I75: 23849.74023 | K75: 610.5722742 | O75: 12150.25977 | AQ75: Internet-TV-Phone/Household | AS75: =IF(AV75="","",((AV75)*(1+$AV$68))/2) -> 78.75 | AV75: 150
C76: 41 | E76: 603.9139003 | G76: 7.593912189 | I76: 24453.65413 | K76: 618.1661864 | O76: 11546.34587 | AQ76: Mobile Phone | AS76: =IF(AV76="","",((AV76)*(1+$AV$68))/2) -> 23.625 | AV76: 45 | AX76: Portion of Family plan
C77: 42 | E77: 604.2913465 | G77: 7.21646601 | I77: 25057.94547 | K77: 625.3826524 | O77: 10942.05453 | AS77: =IF(AV77="","",((AV77)*(1+$AV$68))/2) -> 
C78: 43 | E78: 604.6690286 | G78: 6.838783927 | I78: 25662.6145 | K78: 632.2214364 | O78: 10337.3855 | AS78: =IF(AV78="","",((AV78)*(1+$AV$68))/2) -> 
C79: 44 | E79: 605.0469467 | G79: 6.460865792 | I79: 26267.66145 | K79: 638.6823022 | O79: 9732.338552 | AS79: =IF(AV79="","",((AV79)*(1+$AV$68))/2) -> 
C80: 45 | E80: 605.425101 | G80: 6.082711459 | I80: 26873.08655 | K80: 644.7650136 | O80: 9126.913451 | AS80: =IF(AV80="","",((AV80)*(1+$AV$68))/2) -> 
C81: 46 | E81: 605.8034917 | G81: 5.704320779 | I81: 27478.89004 | K81: 650.4693344 | O81: 8521.109959 | AS81: =IF(AV81="","",((AV81)*(1+$AV$68))/2) -> 
C82: 47 | E82: 606.1821189 | G82: 5.325693606 | I82: 28085.07216 | K82: 655.795028 | O82: 7914.92784 | AQ82: Car Payment | AS82: =IF(AV82="","",((AV82)*(1+$AV$68))/2) -> 0 | AV82: 0
C83: 48 | E83: 606.5609827 | G83: 4.94682979 | I83: 28691.63314 | K83: 660.7418578 | O83: 7308.366858
C84: 49 | E84: 606.9400833 | G84: 4.567729184 | I84: 29298.57323 | K84: 665.309587 | O84: 6701.426774
C85: 50 | E85: 607.3194209 | G85: 4.18839164 | I85: 29905.89265 | K85: 669.4979786 | O85: 6094.107354
C86: 51 | E86: 607.6989955 | G86: 3.808817011 | I86: 30513.59164 | K86: 673.3067956 | O86: 5486.408358 | AS86: =SUM(AS69:AS82) -> 524.4015 | AU86: ♦ | AV86: Estimated Semi-Mandatory & Discretionary Living Expenses per Pay Period
C87: 52 | E87: 608.0788074 | G87: 3.429005147 | I87: 31121.67045 | K87: 676.7358008 | O87: 4878.329551
C88: 53 | E88: 608.4588566 | G88: 3.048955901 | I88: 31730.12931 | K88: 679.7847567 | O88: 4269.870694
C89: 54 | E89: 608.8391434 | G89: 2.668669124 | I89: 32338.96845 | K89: 682.4534258 | O89: 3661.031551
C90: 55 | E90: 609.2196678 | G90: 2.288144668 | I90: 32948.18812 | K90: 684.7415705 | O90: 3051.811883 | AQ90: Total ALL Long-Term & Discretionary Savings per Pay Period | AS90: =SUM(AS25,AS37) -> 250 | AV90: =AS90/$AS$14 -> 0.1064334214 | AX90: Percent of Net Pay (savings)
C91: 56 | E91: 609.6004301 | G91: 1.907382384 | I91: 33557.78855 | K91: 686.6489528 | O91: 2442.211453 | AQ91: Total Short-Term Non-Discretionary Cost of Living Savings per Pay Period | AS91: =SUM(AS65) -> 874.1666667 | AV91: =AS91/$AS$14 -> 0.3721621967 | AX91: Percent of Net Pay (prepaid debt)
C92: 57 | E92: 609.9814304 | G92: 1.526382124 | I92: 34167.76998 | K92: 688.175335 | O92: 1832.230022 | AQ92: Total ALL Expenses per Pay Period | AS92: =SUM(AS69:AS77) -> 524.4015 | AV92: =AS92/$AS$14 -> 0.2232553833 | AX92: Percent of Net Pay (debts & expenses)
C93: 58 | E93: 610.3626688 | G93: 1.145143738 | I93: 34778.13265 | K93: 689.3204787 | O93: 1221.867354
C94: 59 | E94: 610.7441454 | G94: 0.763667079 | I94: 35388.87679 | K94: 690.0841458 | O94: 611.1232083
C95: 60 | E95: 611.1232083 | G95: 0.3819519966 | I95: 36000 | K95: 690.4660978 | O95: 0 | AQ95: Discretionary Cash Flow per Pay Period | AS95: =AS14-SUM(AS90:AS92) -> 700.3180833 | AV95: =AS95*2 -> 1400.636167 | AX95: Per Month

Sheet Alyssa - Buy or Rent
M3: Calculated | O3: Other/Alt
C4: Mortgage/Amortized Loan Analysis Worksheet | K4: Loan Parameters | M4: Adjustments | O4: Calculations | Q4: Description
G7: Principal | K7: 300000 | M7: =IF(OR(K$7="", K$7<K$8), "", K$7-K$8) -> 300000
G8: Down Payment
G10: Nominal Rate Per Period (R) | I10: APR | K10: 5.929 | M10: =K$10/100 -> 0.05929 | O10: =CalcEffectiveInterestRatePerPeriod(M$10,K$16) -> 0.06092801318 | Q10: CalcEffectiveInterestRatePerPeriod
G12: Number of Payments | I12: years | K12: 30 | M12: =IF(K$12="","",K$12*K$15) -> 360 | O12: =IF(OR(M$7="", M$10=""), "", CalcNumberOfPeriods(M$7,M$21, M$10,K$15)) -> 359.9999695 | Q12: CalcNumberOfPeriods
I13: months | K13: 360
I15: payments per period | K15: 12 | O15: =IF(OR(M$10="", K$16=""), "", CalcPeriodicInterestRate(M$10, K$16)) -> 0.004940833431 | Q15: CalcPeriodicInterestRate
I16: compounding per period | K16: 12 | O16: =IF(OR(M$10="", K$15="", K$16=""), "", CalcPeriodicEquivalentInterestRate(M$10, K$16, K$15)) -> 0.004940833431 | Q16: CalcPeriodicEquivalentInterestRate
G18: Periodic Interest Rate | I18: P | K18: =M$18 -> 0.004940833431 | M18: =IF(OR(M$10="", K$15="", K$16=""), "", CalcPeriodicEquivalentInterestRate(M$10, K$16, K$15)) -> 0.004940833431 | O18: =IF(OR(M$10="", M$12="", K$12=""), "", IF(K$12=0,"",M$10/(M$12/K$12))) -> 0.004940833333
K21: Regular Payment Amount | M21: =IF(OR(M$7="",M$12=""),"",CalcLoanPayment(M$7,M$10,M$12,K$15,K$16)) -> 1784.980347 | O21: =IF(OR(M$7="",M$10="",M$12=""),"", IF(M$10=0,(M$7/M$12),((M$10/K$15)*M$7)/(1-((1+ (M$10/K$15))^(-M$12))))) -> 1784.980321
K22: Extra Regular Payment Amount | O22: =IF(OR(K$13="", O$24=""),"",TEXT((K$13-O$24)/12, "#0.0") & " yrs saved") -> 0.0 yrs saved
K24: Total Regular Payment Amount, (adjusted number of payments) | M24: =IF(M$21="","", SUM(M$21:M$22)) -> 1784.980347 | O24: =IF(OR(M$7="",M$10="",M$24="",K$15=""),"", CalcNumberOfPeriods(M$7, M$24, M$10, K$15)) -> 359.9999695
K26: Effective Interest Rate | M26: =EFFECT(K$10/100,K$16) -> 0.06092801364 | O26: =IF(OR(M$10="", K$16=""), "", CalcEffectiveInterestRateTPeriods(M$10, K$16)) -> 0.06092801318 | Q26: CalcEffectiveInterestRateTPeriods
K27: Effective Interest Rate, Life | O27: =IF(OR(M$10="", K$16=""), "", CalcEffectiveInterestRateTPeriods(M$10, K$16,K$12)) -> 4.896271706 | Q27: CalcEffectiveInterestRateTPeriods
K28: Total Repaid | M28: 642592.9215 | O28: =IF(M$21="","", M$21*M$12) -> 642592.9248
K29: Total Interest Paid | M29: 342592.9215 | O29: =IF(O$28="","", O$28-M$7) -> 342592.9248 | Q29: =M$29/K$12 -> 11419.76405 | R29: per year
K30: Interest as % of Principal | M30: =IF(M$28="","", M$29/M$7) -> 1.141976405 | O30: =IF(O$28="","", O$29/M$7) -> 1.141976416 | Q30: =Q$29/12 -> 951.6470043 | R30: per month
I33: Principal | K33: Interest | M33: Irregular Payments
E34: Principal | G34: Interest | I34: Paid | K34: Paid | M34: in excess of | O34: Principal
C35: Period | E35: (this payment) | G35: (this payment) | I35: (cumulative) | K35: (cumulative) | M35: Principal | O35: Balance
O37: =M7 -> 300000
C38: 1 | E38: 302.7303175 | G38: 1482.250029 | I38: 302.7303175 | K38: 1482.250029 | O38: 299697.2697
C39: 2 | E39: 304.2260575 | G39: 1480.754289 | I39: 606.956375 | K39: 2963.004318 | O39: 299393.0436
C40: 3 | E40: 305.7291878 | G40: 1479.251159 | I40: 912.6855628 | K40: 4442.255477 | O40: 299087.3144
C41: 4 | E41: 307.2397448 | G41: 1477.740602 | I41: 1219.925308 | K41: 5919.996079 | O41: 298780.0747
C42: 5 | E42: 308.7577652 | G42: 1476.222581 | I42: 1528.683073 | K42: 7396.218661 | O42: 298471.3169
C43: 6 | E43: 310.2832859 | G43: 1474.697061 | I43: 1838.966359 | K43: 8870.915721 | O43: 298161.0336
C44: 7 | E44: 311.8163439 | G44: 1473.164003 | I44: 2150.782703 | K44: 10344.07972 | O44: 297849.2173
C45: 8 | E45: 313.3569765 | G45: 1471.62337 | I45: 2464.139679 | K45: 11815.70309 | O45: 297535.8603
C46: 9 | E46: 314.9052212 | G46: 1470.075126 | I46: 2779.0449 | K46: 13285.77822 | O46: 297220.9551
C47: 10 | E47: 316.4611154 | G47: 1468.519231 | I47: 3095.506016 | K47: 14754.29745 | O47: 296904.494
C48: 11 | E48: 318.0246971 | G48: 1466.95565 | I48: 3413.530713 | K48: 16221.2531 | O48: 296586.4693
C49: 12 | E49: 319.5960041 | G49: 1465.384343 | I49: 3733.126717 | K49: 17686.63744 | O49: 296266.8733
C50: 13 | E50: 321.1750747 | G50: 1463.805272 | I50: 4054.301792 | K50: 19150.44272 | O50: 295945.6982
C51: 14 | E51: 322.7619473 | G51: 1462.218399 | I51: 4377.063739 | K51: 20612.66111 | O51: 295622.9363
C52: 15 | E52: 324.3566603 | G52: 1460.623686 | I52: 4701.420399 | K52: 22073.2848 | O52: 295298.5796
C53: 16 | E53: 325.9592525 | G53: 1459.021094 | I53: 5027.379652 | K53: 23532.3059 | O53: 294972.6203
C54: 17 | E54: 327.5697629 | G54: 1457.410584 | I54: 5354.949415 | K54: 24989.71648 | O54: 294645.0506
C55: 18 | E55: 329.1882305 | G55: 1455.792116 | I55: 5684.137645 | K55: 26445.50859 | O55: 294315.8624
C56: 19 | E56: 330.8146948 | G56: 1454.165652 | I56: 6014.95234 | K56: 27899.67425 | O56: 293985.0477
C57: 20 | E57: 332.4491951 | G57: 1452.531152 | I57: 6347.401535 | K57: 29352.2054 | O57: 293652.5985
C58: 21 | E58: 334.0917712 | G58: 1450.888576 | I58: 6681.493306 | K58: 30803.09397 | O58: 293318.5067
C59: 22 | E59: 335.742463 | G59: 1449.237884 | I59: 7017.235769 | K59: 32252.33186 | O59: 292982.7642
C60: 23 | E60: 337.4013105 | G60: 1447.579036 | I60: 7354.63708 | K60: 33699.91089 | O60: 292645.3629
C61: 24 | E61: 339.0683542 | G61: 1445.911992 | I61: 7693.705434 | K61: 35145.82289 | O61: 292306.2946
C62: 25 | E62: 340.7436345 | G62: 1444.236712 | I62: 8034.449068 | K62: 36590.0596 | O62: 291965.5509
C63: 26 | E63: 342.427192 | G63: 1442.553155 | I63: 8376.87626 | K63: 38032.61275 | O63: 291623.1237
C64: 27 | E64: 344.1190677 | G64: 1440.861279 | I64: 8720.995328 | K64: 39473.47403 | O64: 291279.0047
C65: 28 | E65: 345.8193027 | G65: 1439.161044 | I65: 9066.814631 | K65: 40912.63508 | O65: 290933.1854
C66: 29 | E66: 347.5279383 | G66: 1437.452408 | I66: 9414.342569 | K66: 42350.08748 | O66: 290585.6574
C67: 30 | E67: 349.245016 | G67: 1435.735331 | I67: 9763.587585 | K67: 43785.82282 | O67: 290236.4124
C68: 31 | E68: 350.9705774 | G68: 1434.009769 | I68: 10114.55816 | K68: 45219.83258 | O68: 289885.4418
A69: x | C69: 32 | E69: 352.7046646 | G69: 1432.275682 | I69: 10467.26283 | K69: 46652.10827 | O69: 289532.7372
C70: 33 | E70: 354.4473196 | G70: 1430.533027 | I70: 10821.71015 | K70: 48082.64129 | O70: 289178.2899
C71: 34 | E71: 356.1985847 | G71: 1428.781762 | I71: 11177.90873 | K71: 49511.42306 | O71: 288822.0913
C72: 35 | E72: 357.9585026 | G72: 1427.021844 | I72: 11535.86723 | K72: 50938.4449 | O72: 288464.1328
C73: 36 | E73: 359.7271159 | G73: 1425.253231 | I73: 11895.59435 | K73: 52363.69813 | O73: 288104.4057
C74: 37 | E74: 361.5044677 | G74: 1423.475879 | I74: 12257.09882 | K74: 53787.17401 | O74: 287742.9012
C75: 38 | E75: 363.2906011 | G75: 1421.689746 | I75: 12620.38942 | K75: 55208.86376 | O75: 287379.6106
C76: 39 | E76: 365.0855594 | G76: 1419.894787 | I76: 12985.47498 | K76: 56628.75854 | O76: 287014.525
C77: 40 | E77: 366.8893863 | G77: 1418.09096 | I77: 13352.36436 | K77: 58046.8495 | O77: 286647.6356
C78: 41 | E78: 368.7021257 | G78: 1416.278221 | I78: 13721.06649 | K78: 59463.12772 | O78: 286278.9335
C79: 42 | E79: 370.5238215 | G79: 1414.456525 | I79: 14091.59031 | K79: 60877.58425 | O79: 285908.4097
C80: 43 | E80: 372.354518 | G80: 1412.625829 | I80: 14463.94483 | K80: 62290.21008 | O80: 285536.0552
C81: 44 | E81: 374.1942596 | G81: 1410.786087 | I81: 14838.13909 | K81: 63700.99616 | O81: 285161.8609
C82: 45 | E82: 376.0430911 | G82: 1408.937256 | I82: 15214.18218 | K82: 65109.93342 | O82: 284785.8178
C83: 46 | E83: 377.9010574 | G83: 1407.079289 | I83: 15592.08324 | K83: 66517.01271 | O83: 284407.9168
C84: 47 | E84: 379.7682036 | G84: 1405.212143 | I84: 15971.85144 | K84: 67922.22485 | O84: 284028.1486
C85: 48 | E85: 381.644575 | G85: 1403.335772 | I85: 16353.49602 | K85: 69325.56062 | O85: 283646.504
C86: 49 | E86: 383.5302173 | G86: 1401.450129 | I86: 16737.02623 | K86: 70727.01075 | O86: 283262.9738
C87: 50 | E87: 385.4251762 | G87: 1399.55517 | I87: 17122.45141 | K87: 72126.56592 | O87: 282877.5486
C88: 51 | E88: 387.3294978 | G88: 1397.650849 | I88: 17509.78091 | K88: 73524.21677 | O88: 282490.2191
C89: 52 | E89: 389.2432283 | G89: 1395.737118 | I89: 17899.02414 | K89: 74919.95389 | O89: 282100.9759
C90: 53 | E90: 391.1664143 | G90: 1393.813932 | I90: 18290.19055 | K90: 76313.76782 | O90: 281709.8094
C91: 54 | E91: 393.0991024 | G91: 1391.881244 | I91: 18683.28965 | K91: 77705.64907 | O91: 281316.7103
C92: 55 | E92: 395.0413396 | G92: 1389.939007 | I92: 19078.33099 | K92: 79095.58808 | O92: 280921.669
C93: 56 | E93: 396.993173 | G93: 1387.987174 | I93: 19475.32417 | K93: 80483.57525 | O93: 280524.6758
C94: 57 | E94: 398.9546502 | G94: 1386.025697 | I94: 19874.27882 | K94: 81869.60095 | O94: 280125.7212
C95: 58 | E95: 400.9258186 | G95: 1384.054528 | I95: 20275.20463 | K95: 83253.65547 | O95: 279724.7954
C96: 59 | E96: 402.9067263 | G96: 1382.07362 | I96: 20678.11136 | K96: 84635.72909 | O96: 279321.8886
C97: 60 | E97: 404.8974214 | G97: 1380.082925 | I97: 21083.00878 | K97: 86015.81202 | O97: 278916.9912
C98: 61 | E98: 406.8979521 | G98: 1378.082395 | I98: 21489.90673 | K98: 87393.89441 | O98: 278510.0933
C99: 62 | E99: 408.9083671 | G99: 1376.07198 | I99: 21898.8151 | K99: 88769.96639 | O99: 278101.1849
C100: 63 | E100: 410.9287152 | G100: 1374.051631 | I100: 22309.74382 | K100: 90144.01802 | O100: 277690.2562
C101: 64 | E101: 412.9590455 | G101: 1372.021301 | I101: 22722.70286 | K101: 91516.03933 | O101: 277277.2971
C102: 65 | E102: 414.9994074 | G102: 1369.980939 | I102: 23137.70227 | K102: 92886.02027 | O102: 276862.2977
C103: 66 | E103: 417.0498503 | G103: 1367.930496 | I103: 23554.75212 | K103: 94253.95076 | O103: 276445.2479
C104: 67 | E104: 419.1104242 | G104: 1365.869922 | I104: 23973.86254 | K104: 95619.82068 | O104: 276026.1375
C105: 68 | E105: 421.181179 | G105: 1363.799168 | I105: 24395.04372 | K105: 96983.61985 | O105: 275604.9563
C106: 69 | E106: 423.262165 | G106: 1361.718182 | I106: 24818.30589 | K106: 98345.33803 | O106: 275181.6941
C107: 70 | E107: 425.3534329 | G107: 1359.626914 | I107: 25243.65932 | K107: 99704.96495 | O107: 274756.3407
C108: 71 | E108: 427.4550333 | G108: 1357.525313 | I108: 25671.11435 | K108: 101062.4903 | O108: 274328.8856
C109: 72 | E109: 429.5670175 | G109: 1355.413329 | I109: 26100.68137 | K109: 102417.9036 | O109: 273899.3186
C110: 73 | E110: 431.6894365 | G110: 1353.29091 | I110: 26532.37081 | K110: 103771.1945 | O110: 273467.6292
C111: 74 | E111: 433.8223421 | G111: 1351.158005 | I111: 26966.19315 | K111: 105122.3525 | O111: 273033.8069
C112: 75 | E112: 435.9657861 | G112: 1349.014561 | I112: 27402.15894 | K112: 106471.3671 | O112: 272597.8411
C113: 76 | E113: 438.1198204 | G113: 1346.860526 | I113: 27840.27876 | K113: 107818.2276 | O113: 272159.7212
C114: 77 | E114: 440.2844975 | G114: 1344.695849 | I114: 28280.56325 | K114: 109162.9234 | O114: 271719.4367
C115: 78 | E115: 442.4598698 | G115: 1342.520477 | I115: 28723.02312 | K115: 110505.4439 | O115: 271276.9769
C116: 79 | E116: 444.6459903 | G116: 1340.334356 | I116: 29167.66911 | K116: 111845.7783 | O116: 270832.3309
C117: 80 | E117: 446.8429121 | G117: 1338.137435 | I117: 29614.51203 | K117: 113183.9157 | O117: 270385.488
C118: 81 | E118: 449.0506885 | G118: 1335.929658 | I118: 30063.56271 | K118: 114519.8454 | O118: 269936.4373
C119: 82 | E119: 451.2693732 | G119: 1333.710974 | I119: 30514.83209 | K119: 115853.5563 | O119: 269485.1679
C120: 83 | E120: 453.49902 | G120: 1331.481327 | I120: 30968.33111 | K120: 117185.0377 | O120: 269031.6689
C121: 84 | E121: 455.7396831 | G121: 1329.240664 | I121: 31424.07079 | K121: 118514.2783 | O121: 268575.9292
C122: 85 | E122: 457.991417 | G122: 1326.98893 | I122: 31882.06221 | K122: 119841.2673 | O122: 268117.9378
C123: 86 | E123: 460.2542763 | G123: 1324.72607 | I123: 32342.31648 | K123: 121165.9933 | O123: 267657.6835
C124: 87 | E124: 462.528316 | G124: 1322.452031 | I124: 32804.8448 | K124: 122488.4454 | O124: 267195.1552
C125: 88 | E125: 464.8135913 | G125: 1320.166755 | I125: 33269.65839 | K125: 123808.6121 | O125: 266730.3416
C126: 89 | E126: 467.1101579 | G126: 1317.870189 | I126: 33736.76855 | K126: 125126.4823 | O126: 266263.2315
C127: 90 | E127: 469.4180714 | G127: 1315.562275 | I127: 34206.18662 | K127: 126442.0446 | O127: 265793.8134
C128: 91 | E128: 471.7373879 | G128: 1313.242959 | I128: 34677.92401 | K128: 127755.2875 | O128: 265322.076
C129: 92 | E129: 474.0681637 | G129: 1310.912183 | I129: 35151.99217 | K129: 129066.1997 | O129: 264848.0078
C130: 93 | E130: 476.4104555 | G130: 1308.569891 | I130: 35628.40263 | K130: 130374.7696 | O130: 264371.5974
C131: 94 | E131: 478.7643202 | G131: 1306.216026 | I131: 36107.16695 | K131: 131680.9856 | O131: 263892.8331
C132: 95 | E132: 481.129815 | G132: 1303.850532 | I132: 36588.29676 | K132: 132984.8362 | O132: 263411.7032
C133: 96 | E133: 483.5069973 | G133: 1301.473349 | I133: 37071.80376 | K133: 134286.3095 | O133: 262928.1962
C134: 97 | E134: 485.8959248 | G134: 1299.084422 | I134: 37557.69968 | K134: 135585.3939 | O134: 262442.3003
C135: 98 | E135: 488.2966556 | G135: 1296.683691 | I135: 38045.99634 | K135: 136882.0776 | O135: 261954.0037
C136: 99 | E136: 490.7092481 | G136: 1294.271099 | I136: 38536.70559 | K136: 138176.3487 | O136: 261463.2944
C137: 100 | E137: 493.1337607 | G137: 1291.846586 | I137: 39029.83935 | K137: 139468.1953 | O137: 260970.1607
C138: 101 | E138: 495.5702525 | G138: 1289.410094 | I138: 39525.4096 | K138: 140757.6054 | O138: 260474.5904
C139: 102 | E139: 498.0187826 | G139: 1286.961564 | I139: 40023.42838 | K139: 142044.567 | O139: 259976.5716
C140: 103 | E140: 500.4794104 | G140: 1284.500936 | I140: 40523.90779 | K140: 143329.0679 | O140: 259476.0922
C141: 104 | E141: 502.9521958 | G141: 1282.028151 | I141: 41026.85999 | K141: 144611.0961 | O141: 258973.14
C142: 105 | E142: 505.4371989 | G142: 1279.543148 | I142: 41532.29719 | K142: 145890.6392 | O142: 258467.7028
C143: 106 | E143: 507.9344799 | G143: 1277.045867 | I143: 42040.23167 | K143: 147167.6851 | O143: 257959.7683
C144: 107 | E144: 510.4440995 | G144: 1274.536247 | I144: 42550.67577 | K144: 148442.2213 | O144: 257449.3242
C145: 108 | E145: 512.9661188 | G145: 1272.014228 | I145: 43063.64189 | K145: 149714.2356 | O145: 256936.3581
C146: 109 | E146: 515.5005989 | G146: 1269.479748 | I146: 43579.14249 | K146: 150983.7153 | O146: 256420.8575
C147: 110 | E147: 518.0476015 | G147: 1266.932745 | I147: 44097.19009 | K147: 152250.648 | O147: 255902.8099
C148: 111 | E148: 520.6071884 | G148: 1264.373158 | I148: 44617.79728 | K148: 153515.0212 | O148: 255382.2027
C149: 112 | E149: 523.1794218 | G149: 1261.800925 | I149: 45140.9767 | K149: 154776.8221 | O149: 254859.0233
C150: 113 | E150: 525.7643642 | G150: 1259.215982 | I150: 45666.74106 | K150: 156036.0381 | O150: 254333.2589
C151: 114 | E151: 528.3620784 | G151: 1256.618268 | I151: 46195.10314 | K151: 157292.6564 | O151: 253804.8969
C152: 115 | E152: 530.9726274 | G152: 1254.007719 | I152: 46726.07577 | K152: 158546.6641 | O152: 253273.9242
C153: 116 | E153: 533.5960747 | G153: 1251.384272 | I153: 47259.67184 | K153: 159798.0484 | O153: 252740.3282
C154: 117 | E154: 536.232484 | G154: 1248.747863 | I154: 47795.90433 | K154: 161046.7962 | O154: 252204.0957
C155: 118 | E155: 538.8819194 | G155: 1246.098427 | I155: 48334.78625 | K155: 162292.8947 | O155: 251665.2138
C156: 119 | E156: 541.5444452 | G156: 1243.435901 | I156: 48876.33069 | K156: 163536.3306 | O156: 251123.6693
C157: 120 | E157: 544.2201261 | G157: 1240.760221 | I157: 49420.55082 | K157: 164777.0908 | O157: 250579.4492
C158: 121 | E158: 546.9090271 | G158: 1238.07132 | I158: 49967.45985 | K158: 166015.1621 | O158: 250032.5402
C159: 122 | E159: 549.6112135 | G159: 1235.369133 | I159: 50517.07106 | K159: 167250.5312 | O159: 249482.9289
C160: 123 | E160: 552.326751 | G160: 1232.653596 | I160: 51069.39781 | K160: 168483.1848 | O160: 248930.6022
C161: 124 | E161: 555.0557054 | G161: 1229.924641 | I161: 51624.45352 | K161: 169713.1095 | O161: 248375.5465
C162: 125 | E162: 557.7981432 | G162: 1227.182203 | I162: 52182.25166 | K162: 170940.2917 | O162: 247817.7483
C163: 126 | E163: 560.5541309 | G163: 1224.426216 | I163: 52742.80579 | K163: 172164.7179 | O163: 247257.1942
C164: 127 | E164: 563.3237355 | G164: 1221.656611 | I164: 53306.12952 | K164: 173386.3745 | O164: 246693.8705
C165: 128 | E165: 566.1070243 | G165: 1218.873322 | I165: 53872.23655 | K165: 174605.2478 | O165: 246127.7635
C166: 129 | E166: 568.9040648 | G166: 1216.076282 | I166: 54441.14061 | K166: 175821.3241 | O166: 245558.8594
C167: 130 | E167: 571.714925 | G167: 1213.265422 | I167: 55012.85554 | K167: 177034.5895 | O167: 244987.1445
C168: 131 | E168: 574.5396732 | G168: 1210.440673 | I168: 55587.39521 | K168: 178245.0302 | O168: 244412.6048
C169: 132 | E169: 577.3783781 | G169: 1207.601969 | I169: 56164.77359 | K169: 179452.6322 | O169: 243835.2264
C170: 133 | E170: 580.2311084 | G170: 1204.749238 | I170: 56745.0047 | K170: 180657.3814 | O170: 243254.9953
C171: 134 | E171: 583.0979337 | G171: 1201.882413 | I171: 57328.10263 | K171: 181859.2638 | O171: 242671.8974
C172: 135 | E172: 585.9789235 | G172: 1199.001423 | I172: 57914.08156 | K172: 183058.2652 | O172: 242085.9184
C173: 136 | E173: 588.8741477 | G173: 1196.106199 | I173: 58502.9557 | K173: 184254.3714 | O173: 241497.0443
C174: 137 | E174: 591.7836768 | G174: 1193.19667 | I174: 59094.73938 | K174: 185447.5681 | O174: 240905.2606
C175: 138 | E175: 594.7075814 | G175: 1190.272765 | I175: 59689.44696 | K175: 186637.8409 | O175: 240310.553
C176: 139 | E176: 597.6459325 | G176: 1187.334414 | I176: 60287.09289 | K176: 187825.1753 | O176: 239712.9071
C177: 140 | E177: 600.5988015 | G177: 1184.381545 | I177: 60887.6917 | K177: 189009.5568 | O177: 239112.3083
C178: 141 | E178: 603.5662601 | G178: 1181.414087 | I178: 61491.25796 | K178: 190190.9709 | O178: 238508.742
C179: 142 | E179: 606.5483805 | G179: 1178.431966 | I179: 62097.80634 | K179: 191369.4029 | O179: 237902.1937
C180: 143 | E180: 609.545235 | G180: 1175.435112 | I180: 62707.35157 | K180: 192544.838 | O180: 237292.6484
C181: 144 | E181: 612.5568965 | G181: 1172.42345 | I181: 63319.90847 | K181: 193717.2615 | O181: 236680.0915
C182: 145 | E182: 615.583438 | G182: 1169.396909 | I182: 63935.49191 | K182: 194886.6584 | O182: 236064.5081
C183: 146 | E183: 618.6249333 | G183: 1166.355413 | I183: 64554.11684 | K183: 196053.0138 | O183: 235445.8832
C184: 147 | E184: 621.681456 | G184: 1163.298891 | I184: 65175.79829 | K184: 197216.3127 | O184: 234824.2017
C185: 148 | E185: 624.7530805 | G185: 1160.227266 | I185: 65800.55138 | K185: 198376.5399 | O185: 234199.4486
C186: 149 | E186: 627.8398815 | G186: 1157.140465 | I186: 66428.39126 | K186: 199533.6804 | O186: 233571.6087
C187: 150 | E187: 630.9419337 | G187: 1154.038413 | I187: 67059.33319 | K187: 200687.7188 | O187: 232940.6668
C188: 151 | E188: 634.0593127 | G188: 1150.921034 | I188: 67693.3925 | K188: 201838.6398 | O188: 232306.6075
C189: 152 | E189: 637.1920942 | G189: 1147.788253 | I189: 68330.5846 | K189: 202986.4281 | O189: 231669.4154
C190: 153 | E190: 640.3403542 | G190: 1144.639992 | I190: 68970.92495 | K190: 204131.0681 | O190: 231029.075
C191: 154 | E191: 643.5041692 | G191: 1141.476177 | I191: 69614.42912 | K191: 205272.5443 | O191: 230385.5709
C192: 155 | E192: 646.6836161 | G192: 1138.296731 | I192: 70261.11274 | K192: 206410.841 | O192: 229738.8873
C193: 156 | E193: 649.8787722 | G193: 1135.101575 | I193: 70910.99151 | K193: 207545.9426 | O193: 229089.0085
C194: 157 | E194: 653.0897149 | G194: 1131.890632 | I194: 71564.08122 | K194: 208677.8332 | O194: 228435.9188
C195: 158 | E195: 656.3165224 | G195: 1128.663824 | I195: 72220.39775 | K195: 209806.497 | O195: 227779.6023
C196: 159 | E196: 659.559273 | G196: 1125.421074 | I196: 72879.95702 | K196: 210931.9181 | O196: 227120.043
C197: 160 | E197: 662.8180455 | G197: 1122.162301 | I197: 73542.77507 | K197: 212054.0804 | O197: 226457.2249
C198: 161 | E198: 666.0929191 | G198: 1118.887428 | I198: 74208.86798 | K198: 213172.9678 | O198: 225791.132
C199: 162 | E199: 669.3839733 | G199: 1115.596373 | I199: 74878.25196 | K199: 214288.5642 | O199: 225121.748
C200: 163 | E200: 672.691288 | G200: 1112.289059 | I200: 75550.94325 | K200: 215400.8533 | O200: 224449.0568
C201: 164 | E201: 676.0149436 | G201: 1108.965403 | I201: 76226.95819 | K201: 216509.8187 | O201: 223773.0418
C202: 165 | E202: 679.3550208 | G202: 1105.625326 | I202: 76906.31321 | K202: 217615.444 | O202: 223093.6868
C203: 166 | E203: 682.7116008 | G203: 1102.268746 | I203: 77589.02481 | K203: 218717.7127 | O203: 222410.9752
C204: 167 | E204: 686.0847651 | G204: 1098.895582 | I204: 78275.10958 | K204: 219816.6083 | O204: 221724.8904
C205: 168 | E205: 689.4745956 | G205: 1095.505751 | I205: 78964.58417 | K205: 220912.1141 | O205: 221035.4158
C206: 169 | E206: 692.8811748 | G206: 1092.099172 | I206: 79657.46535 | K206: 222004.2132 | O206: 220342.5347
C207: 170 | E207: 696.3045852 | G207: 1088.675761 | I207: 80353.76993 | K207: 223092.889 | O207: 219646.2301
C208: 171 | E208: 699.7449102 | G208: 1085.235436 | I208: 81053.51484 | K208: 224178.1244 | O208: 218946.4852
C209: 172 | E209: 703.2022333 | G209: 1081.778113 | I209: 81756.71707 | K209: 225259.9026 | O209: 218243.2829
C210: 173 | E210: 706.6766384 | G210: 1078.303708 | I210: 82463.39371 | K210: 226338.2063 | O210: 217536.6063
C211: 174 | E211: 710.1682099 | G211: 1074.812137 | I211: 83173.56192 | K211: 227413.0184 | O211: 216826.4381
C212: 175 | E212: 713.6770328 | G212: 1071.303314 | I212: 83887.23896 | K212: 228484.3217 | O212: 216112.761
C213: 176 | E213: 717.2031921 | G213: 1067.777155 | I213: 84604.44215 | K213: 229552.0989 | O213: 215395.5579
C214: 177 | E214: 720.7467736 | G214: 1064.233573 | I214: 85325.18892 | K214: 230616.3324 | O214: 214674.8111
C215: 178 | E215: 724.3078634 | G215: 1060.672483 | I215: 86049.49679 | K215: 231677.0049 | O215: 213950.5032
... 182 more rows

Sheet Zara - Should I
AJ2: Officer Basic Pay Rates, 2023 | AM2: What will my Income and Real monthly Cash Flow look like? | AQ2: Military Pay Calculator for 2020 | AU2: ▪ | AV2: as of 2020, $3080.16 (not quite enough but better than nothing!) | BI2: O-2, > 2yrs | BK2: Officer Basic Pay Rates, 2020
M3: Calculated | O3: Other/Alt | AJ3: 43644 | AU3: ▪ | AV3: 2017 National Defense Authorization Act included a provision to overhaul the BAH | BK3: 51760.8
C4: Should I take the Loan? | K4: Loan Parameters | M4: Adjustments | O4: Calculations | V4: What if I Reinvested the Loan? | AJ4: Tax Form Calculator | AN4: Earnings & Income | AV4: system to only cover actual rent expenses, rather than a flat amount, similar to the | BK4: Tax Form Calculator
AH5: 0.11 | AJ5: Tax deferred retirement: | AV5: way that Overseas Housing Allowance currently works. | BI5: 0.11 | BK5: Tax deferred retirement:
AB6: Rate of Return from Reinvestment | AD6: 0.07 | AJ6: =AJ3*AH5 -> 4800.84 | AQ6: Monthly After-Tax based on Previous Calculations | AS6: =AJ19/12 -> 2679.0925 | AV6: These changes could occur as early as 2018. | BK6: =BK3*BI5 -> 5693.688 | BM6: Monthly Gross based on O-2, > 2 years | BO6: =BK19/12 -> 3188.7385
G7: Principal | K7: 36000 | M7: =IF(OR(K$7="", K$7<K$8), "", K$7-K$8) -> 36000 | AB7: Rate of Inflation | AD7: 0.02 | AI7: percentage of Net Earnings: | AJ7: =AJ6/AJ18 -> 0.1299281866 | AQ7: Bi-Monthly Pay (15th & EOM) | AS7: =AS6/2 -> 1339.54625 | AU7: ▪ | AV7: If there is an excess of base housing, a housing allowance may not be approved, | BJ7: percentage of Net Earnings: | BK7: =BK6/BK18 -> 0.1295240175 | BM7: Bi-Monthly Pay (15th & EOM) | BO7: =BO6/2 -> 1594.36925
G8: Down Payment | K8: 0 | AB8: approximate Tax Rate | AD8: =AJ15 -> 0.1533784713 | AJ8: Total Federal Tax Due: | AV8: especially for new and young officers. Something to keep in mind. | BK8: Total Federal Tax Due:
AJ9: 3355.28 | AQ9: BAS (basic allowance for sustenance) | AS9: 311.68 | AU9: ▪ | AV9: Since BAH offsets an actual, non discretionary expense, whether or not the overhaul | BK9: 3842.55 | BM9: BAS (basic allowance for sustenance) | BO9: 256.68
G10: Nominal Rate Per Period (R) | I10: APR | K10: 0.75 | M10: =K$10/100 -> 0.0075 | O10: =CalcEffectiveInterestRatePerPeriod(M$10,K$16) -> 0.007525834721 | AJ10: Total SS Tax Due: | AQ10: BAH (basic allowance for housing) | AS10: 1707 | AV10: occurs/occurred, we'll just leave this as zero and keep it out of the calculations | BK10: Total SS Tax Due: | BM10: BAH (basic allowance for housing) | BO10: 0
AB11: Raw Return from Reinvestment | AD11: =FV(AD6/12,M12,0,-M7) -> 51034.50935 | AJ11: 2705.93 | AQ11: OHA Utilities | AS11: 0 | BK11: 3209.17 | BM11: OHA Utilities | BO11: 719.25
G12: Number of Payments | I12: years | K12: 5 | M12: =IF(K$12="","",K$12*K$15) -> 60 | O12: =IF(OR(M$7="", M$10=""), "", CalcNumberOfPeriods(M$7,M$21, M$10,K$15)) -> 59.99999619 | AB12: Gross Profit from Reinvestment | AD12: =AD11-M7 -> 15034.50935 | AJ12: Total Medicare Tax Due: | BK12: Total Medicare Tax Due:
I13: months | K13: 60 | AB13: Estimated Tax Liability against Profits | AD13: =AD12*AD8 -> 2305.97006 | AJ13: 632.84 | BK13: 750.53
AB14: (Nominal) Net Profit from Reinvestment | AD14: =AD12-AD13 -> 12728.53929 | AQ14: Net Bi-Monthly Pay | AS14: =SUM(AS6, AS9:AS11)/2 -> 2348.88625
I15: payments per period | K15: 12 | O15: =IF(OR(M$10="", K$16=""), "", CalcPeriodicInterestRate(M$10, K$16)) -> 0.000624999986 | AD15: tax liability | AF15: no tax liability | AI15: Effective Tax Rate: | AJ15: =AJ17/AJ3 -> 0.1533784713 | BJ15: Effective Tax Rate: | BK15: =BK17/BK3 -> 0.1507366579
I16: compounding per period | K16: 12 | O16: =IF(OR(M$10="", K$15="", K$16=""), "", CalcPeriodicEquivalentInterestRate(M$10, K$16, K$15)) -> 0.000624999986 | AB16: (Nominal) Net Profit from Reinvestment against Loan | AD16: =AD14-M27 -> 12038.07319 | AF16: =AD12-M27 -> 14344.04325
AB17: (Inflation Adjusted) Real Profit from Reinvestment | AD17: =FV(-AD7,K12,0,-AD16) -> 10881.46471 | AI17: Total Tax Liability: | AJ17: =SUM(AJ13,AJ11,AJ9) -> 6694.05 | AN17: Recommended Savings & Fiscal Responsibilities | BJ17: Total Tax Liability: | BK17: =SUM(BK13,BK11,BK9) -> 7802.25
G18: Periodic Interest Rate | I18: P | K18: =M$18 -> 0.000624999986 | M18: =IF(OR(M$10="", K$15="", K$16=""), "", CalcPeriodicEquivalentInterestRate(M$10, K$16, K$15)) -> 0.000624999986 | O18: =IF(OR(M$10="", M$12="", K$12=""), "", IF(K$12=0,"",M$10/(M$12/K$12))) -> 0.000625 | AI18: Net Earnings: | AJ18: =AJ3-AJ17 -> 36949.95 | BJ18: Net Earnings: | BK18: =BK3-BK17 -> 43958.55
AI19: Take Home Pay: | AJ19: =AJ18-AJ6 -> 32149.11 | AN19: ♦ | AO19: Long-Term non-Discretionary Retirement/Wealth Savings Targets | BJ19: Take Home Pay: | BK19: =BK18-BK6 -> 38264.862 | BM19: Net Bi-Monthly Pay | BO19: =SUM(BO6, BO9:BO11)/2 -> 2082.33425
AS20: per pay period
K21: Regular Payment Amount | M21: =IF(OR(M$7="",M$12=""),"",CalcLoanPayment(M$7,M$10,M$12,K$15,K$16)) -> 611.5077515 | O21: =IF(OR(M$7="",M$10="",M$12=""),"", IF(M$10=0,(M$7/M$12),((M$10/K$15)*M$7)/(1-((1+ (M$10/K$15))^(-M$12))))) -> 611.5077694 | AQ21: Individual Investment Savings | AS21: 50 | AV21: =AS21*2*12 -> 1200 | AX21: per Year | BE21: currently USAA/Schwab Brokerage Account
K22: Extra Regular Payment Amount | O22: =IF(OR(K$13="", O$24=""),"",TEXT((K$13-O$24)/12, "#0.0") & " yrs saved") -> 0.0 yrs saved | AQ22: Individual Investment/Future Wealth Savings | AS22: 15 | AV22: =AS22*2*12 -> 360 | AX22: per Year | BE22: whole life banking/insurance policy
V23: What if I used it to buy a car?
K24: Total Regular Payment Amount, (adjusted number of payments) | M24: =IF(M$21="","", SUM(M$21:M$22)) -> 611.5077515 | O24: =IF(OR(M$7="",M$10="",M$24="",K$15=""),"", CalcNumberOfPeriods(M$7, M$24, M$10, K$15)) -> 59.99999619
AB25: Current Regular Auto Loan Rates | AS25: =SUM(AS21:AS22) -> 65 | AU25: ♦ | AV25: Total Long-Term non-Discretionary Retirement/Wealth Savings per Pay Period
K26: Total Repaid | M26: 36690.4661 | O26: =IF(M$21="","", M$21*M$12) -> 36690.46509 | AB26: Navy Federal | AD26: 0.0289 | AF26: 37-60 month term | AS26: =AS25/AS14 -> 0.02767268956 | AV26: Percent of Net Pay
K27: Total Interest Paid | M27: 690.4660978 | O27: =IF(O$26="","", O$26-M$7) -> 690.4650879 | Q27: =M$27/K$12 -> 138.0932196 | R27: per year | AS27: =AJ7+AS26 -> 0.1576008762 | AV27: Total Long-Term non-Discretionary Retirement/Wealth Savings Percentage of Net Earnings
K28: Interest as % of Principal | M28: =IF(M$26="","", M$27/M$7) -> 0.01917961383 | O28: =IF(O$26="","", O$27/M$7) -> 0.01917958577 | Q28: =Q$27/12 -> 11.5077683 | R28: per month | AB28: Amount Financed | AD28: 36000 | AF28: Based on $46k build price, 2020 Toyota Tacoma Pro | AV28: 0.25 | AX28: How Much Of Your Income Should You Save?
AD29: 60 | AF29: Term, Length of Loan in Months
AD30: =IF(OR(AD$26="",AD$28=""),"",CalcLoanPayment(AD$28,AD$26,AD$29,12,12)) -> 645.114624 | AF30: Calculated Monthly Payment
I31: Principal | K31: Interest | M31: Irregular Payments | AD31: =(AD30*AD29)-AD28 -> 2706.877441 | AF31: Total Interest Paid | AN31: ♦ | AO31: Additional Discretionary Flex-Savings
E32: Principal | G32: Interest | I32: Paid | K32: Paid | M32: in excess of | O32: Principal | AQ32: Flex-Savings, General | AS32: 50 | AV32: =AS32*2*12 -> 1200 | AX32: per Year | BE32: currently Discover
C33: Period | E33: (this payment) | G33: (this payment) | I33: (cumulative) | K33: (cumulative) | M33: Principal | O33: Balance | AQ33: Short-term Loans & Liabilities | AV33: =AS33*2*12 -> 0 | AX33: per Year
AB34: Monthly Cash Flow Savings over Regular Auto Loan | AD34: =AD30-M21 -> 33.60687256 | AF34: =AD34/2 -> 16.80343628 | AH34: Savings per Pay Period
O35: =M7 -> 36000 | AB35: Interest Savings over Regular Auto Loan | AD35: =AD31-M27 -> 2016.411344
C36: 1 | E36: 589.007813 | G36: 22.4999995 | I36: 589.007813 | K36: 22.4999995 | O36: 35410.99219
C37: 2 | E37: 589.3759429 | G37: 22.13186962 | I37: 1178.383756 | K37: 44.63186912 | O37: 34821.61624 | AS37: =SUM(AS32:AS33) -> 50 | AU37: ♦ | AV37: Total Additional Discretionary Flex-Savings
C38: 3 | E38: 589.7443028 | G38: 21.76350967 | I38: 1768.128059 | K38: 66.39537879 | O38: 34231.87194
C39: 4 | E39: 590.112893 | G39: 21.39491949 | I39: 2358.240952 | K39: 87.79029827 | O39: 33641.75905
C40: 5 | E40: 590.4817136 | G40: 21.02609894 | I40: 2948.722665 | K40: 108.8163972 | O40: 33051.27733 | AN40: ♦ | AO40: Short-Term, Non-Discretionary Cost of Living Expenses
C41: 6 | E41: 590.8507646 | G41: 20.65704787 | I41: 3539.57343 | K41: 129.4734451 | O41: 32460.42657 | V41: What if I did BOTH, Took the Loan to Reinvest and Took out a Regular Auto Loan to buy a car? | AQ41: Long-term Savings / Initial Seed for 1st 3-Month Emergency Fund | AS41: 40 | AV41: =(AS14*2)*3 -> 14093.3175 | AX41: per Year | AZ41: =AV41*BB41 -> 14093.3175 | BA41: every | BB41: 1 | BC41: years | BE41: currently AMEX
C42: 7 | E42: 591.2200463 | G42: 20.28776615 | I42: 4130.793476 | K42: 149.7612112 | O42: 31869.20652 | AB42: tax liability | AQ42: Automobile Maintenance Fund | AS42: =AV42/(AV43*24) -> 50 | AV42: 6000 | AX42: Savings Goal
C43: 8 | E43: 591.5895589 | G43: 19.91825363 | I43: 4722.383035 | K43: 169.6794649 | O43: 31277.61696 | AB43: Reduction of Net Profit by Remaining Car Loan Interest | AD43: =AD16-AD35 -> 10021.66184 | AF43: =FV(-$AD$7,$K$12,0,-AD43) -> 9058.78856 | AH43: (Inflation Adjusted) Real Profit | AV43: 5 | AX43: Time frame in years (best time is during full warranty of new automobile)
C44: 9 | E44: 591.9593023 | G44: 19.54851017 | I44: 5314.342337 | K44: 189.227975 | O44: 30685.65766 | AB44: no tax liability | AV44: How Much Is the Average Car Repair Bill?
C45: 10 | E45: 592.3292769 | G45: 19.17853561 | I45: 5906.671614 | K45: 208.4065106 | O45: 30093.32839 | AB45: Reduction of Net Profit by Remaining Car Loan Interest | AD45: =AF16-AD35 -> 12327.6319 | AF45: =FV(-$AD$7,$K$12,0,-AD45) -> 11143.20285 | AH45: (Inflation Adjusted) Real Profit | AO45: Prepaids Fund
C46: 11 | E46: 592.6994827 | G46: 18.80832982 | I46: 6499.371097 | K46: 227.2148405 | O46: 29500.6289 | AQ46: Auto Insurance | AS46: =IF(AV46="","",AV46*2/24) -> 48.5175 | AV46: 582.21 | AX46: Est. GEICO, AD as O-1, at Pearland Address for 2020 Toyota Highlander
C47: 12 | E47: 593.0699198 | G47: 18.43789265 | I47: 7092.441017 | K47: 245.6527331 | O47: 28907.55898 | AQ47: Auto Registration | AS47: =IF(AV47 ="","",AV47/24) -> 3.333333333 | AV47: 80 | AX47: Estimate based on experience
C48: 13 | E48: 593.4405885 | G48: 18.06722396 | I48: 7685.881605 | K48: 263.7199571 | O48: 28314.11839 | AB48: Required Payments for both Career and Auto Loan | AD48: =AD30+M21 -> 1256.622375 | AF48: =(AS83*2)-AD48 -> 1507.913791 | AH48: Remaining Discretionary Cash/Month | AQ48: Renter Insurance | AS48: =IF(AV48 ="","",AV48/24) -> 4.899166667 | AV48: 117.58 | AX48: Apusento Gardens, P303, Guam
C49: 14 | E49: 593.8114889 | G49: 17.6963236 | I49: 8279.693094 | K49: 281.4162807 | O49: 27720.30691 | AF49: differnece | AS49: =IF(AV49 ="","",AV49/24) -> 
C50: 15 | E50: 594.1826211 | G50: 17.32519143 | I50: 8873.875715 | K50: 298.7414721 | O50: 27126.12428 | AF50: =AF48/2 -> 753.9568956 | AH50: per Pay Period | AQ50: Uniform Fund | AX50: Estimate based on asking a young Army LT
C51: 16 | E51: 594.5539852 | G51: 16.9538273 | I51: 9468.429701 | K51: 315.6952994 | O51: 26531.5703 | AA51: O-2, < 2yrs | AB51: 45450 | AQ51: Gift/Holiday Fund | AS51: 16.66666667 | AV51: 400 | AX51: These don't always have to provide an exact amount, just help ease the pain!
C52: 17 | E52: 594.9255814 | G52: 16.58223107 | I52: 10063.35528 | K52: 332.2775305 | O52: 25936.64472 | AA52: O-2, 2 yrs | AB52: 51760.8 | AF52: =((BO19-AS76)*2)-AD48 -> 2908.046125
C53: 18 | E53: 595.2974099 | G53: 16.21040259 | I53: 10658.65269 | K53: 348.4879331 | O53: 25341.34731 | AA53: O-2, 3 yrs | AB53: 59612.4
C54: 19 | E54: 595.6694708 | G54: 15.83834171 | I54: 11254.32216 | K54: 364.3262748 | O54: 24745.67784
C55: 20 | E55: 596.0417642 | G55: 15.4660483 | I55: 11850.36393 | K55: 379.7923231 | O55: 24149.63607 | AB55: What if you skip the loan but invest $611/month?
C56: 21 | E56: 596.4142903 | G56: 15.09352221 | I56: 12446.77822 | K56: 394.8858453 | O56: 23553.22178 | AB56: Total account value after 5 yrs (60 mos) | AD56: =FV(AD6/12,M12,-611,0) -> 43743.26291 | AF56: =FV(-$AD$7,$K$12,0,-AD56) -> 39540.44506 | AH56: (Inflation Adjusted) Real Value | AS56: =SUM(AS41:AS42,AS46:AS51) -> 163.4166667 | AU56: ♦ | AV56: Total Short-Term, Non-Discretionary Cost of Living Expenses per Pay Period
C57: 22 | E57: 596.7870492 | G57: 14.72076329 | I57: 13043.56527 | K57: 409.6066086 | O57: 22956.43473 | AB57: Nominal Profit | AD57: =AD56-M7 -> 7743.262907 | AF57: =FV(-$AD$7,$K$12,0,-AD57) -> 6999.296377 | AH57: (Inflation Adjusted) Real Profit
C58: 23 | E58: 597.1600411 | G58: 14.34777139 | I58: 13640.72531 | K58: 423.95438 | O58: 22359.27469
C59: 24 | E59: 597.5332661 | G59: 13.97454637 | I59: 14238.25857 | K59: 437.9289263 | O59: 21761.74143 | AN59: ♦ | AO59: Estimated Semi-Mandatory & Discretionary Living Expenses | AV59: 0.05 | AX59: Estimated Error Rate
C60: 25 | E60: 597.9067244 | G60: 13.60108809 | I60: 14836.1653 | K60: 451.5300144 | O60: 21163.8347 | AQ60: Credit Monitoring | AS60: =IF(AV60="","",((AV60)*(1+$AV$59))/2) -> 9.639 | AV60: 18.36 | AX60: AMEX Credit Secure Credit Monitoring Service
C61: 26 | E61: 598.2804161 | G61: 13.22739639 | I61: 15434.44571 | K61: 464.7574108 | O61: 20565.55429 | AQ61: Music Streaming | AS61: =IF(AV61="","",((AV61)*(1+$AV$59))/2) -> 5.5125 | AV61: 10.5 | AX61: Spotify Premium
C62: 27 | E62: 598.6543414 | G62: 12.85347114 | I62: 16033.10006 | K62: 477.6108819 | O62: 19966.89994 | AQ62: Groceries/Food | AS62: 157.5 | AV62: 300 | AX62: Est. Grocery Food budget
C63: 28 | E63: 599.0285003 | G63: 12.47931219 | I63: 16632.12856 | K63: 490.0901941 | O63: 19367.87144 | AQ63: Dining Out/Food | AS63: 52.5 | AV63: 100 | AX63: Est. Dining Out Food budget
C64: 29 | E64: 599.4028931 | G64: 12.10491938 | I64: 17231.53145 | K64: 502.1951135 | O64: 18768.46855 | AQ64: Automobile Fuel/Gas | AS64: 65.625 | AV64: 125 | AX64: Est. Auto Fuel
C65: 30 | E65: 599.7775199 | G65: 11.73029258 | I65: 17831.30897 | K65: 513.9254061 | O65: 18168.69103 | AQ65: Utilities(Electricity)/Household | AS65: 131.25 | AV65: 250 | AX65: OHA Utilities Adjustments
C66: 31 | E66: 600.1523809 | G66: 11.35543164 | I66: 18431.46135 | K66: 525.2808377 | O66: 17568.53865 | AQ66: Internet-TV-Phone/Household | AS66: 78.75 | AV66: 150
C67: 32 | E67: 600.5274761 | G67: 10.98033641 | I67: 19031.98883 | K67: 536.2611741 | O67: 16968.01117 | AQ67: Mobile Phone | AX67: (bundled with previous)
C68: 33 | E68: 600.9028058 | G68: 10.60500675 | I68: 19632.89163 | K68: 546.8661809 | O68: 16367.10837 | AQ68: Car Payment | AS68: 187.425 | AV68: 357
C69: 34 | E69: 601.27837 | G69: 10.2294425 | I69: 20234.17 | K69: 557.0956234 | O69: 15765.83 | AQ69: (temporary) Auto Insurance | AS69: =IF(AV69="","",AV69/2) -> 48.5175 | AV69: =AV46/6 -> 97.035
C70: 35 | E70: 601.654169 | G70: 9.853643529 | I70: 20835.82417 | K70: 566.9492669 | O70: 15164.17583 | AQ70: (temporary) Renter Insurance | AS70: =IF(AV70="","",AV70/2) -> 4.899166667 | AV70: =AV48/12 -> 9.798333333
C71: 36 | E71: 602.0302028 | G71: 9.477609682 | I71: 21437.85437 | K71: 576.4268766 | O71: 14562.14563
C72: 37 | E72: 602.4064717 | G72: 9.101340813 | I72: 22040.26085 | K72: 585.5282174 | O72: 13959.73915
C73: 38 | E73: 602.7829757 | G73: 8.724836777 | I73: 22643.04382 | K73: 594.2530542 | O73: 13356.95618
C74: 39 | E74: 603.1597151 | G74: 8.348097425 | I74: 23246.20354 | K74: 602.6011516 | O74: 12753.79646 | AS74: =SUM(AS60:AS70) -> 741.6181667 | AU74: ♦ | AV74: Estimated Semi-Mandatory & Discretionary Living Expenses per Pay Period
C75: 40 | E75: 603.5366899 | G75: 7.971122612 | I75: 23849.74023 | K75: 610.5722742 | O75: 12150.25977
C76: 41 | E76: 603.9139003 | G76: 7.593912189 | I76: 24453.65413 | K76: 618.1661864 | O76: 11546.34587
C77: 42 | E77: 604.2913465 | G77: 7.21646601 | I77: 25057.94547 | K77: 625.3826524 | O77: 10942.05453
C78: 43 | E78: 604.6690286 | G78: 6.838783927 | I78: 25662.6145 | K78: 632.2214364 | O78: 10337.3855 | AQ78: Total ALL Long-Term & Discretionary Savings per Pay Period | AS78: =SUM(AS25,AS37) -> 115 | AV78: =AS78/$AS$14 -> 0.04895937383 | AX78: Percent of Net Pay (savings)
C79: 44 | E79: 605.0469467 | G79: 6.460865792 | I79: 26267.66145 | K79: 638.6823022 | O79: 9732.338552 | AQ79: Total Short-Term Non-Discretionary Cost of Living Savings per Pay Period | AS79: =SUM(AS56) -> 163.4166667 | AV79: =AS79/$AS$14 -> 0.06957197977 | AX79: Percent of Net Pay (prepaid debt)
C80: 45 | E80: 605.425101 | G80: 6.082711459 | I80: 26873.08655 | K80: 644.7650136 | O80: 9126.913451 | AQ80: Total ALL Expenses per Pay Period | AS80: =SUM(AS60:AS68) -> 688.2015 | AV80: =AS80/$AS$14 -> 0.292990561 | AX80: Percent of Net Pay (debts & expenses)
C81: 46 | E81: 605.8034917 | G81: 5.704320779 | I81: 27478.89004 | K81: 650.4693344 | O81: 8521.109959
C82: 47 | E82: 606.1821189 | G82: 5.325693606 | I82: 28085.07216 | K82: 655.795028 | O82: 7914.92784
C83: 48 | E83: 606.5609827 | G83: 4.94682979 | I83: 28691.63314 | K83: 660.7418578 | O83: 7308.366858 | AQ83: Discretionary Cash Flow per Pay Period | AS83: =AS14-SUM(AS78:AS80) -> 1382.268083 | AV83: =AS83*2 -> 2764.536167 | AX83: Per Month
C84: 49 | E84: 606.9400833 | G84: 4.567729184 | I84: 29298.57323 | K84: 665.309587 | O84: 6701.426774
C85: 50 | E85: 607.3194209 | G85: 4.18839164 | I85: 29905.89265 | K85: 669.4979786 | O85: 6094.107354
C86: 51 | E86: 607.6989955 | G86: 3.808817011 | I86: 30513.59164 | K86: 673.3067956 | O86: 5486.408358
C87: 52 | E87: 608.0788074 | G87: 3.429005147 | I87: 31121.67045 | K87: 676.7358008 | O87: 4878.329551
C88: 53 | E88: 608.4588566 | G88: 3.048955901 | I88: 31730.12931 | K88: 679.7847567 | O88: 4269.870694
C89: 54 | E89: 608.8391434 | G89: 2.668669124 | I89: 32338.96845 | K89: 682.4534258 | O89: 3661.031551
C90: 55 | E90: 609.2196678 | G90: 2.288144668 | I90: 32948.18812 | K90: 684.7415705 | O90: 3051.811883
C91: 56 | E91: 609.6004301 | G91: 1.907382384 | I91: 33557.78855 | K91: 686.6489528 | O91: 2442.211453
C92: 57 | E92: 609.9814304 | G92: 1.526382124 | I92: 34167.76998 | K92: 688.175335 | O92: 1832.230022
C93: 58 | E93: 610.3626688 | G93: 1.145143738 | I93: 34778.13265 | K93: 689.3204787 | O93: 1221.867354
C94: 59 | E94: 610.7441454 | G94: 0.763667079 | I94: 35388.87679 | K94: 690.0841458 | O94: 611.1232083
C95: 60 | E95: 611.1232083 | G95: 0.3819519966 | I95: 36000 | K95: 690.4660978 | O95: 0

Sheet Zara - Enlisted-Guam
AJ2: Officer Basic Pay Rates, 2020 | AM2: What will my Income and Real monthly Cash Flow look like? | AQ2: Military Pay Calculator for 2020 | AU2: ▪ | AV2: as of 2020, $3080.16 (not quite enough but better than nothing!) | BI2: O-2, > 2yrs | BK2: Officer Basic Pay Rates, 2020
M3: Calculated | O3: Other/Alt | AJ3: 32562 | AU3: ▪ | AV3: 2017 National Defense Authorization Act included a provision to overhaul the BAH | BK3: 51760.8
C4: Should I take the Loan? | K4: Loan Parameters | M4: Adjustments | O4: Calculations | V4: What if I Reinvested the Loan? | AJ4: Tax Form Calculator | AN4: Earnings & Income | AV4: system to only cover actual rent expenses, rather than a flat amount, similar to the | BK4: Tax Form Calculator
AH5: 0.05 | AJ5: Tax deferred retirement: | AV5: way that Overseas Housing Allowance currently works. | BI5: 0.11 | BK5: Tax deferred retirement:
AB6: Rate of Return from Reinvestment | AD6: 0.07 | AJ6: =AJ3*AH5 -> 1628.1 | AQ6: Monthly After-Tax based on Previous Calculations | AS6: =AJ19/12 -> 2186.705 | AV6: These changes could occur as early as 2018. | BK6: =BK3*BI5 -> 5693.688 | BM6: Monthly Gross based on O-2, > 2 years | BO6: =BK19/12 -> 3188.7385
G7: Principal | K7: 36000 | M7: =IF(OR(K$7="", K$7<K$8), "", K$7-K$8) -> 36000 | AB7: Rate of Inflation | AD7: 0.02 | AI7: percentage of Net Earnings: | AJ7: =AJ6/AJ18 -> 0.0584206719 | AQ7: Bi-Monthly Pay (15th & EOM) | AS7: =AS6/2 -> 1093.3525 | AU7: ▪ | AV7: If there is an excess of base housing, a housing allowance may not be approved, | BJ7: percentage of Net Earnings: | BK7: =BK6/BK18 -> 0.1295240175 | BM7: Bi-Monthly Pay (15th & EOM) | BO7: =BO6/2 -> 1594.36925
G8: Down Payment | K8: 0 | AB8: approximate Tax Rate | AD8: =AJ15 -> 0.1441385664 | AJ8: Total Federal Tax Due: | AV8: especially for new and young officers. Something to keep in mind. | BK8: Total Federal Tax Due:
AJ9: 2202.48 | AU9: ▪ | AV9: Since BAH offsets an actual, non discretionary expense, whether or not the overhaul | BK9: 3842.55 | BM9: BAS (basic allowance for sustenance) | BO9: 256.68
G10: Nominal Rate Per Period (R) | I10: APR | K10: 0.75 | M10: =K$10/100 -> 0.0075 | O10: =CalcEffectiveInterestRatePerPeriod(M$10,K$16) -> 0.007525834721 | AJ10: Total SS Tax Due: | AV10: occurs/occurred, we'll just leave this as zero and keep it out of the calculations | BK10: Total SS Tax Due: | BM10: BAH (basic allowance for housing) | BO10: 0
AB11: Raw Return from Reinvestment | AD11: =FV(AD6/12,M12,0,-M7) -> 51034.50935 | AJ11: 2018.88 | AQ11: BAH (basic allowance for housing) | AS11: 0 | BK11: 3209.17
G12: Number of Payments | I12: years | K12: 5 | M12: =IF(K$12="","",K$12*K$15) -> 60 | O12: =IF(OR(M$7="", M$10=""), "", CalcNumberOfPeriods(M$7,M$21, M$10,K$15)) -> 59.99999619 | AB12: Gross Profit from Reinvestment | AD12: =AD11-M7 -> 15034.50935 | AJ12: Total Medicare Tax Due: | AQ12: BAS (basic allowance for sustenance) | AS12: 386.5 | BK12: Total Medicare Tax Due:
I13: months | K13: 60 | AB13: Estimated Tax Liability against Profits | AD13: =AD12*AD8 -> 2167.052624 | AJ13: 472.08 | AQ13: Clothing Allowance SMA | AS13: =22.98*2 -> 45.96 | BK13: 750.53
AB14: (Nominal) Net Profit from Reinvestment | AD14: =AD12-AD13 -> 12867.45672 | AQ14: OHA Utilities | AS14: 744 | AU14: ?
I15: payments per period | K15: 12 | O15: =IF(OR(M$10="", K$16=""), "", CalcPeriodicInterestRate(M$10, K$16)) -> 0.000624999986 | AD15: tax liability | AF15: no tax liability | AI15: Effective Tax Rate: | AJ15: =AJ17/AJ3 -> 0.1441385664 | AQ15: OCONUS COLA W/O | AS15: 391.5 | BJ15: Effective Tax Rate: | BK15: =BK17/BK3 -> 0.1507366579
I16: compounding per period | K16: 12 | O16: =IF(OR(M$10="", K$15="", K$16=""), "", CalcPeriodicEquivalentInterestRate(M$10, K$16, K$15)) -> 0.000624999986 | AB16: (Nominal) Net Profit from Reinvestment against Loan | AD16: =AD14-M27 -> 12176.99062 | AF16: =AD12-M27 -> 14344.04325
AB17: (Inflation Adjusted) Real Profit from Reinvestment | AD17: =FV(-AD7,K12,0,-AD16) -> 11007.03507 | AI17: Total Tax Liability: | AJ17: =SUM(AJ13,AJ11,AJ9) -> 4693.44 | AQ17: Net Bi-Monthly Pay | AS17: =SUM(AS6, AS12:AS15)/2 -> 1877.3325 | BJ17: Total Tax Liability: | BK17: =SUM(BK13,BK11,BK9) -> 7802.25
G18: Periodic Interest Rate | I18: P | K18: =M$18 -> 0.000624999986 | M18: =IF(OR(M$10="", K$15="", K$16=""), "", CalcPeriodicEquivalentInterestRate(M$10, K$16, K$15)) -> 0.000624999986 | O18: =IF(OR(M$10="", M$12="", K$12=""), "", IF(K$12=0,"",M$10/(M$12/K$12))) -> 0.000625 | AI18: Net Earnings: | AJ18: =AJ3-AJ17 -> 27868.56 | BJ18: Net Earnings: | BK18: =BK3-BK17 -> 43958.55
AI19: Take Home Pay: | AJ19: =AJ18-AJ6 -> 26240.46 | BJ19: Take Home Pay: | BK19: =BK18-BK6 -> 38264.862 | BM19: Net Bi-Monthly Pay | BO19: =SUM(BO6, BO9)/2 -> 1722.70925
AN20: Recommended Savings & Fiscal Responsibilities
K21: Regular Payment Amount | M21: =IF(OR(M$7="",M$12=""),"",CalcLoanPayment(M$7,M$10,M$12,K$15,K$16)) -> 611.5077515 | O21: =IF(OR(M$7="",M$10="",M$12=""),"", IF(M$10=0,(M$7/M$12),((M$10/K$15)*M$7)/(1-((1+ (M$10/K$15))^(-M$12))))) -> 611.5077694
K22: Extra Regular Payment Amount | O22: =IF(OR(K$13="", O$24=""),"",TEXT((K$13-O$24)/12, "#0.0") & " yrs saved") -> 0.0 yrs saved | AN22: ♦ | AO22: Long-Term non-Discretionary Retirement/Wealth Savings Targets
V23: What if I used it to buy a car? | AS23: per pay period
K24: Total Regular Payment Amount, (adjusted number of payments) | M24: =IF(M$21="","", SUM(M$21:M$22)) -> 611.5077515 | O24: =IF(OR(M$7="",M$10="",M$24="",K$15=""),"", CalcNumberOfPeriods(M$7, M$24, M$10, K$15)) -> 59.99999619 | AQ24: Individual Investment Savings | AR24: P | AS24: 50 | AU24: P | AV24: =AS24*2*12 -> 1200 | AX24: per Year | BE24: currently USAA/Schwab Brokerage Account | BK24: Annual Equivalent Income: | BM24: 72847.2
AB25: Current Regular Auto Loan Rates | AQ25: Individual Investment Savings, ROTH IRA | AR25: P | AS25: =AV25/24 -> 250 | AU25: P | AV25: 6000 | AX25: per Year | BE25: currently USAA/Schwab Brokerage Account
K26: Total Repaid | M26: 36690.4661 | O26: =IF(M$21="","", M$21*M$12) -> 36690.46509 | AB26: Navy Federal | AD26: 0.0289 | AF26: 37-60 month term | AQ26: Individual Investment/Future Wealth Savings | AR26: P | AS26: 35 | AU26: P | AV26: =AS26*2*12 -> 840 | AX26: per Year | BE26: whole life banking/insurance policy
K27: Total Interest Paid | M27: 690.4660978 | O27: =IF(O$26="","", O$26-M$7) -> 690.4650879 | Q27: =M$27/K$12 -> 138.0932196 | R27: per year
K28: Interest as % of Principal | M28: =IF(M$26="","", M$27/M$7) -> 0.01917961383 | O28: =IF(O$26="","", O$27/M$7) -> 0.01917958577 | Q28: =Q$27/12 -> 11.5077683 | R28: per month | AB28: Amount Financed | AD28: 36000 | AF28: Based on $46k build price, 2020 Toyota Tacoma Pro
AD29: 60 | AF29: Term, Length of Loan in Months | AS29: =SUM(AS24:AS26) -> 335 | AU29: ♦ | AV29: Total Long-Term non-Discretionary Retirement/Wealth Savings per Pay Period
AD30: =IF(OR(AD$26="",AD$28=""),"",CalcLoanPayment(AD$28,AD$26,AD$29,12,12)) -> 645.114624 | AF30: Calculated Monthly Payment | AS30: =AS29/AS17 -> 0.1784446815 | AV30: Percent of Net Pay
I31: Principal | K31: Interest | M31: Irregular Payments | AD31: =(AD30*AD29)-AD28 -> 2706.877441 | AF31: Total Interest Paid | AS31: =AJ7+AS30 -> 0.2368653534 | AV31: Total Long-Term non-Discretionary Retirement/Wealth Savings Percentage of Net Earnings
E32: Principal | G32: Interest | I32: Paid | K32: Paid | M32: in excess of | O32: Principal | AV32: 0.25 | AX32: How Much Of Your Income Should You Save?
C33: Period | E33: (this payment) | G33: (this payment) | I33: (cumulative) | K33: (cumulative) | M33: Principal | O33: Balance
AB34: Monthly Cash Flow Savings over Regular Auto Loan | AD34: =AD30-M21 -> 33.60687256 | AF34: =AD34/2 -> 16.80343628 | AH34: Savings per Pay Period
O35: =M7 -> 36000 | AB35: Interest Savings over Regular Auto Loan | AD35: =AD31-M27 -> 2016.411344 | AN35: ♦ | AO35: Additional Discretionary Flex-Savings
C36: 1 | E36: 589.007813 | G36: 22.4999995 | I36: 589.007813 | K36: 22.4999995 | O36: 35410.99219 | AQ36: Flex-Savings, General | AR36: P | AS36: 128 | AU36: P | AV36: =AS36*2*12 -> 3072 | AX36: per Year | BE36: currently Discover
C37: 2 | E37: 589.3759429 | G37: 22.13186962 | I37: 1178.383756 | K37: 44.63186912 | O37: 34821.61624 | AQ37: Flex-Savings, Legal | AR37: P | AS37: 225 | AU37: P | AV37: =AS37*2*12 -> 5400 | AX37: per Year | BE37: currently Ally
C38: 3 | E38: 589.7443028 | G38: 21.76350967 | I38: 1768.128059 | K38: 66.39537879 | O38: 34231.87194
C39: 4 | E39: 590.112893 | G39: 21.39491949 | I39: 2358.240952 | K39: 87.79029827 | O39: 33641.75905
C40: 5 | E40: 590.4817136 | G40: 21.02609894 | I40: 2948.722665 | K40: 108.8163972 | O40: 33051.27733
C41: 6 | E41: 590.8507646 | G41: 20.65704787 | I41: 3539.57343 | K41: 129.4734451 | O41: 32460.42657 | V41: What if I did BOTH, Took the Loan to Reinvest and Took out a Regular Auto Loan to buy a car? | AS41: =SUM(AS36:AS37) -> 353 | AU41: ♦ | AV41: Total Additional Discretionary Flex-Savings
C42: 7 | E42: 591.2200463 | G42: 20.28776615 | I42: 4130.793476 | K42: 149.7612112 | O42: 31869.20652 | AB42: tax liability
C43: 8 | E43: 591.5895589 | G43: 19.91825363 | I43: 4722.383035 | K43: 169.6794649 | O43: 31277.61696 | AB43: Reduction of Net Profit by Remaining Car Loan Interest | AD43: =AD16-AD35 -> 10160.57928 | AF43: =FV(-$AD$7,$K$12,0,-AD43) -> 9184.358919 | AH43: (Inflation Adjusted) Real Profit
C44: 9 | E44: 591.9593023 | G44: 19.54851017 | I44: 5314.342337 | K44: 189.227975 | O44: 30685.65766 | AB44: no tax liability | AN44: ♦ | AO44: Short-Term, Non-Discretionary Budgeted Living Savings (Expenses)
C45: 10 | E45: 592.3292769 | G45: 19.17853561 | I45: 5906.671614 | K45: 208.4065106 | O45: 30093.32839 | AB45: Reduction of Net Profit by Remaining Car Loan Interest | AD45: =AF16-AD35 -> 12327.6319 | AF45: =FV(-$AD$7,$K$12,0,-AD45) -> 11143.20285 | AH45: (Inflation Adjusted) Real Profit | AQ45: Long-term Savings / Initial Seed for 1st 3-Month Emergency Fund | AR45: P | AS45: =AV45/24 -> 125 | AU45: P | AV45: =AZ45/BB45 -> 3000 | AX45: per Year | AZ45: 6000 | BA45: every | BB45: 2 | BC45: years | BE45: currently AMEX
C46: 11 | E46: 592.6994827 | G46: 18.80832982 | I46: 6499.371097 | K46: 227.2148405 | O46: 29500.6289 | AQ46: Uniform Fund | AR46: P | AS46: =IF(AV46 ="","",AV46/2) -> 22.98 | AU46: P | AV46: 45.96 | AX46: Based on CLOTHING SMA, Enlisted | BE46: currently USAA
C47: 12 | E47: 593.0699198 | G47: 18.43789265 | I47: 7092.441017 | K47: 245.6527331 | O47: 28907.55898 | AQ47: Automobile Maintenance Fund | AR47: P | AS47: =AV47/(AV48*24) -> 50 | AU47: P | AV47: 3600 | AX47: Savings Goal | BE47: currently AMEX
C48: 13 | E48: 593.4405885 | G48: 18.06722396 | I48: 7685.881605 | K48: 263.7199571 | O48: 28314.11839 | AB48: Required Payments for both Career and Auto Loan | AD48: =AD30+M21 -> 1256.622375 | AF48: =(AS89*2)-AD48 -> -1015.852042 | AH48: Remaining Discretionary Cash/Month | AV48: 3 | AX48: Time frame in years (best time is during full warranty of new automobile)
C49: 14 | E49: 593.8114889 | G49: 17.6963236 | I49: 8279.693094 | K49: 281.4162807 | O49: 27720.30691 | AF49: differnece | AV49: How Much Is the Average Car Repair Bill?
C50: 15 | E50: 594.1826211 | G50: 17.32519143 | I50: 8873.875715 | K50: 298.7414721 | O50: 27126.12428 | AF50: =AF48/2 -> -507.9260211 | AH50: per Pay Period
C51: 16 | E51: 594.5539852 | G51: 16.9538273 | I51: 9468.429701 | K51: 315.6952994 | O51: 26531.5703 | AA51: O-2, < 2yrs | AB51: 45450 | AO51: Prepaids Fund
C52: 17 | E52: 594.9255814 | G52: 16.58223107 | I52: 10063.35528 | K52: 332.2775305 | O52: 25936.64472 | AA52: O-2, 2 yrs | AB52: 51760.8 | AF52: =((BO19-AS84)*2)-AD48 -> 812.7961245 | AQ52: Auto Insurance | AS52: =IF(AV52="","",AV52*2/24) -> 41.66666667 | AV52: 500 | AX52: Current USAA Policy, 2022 Kia Seltos
C53: 18 | E53: 595.2974099 | G53: 16.21040259 | I53: 10658.65269 | K53: 348.4879331 | O53: 25341.34731 | AA53: O-2, 3 yrs | AB53: 59612.4 | AQ53: Auto Registration | AS53: =IF(AV53 ="","",AV53/24) -> 3.333333333 | AV53: 80 | AX53: Estimate based on experience
C54: 19 | E54: 595.6694708 | G54: 15.83834171 | I54: 11254.32216 | K54: 364.3262748 | O54: 24745.67784 | AQ54: Renter Insurance | AS54: =IF(AV54 ="","",AV54/24) -> 4.899166667 | AV54: 117.58 | AX54: Apusento Gardens, P303, Guam
C55: 20 | E55: 596.0417642 | G55: 15.4660483 | I55: 11850.36393 | K55: 379.7923231 | O55: 24149.63607 | AB55: What if you skip the loan but invest $611/month? | AQ55: -- | AS55: =IF(AV55 ="","",AV55/24) -> 
C56: 21 | E56: 596.4142903 | G56: 15.09352221 | I56: 12446.77822 | K56: 394.8858453 | O56: 23553.22178 | AB56: Total account value after 5 yrs (60 mos) | AD56: =FV(AD6/12,M12,-611,0) -> 43743.26291 | AF56: =FV(-$AD$7,$K$12,0,-AD56) -> 39540.44506 | AH56: (Inflation Adjusted) Real Value | AQ56: --
C57: 22 | E57: 596.7870492 | G57: 14.72076329 | I57: 13043.56527 | K57: 409.6066086 | O57: 22956.43473 | AB57: Nominal Profit | AD57: =AD56-M7 -> 7743.262907 | AF57: =FV(-$AD$7,$K$12,0,-AD57) -> 6999.296377 | AH57: (Inflation Adjusted) Real Profit | AQ57: Gift/Holiday Fund | AS57: 16.66666667 | AV57: 400 | AX57: These don't always have to provide an exact amount, just help ease the pain!
C58: 23 | E58: 597.1600411 | G58: 14.34777139 | I58: 13640.72531 | K58: 423.95438 | O58: 22359.27469
C59: 24 | E59: 597.5332661 | G59: 13.97454637 | I59: 14238.25857 | K59: 437.9289263 | O59: 21761.74143 | AR59: P | AU59: P | AV59: =SUM(AS52:AS57) -> 66.56583333 | AX59: Total Prepaids per Pay Period | BE59: currently AMEX
C60: 25 | E60: 597.9067244 | G60: 13.60108809 | I60: 14836.1653 | K60: 451.5300144 | O60: 21163.8347
C61: 26 | E61: 598.2804161 | G61: 13.22739639 | I61: 15434.44571 | K61: 464.7574108 | O61: 20565.55429
C62: 27 | E62: 598.6543414 | G62: 12.85347114 | I62: 16033.10006 | K62: 477.6108819 | O62: 19966.89994 | AS62: =SUM(AS45:AS47,AS52:AS57) -> 264.5458333 | AU62: ♦ | AV62: Total Short-Term, Non-Discretionary Cost of Living Expenses per Pay Period
C63: 28 | E63: 599.0285003 | G63: 12.47931219 | I63: 16632.12856 | K63: 490.0901941 | O63: 19367.87144
C64: 29 | E64: 599.4028931 | G64: 12.10491938 | I64: 17231.53145 | K64: 502.1951135 | O64: 18768.46855
C65: 30 | E65: 599.7775199 | G65: 11.73029258 | I65: 17831.30897 | K65: 513.9254061 | O65: 18168.69103 | AN65: ♦ | AO65: Estimated Semi-Mandatory & Discretionary Living Expenses | AV65: 0.05 | AX65: Estimated Error Rate
C66: 31 | E66: 600.1523809 | G66: 11.35543164 | I66: 18431.46135 | K66: 525.2808377 | O66: 17568.53865 | AQ66: Credit Monitoring | AS66: =IF(AV66="","",((AV66)*(1+$AV$65))/2) -> 9.639 | AV66: 18.36 | AX66: AMEX Credit Secure Credit Monitoring Service
C67: 32 | E67: 600.5274761 | G67: 10.98033641 | I67: 19031.98883 | K67: 536.2611741 | O67: 16968.01117 | AQ67: Music Streaming | AS67: 5.5125 | AV67: 10.5 | AX67: Spotify Premium
C68: 33 | E68: 600.9028058 | G68: 10.60500675 | I68: 19632.89163 | K68: 546.8661809 | O68: 16367.10837 | AQ68: Groceries/Food | AS68: 157.5 | AV68: 300 | AX68: Est. Grocery Food budget
C69: 34 | E69: 601.27837 | G69: 10.2294425 | I69: 20234.17 | K69: 557.0956234 | O69: 15765.83 | AQ69: Dining Out/Food | AS69: 78.75 | AV69: 150 | AX69: Est. Dining Out Food budget
C70: 35 | E70: 601.654169 | G70: 9.853643529 | I70: 20835.82417 | K70: 566.9492669 | O70: 15164.17583 | AQ70: Automobile Fuel/Gas | AS70: 94.5 | AV70: 180 | AX70: Est. Auto Fuel
C71: 36 | E71: 602.0302028 | G71: 9.477609682 | I71: 21437.85437 | K71: 576.4268766 | O71: 14562.14563 | AQ71: Utilities(Electricity)/Household | AS71: 131.25 | AV71: 250 | AX71: OHA Utilities Adjustments, Guam Power Authority (GPA)
C72: 37 | E72: 602.4064717 | G72: 9.101340813 | I72: 22040.26085 | K72: 585.5282174 | O72: 13959.73915 | AQ72: Utilities(Water)/Household | AS72: 31.5 | AV72: 60 | AX72: GWA
C73: 38 | E73: 602.7829757 | G73: 8.724836777 | I73: 22643.04382 | K73: 594.2530542 | O73: 13356.95618 | AQ73: Internet (Bundle)/Household | AS73: =IF(AV73="","",((AV73)*(1+$AV$65))/2) -> 78.75 | AV73: 150 | AX73: GTA
C74: 39 | E74: 603.1597151 | G74: 8.348097425 | I74: 23246.20354 | K74: 602.6011516 | O74: 12753.79646 | AQ74: Mobile Phone | AS74: =IF(AV74="","",((AV74)*(1+$AV$65))/2) -> 42 | AV74: 80 | AX74: IT&E Wireless
C75: 40 | E75: 603.5366899 | G75: 7.971122612 | I75: 23849.74023 | K75: 610.5722742 | O75: 12150.25977 | AQ75: Car Payment | AS75: =IF(AV75="","",(AV75/2)) -> 175 | AV75: 350
C76: 41 | E76: 603.9139003 | G76: 7.593912189 | I76: 24453.65413 | K76: 618.1661864 | O76: 11546.34587 | AS76: =IF(AV76="","",AV76/2) -> 
C77: 42 | E77: 604.2913465 | G77: 7.21646601 | I77: 25057.94547 | K77: 625.3826524 | O77: 10942.05453
C78: 43 | E78: 604.6690286 | G78: 6.838783927 | I78: 25662.6145 | K78: 632.2214364 | O78: 10337.3855
C79: 44 | E79: 605.0469467 | G79: 6.460865792 | I79: 26267.66145 | K79: 638.6823022 | O79: 9732.338552
C80: 45 | E80: 605.425101 | G80: 6.082711459 | I80: 26873.08655 | K80: 644.7650136 | O80: 9126.913451 | AS80: =SUM(AS66:AS76) -> 804.4015 | AU80: ♦ | AV80: Estimated Semi-Mandatory & Discretionary Living Expenses per Pay Period
C81: 46 | E81: 605.8034917 | G81: 5.704320779 | I81: 27478.89004 | K81: 650.4693344 | O81: 8521.109959
C82: 47 | E82: 606.1821189 | G82: 5.325693606 | I82: 28085.07216 | K82: 655.795028 | O82: 7914.92784
C83: 48 | E83: 606.5609827 | G83: 4.94682979 | I83: 28691.63314 | K83: 660.7418578 | O83: 7308.366858
C84: 49 | E84: 606.9400833 | G84: 4.567729184 | I84: 29298.57323 | K84: 665.309587 | O84: 6701.426774 | AQ84: Total ALL Long-Term & Discretionary Savings per Pay Period | AS84: =SUM(AS29,AS41) -> 688 | AV84: =AS84/$AS$17 -> 0.3664774354 | AX84: Percent of Net Pay (savings)
C85: 50 | E85: 607.3194209 | G85: 4.18839164 | I85: 29905.89265 | K85: 669.4979786 | O85: 6094.107354 | AQ85: Total Short-Term Non-Discretionary Budgeted Living Savings per Pay Period | AS85: =SUM(AS62) -> 264.5458333 | AV85: =AS85/$AS$17 -> 0.1409158118 | AX85: Percent of Net Pay (prepaid debt)
C86: 51 | E86: 607.6989955 | G86: 3.808817011 | I86: 30513.59164 | K86: 673.3067956 | O86: 5486.408358 | AQ86: Total Semi-Mandatory & Discretionary Living Expenses per Pay Period | AS86: =SUM(AS66:AS75) -> 804.4015 | AV86: =AS86/$AS$17 -> 0.4284811028 | AX86: Percent of Net Pay (debts & expenses)
C87: 52 | E87: 608.0788074 | G87: 3.429005147 | I87: 31121.67045 | K87: 676.7358008 | O87: 4878.329551 | AQ87: Total ALL Monthly Outflows per Pay Period | AS87: =SUM(AS84:AS86) -> 1756.947333
C88: 53 | E88: 608.4588566 | G88: 3.048955901 | I88: 31730.12931 | K88: 679.7847567 | O88: 4269.870694
C89: 54 | E89: 608.8391434 | G89: 2.668669124 | I89: 32338.96845 | K89: 682.4534258 | O89: 3661.031551 | AQ89: Discretionary Cash Flow per Pay Period | AS89: =AS17-AS87 -> 120.3851667 | AV89: =AS89*2 -> 240.7703333 | AX89: Per Month
C90: 55 | E90: 609.2196678 | G90: 2.288144668 | I90: 32948.18812 | K90: 684.7415705 | O90: 3051.811883
C91: 56 | E91: 609.6004301 | G91: 1.907382384 | I91: 33557.78855 | K91: 686.6489528 | O91: 2442.211453
C92: 57 | E92: 609.9814304 | G92: 1.526382124 | I92: 34167.76998 | K92: 688.175335 | O92: 1832.230022
C93: 58 | E93: 610.3626688 | G93: 1.145143738 | I93: 34778.13265 | K93: 689.3204787 | O93: 1221.867354
C94: 59 | E94: 610.7441454 | G94: 0.763667079 | I94: 35388.87679 | K94: 690.0841458 | O94: 611.1232083
C95: 60 | E95: 611.1232083 | G95: 0.3819519966 | I95: 36000 | K95: 690.4660978 | O95: 0

Sheet F) Buying v Renting
C4: The most significant element of this question isn't financial, it's lifestyle and life itself. Over the course of a lifetime of renting, you are forever dependent upon your landlord. Will they continue to own the house, bear the maintenance and management costs while you live in it and pay the costs?
C5: How many times in a lifetime might you need to move when these life decisions for the landlord change? At 22, your movement costs might be considerably low, with a rental van and a couple of friends, your costs might be insignificant. However, what does this look like when you're 42, with
C6: three children, a dog, two cars, a family-sized household of stuff and a garage full of toys and tools?
C8: To any degree renting MIGHT get close to beating owning in the long run, these dependencies will easily consume any small benefit and quickly get you into negative territory.
C10: Any further analysis of this question is moot!
